Workbook

Sheet macro (hidden)
B2: DOM-XL
B3: Eine Excelanwendung zum Erfassen von Schließplänen
B4: Programme Excel pour la saisie d’organigrammes
B5: Excel application - master key systems
B7: Diese Excelanwendung muß mit "Makros aktivieren" geöffnet werden.
B8: Ab Excel 2000 müssen Sie zuerst unter EXTRAS>Macro>Sicherheit die Sicherheitsstufe auf "Mittel" einstellen
B10: Ce programme doit être ouvert avec la fonction " activer les macros "
B11: Avec Excel 2000 vous devez définir dans le menu Outils> Macros>Sécurité le niveau de sécurité " moyen ".
B13: Open this file with active macros.
B14: In Excel 2000 you must change the safety stage in Extras>Macro>Security to "Middel" .
B16: Infos:
B17: DOM-Sicherheitstechnik
B18: Wesselinger Str.10-16
B19: 50321 Brühl
B20: 02232-704-0

Sheet Import (hidden)
A1: Deur-Ruimteomschrijving | B1: Sleutelnummer | C1: Vrije invoer | D1: Aantal Cilinder | E1: Aantal Sleutel | F1: Cilindertype | G1: Lengte (A / B) | H1: Import vanaf positie | I1: 1
A2: OPSLAG | B2: 1 | D2: 1 | E2: 3 | F2: 333SKG2 | G2: 30 / 30
A3: EXAMEN | B3: 2 | D3: 1 | E3: 3 | F3: 333SKG2 | G3: 30 / 30
A4: INSTRUCTIERUIMTE | B4: 2 | D4: 1 | E4: 3 | F4: 333SKG2 | G4: 30 / 30
A5: ADMINISTRATIE | B5: 2 | D5: 1 | E5: 3 | F5: 333SKG2 | G5: 30 / 30
A6: IT-RUIMTE | B6: 3 | D6: 1 | E6: 3 | F6: 333SKG2 | G6: 30 / 30
A7: OPERATIONS | B7: 3 | D7: 1 | E7: 3 | F7: 333SKG2 | G7: 30 / 30
A8: METERKAST | B8: 3 | D8: 1 | E8: 3 | F8: 333HSKG2 | G8: 30 / 0

Sheet netto (hidden)
A1: Netto Gruppen | B1: Netto ES
A2: B | B2: B
A10: Netto Typ | B10: Netto Ausführung | C10: Netto Länge | D10: Netto Farbe
A11: B | B11: B | C11: B | D11: B
A12: B | B12: B | C12: B | D12: B
A13: B | B13: B | C13: B | D13: B
A14: B | B14: B | C14: B | D14: B
A15: B | B15: B | C15: B | D15: B
A16: B | B16: B | C16: B | D16: B
A17: B | B17: B | C17: B | D17: B
A18: B | B18: B | C18: B | D18: B
A19: B | B19: B | C19: B | D19: B
A20: B | B20: B | C20: B | D20: B
A21: B | B21: B | C21: B | D21: B
A22: B | B22: B | C22: B | D22: B
A23: B | B23: B | C23: B | D23: B
A24: B | B24: B | C24: B | D24: B
A25: B | B25: B | C25: B | D25: B
A26: B | B26: B | C26: B | D26: B
A27: B | B27: B | C27: B | D27: B
A28: B | B28: B | C28: B | D28: B
A29: B | B29: B | C29: B | D29: B
A30: B | B30: B | C30: B | D30: B
A31: B | B31: B | C31: B | D31: B
A32: B | B32: B | C32: B | D32: B
A33: B | B33: B | C33: B | D33: B
A34: B | B34: B | C34: B | D34: B
A35: B | B35: B | C35: B | D35: B
A36: B | B36: B | C36: B | D36: B
A37: B | B37: B | C37: B | D37: B
A38: B | B38: B | C38: B | D38: B
A39: B | B39: B | C39: B | D39: B
A40: B | B40: B | C40: B | D40: B
A41: B | B41: B | C41: B | D41: B
A42: B | B42: B | C42: B | D42: B
A43: B | B43: B | C43: B | D43: B
A44: B | B44: B | C44: B | D44: B
A45: B | B45: B | C45: B | D45: B
A46: B | B46: B | C46: B | D46: B
A47: B | B47: B | C47: B | D47: B
A48: B | B48: B | C48: B | D48: B
A49: B | B49: B | C49: B | D49: B
A50: B | B50: B | C50: B | D50: B
A51: B | B51: B | C51: B | D51: B
A52: B | B52: B | C52: B | D52: B
A53: B | B53: B | C53: B | D53: B
A54: B | B54: B | C54: B | D54: B
A55: B | B55: B | C55: B | D55: B
A56: B | B56: B | C56: B | D56: B
A57: B | B57: B | C57: B | D57: B
A58: B | B58: B | C58: B | D58: B
A59: B | B59: B | C59: B | D59: B
A60: B | B60: B | C60: B | D60: B
A61: B | B61: B | C61: B | D61: B
A62: B | B62: B | C62: B | D62: B
A63: B | B63: B | C63: B | D63: B
A64: B | B64: B | C64: B | D64: B
A65: B | B65: B | C65: B | D65: B
A66: B | B66: B | C66: B | D66: B
A67: B | B67: B | C67: B | D67: B
A68: B | B68: B | C68: B | D68: B
A69: B | B69: B | C69: B | D69: B
A70: B | B70: B | C70: B | D70: B
A71: B | B71: B | C71: B | D71: B
A72: B | B72: B | C72: B | D72: B
A73: B | B73: B | C73: B | D73: B
A74: B | B74: B | C74: B | D74: B
A75: B | B75: B | C75: B | D75: B
A76: B | B76: B | C76: B | D76: B
A77: B | B77: B | C77: B | D77: B
A78: B | B78: B | C78: B | D78: B
A79: B | B79: B | C79: B | D79: B
A80: B | B80: B | C80: B | D80: B
A81: B | B81: B | C81: B | D81: B
A82: B | B82: B | C82: B | D82: B
A83: B | B83: B | C83: B | D83: B
A84: B | B84: B | C84: B | D84: B
A85: B | B85: B | C85: B | D85: B
A86: B | B86: B | C86: B
A87: B | B87: B | C87: B | D87: B
A88: B | B88: B | C88: B | D88: B
A89: B | B89: B | C89: B | D89: B
A90: B | B90: B | C90: B | D90: B
A91: B | B91: B | C91: B | D91: B
A92: B | B92: B | C92: B | D92: B
A93: B | B93: B | C93: B | D93: B
A94: B | B94: B | C94: B | D94: B
A95: B | C95: B
A96: B | C96: B
A97: B | C97: B
A98: B | C98: B
A99: B | C99: B
A100: B | C100: B
A101: B | C101: B
A102: B | C102: B
A103: B | C103: B
A104: B | C104: B
A105: B | C105: B
A106: B | C106: B
A107: B | C107: B
A108: B | C108: B
A109: B | C109: B
A110: B | C110: B
A111: B | C111: B
A112: B | C112: B
A113: B | C113: B
A114: B | C114: B
A115: B | C115: B
A116: B | C116: B
A117: B | C117: B
A118: B | C118: B
A119: B | C119: B
A120: B | C120: B
A121: B | C121: B
A122: B | C122: B
A123: B | C123: B
A124: B | C124: B
A125: B | C125: B
A126: B | C126: B
A127: B | C127: B
A128: B | C128: B
A129: B | C129: B
A130: B | C130: B
A131: B | C131: B
A132: B | C132: B
A133: B | C133: B
A134: B | C134: B
A135: B | C135: B
A136: B | C136: B
A137: B | C137: B
A138: B | C138: B
A139: B | C139: B
A140: B | C140: B
A141: B | C141: B
A142: B | C142: B
A143: B | C143: B
A144: B | C144: B
A145: B | C145: B
A146: B | C146: B
A147: B | C147: B
A148: B | C148: B
A149: B | C149: B
A150: B | C150: B
A151: B | C151: B
A154: B | B154: B | C154: B
A155: B | B155: B | C155: B
A156: B | C156: B
A157: B | C157: B
A158: B | C158: B
A159: B | C159: B
A160: B | C160: B
A161: B | C161: B
A162: B | C162: B
A163: B | C163: B
A164: B | C164: B
A165: B | C165: B
A166: B | C166: B
A167: B | C167: B
A168: B | C168: B
A169: B | C169: B
A170: B | C170: B
A171: B | C171: B
A172: B | C172: B
A173: B | C173: B
A174: B | C174: B
A175: B | C175: B
A176: B | C176: B
A177: B | C177: B
A178: B | C178: B
A179: B | C179: B
A180: B | C180: B
A181: B | C181: B
A182: B | C182: B
A183: B | C183: B
A184: B | C184: B
A185: B | C185: B
A186: B | C186: B
A187: B | C187: B
A188: B | C188: B
A189: B | C189: B
A190: B | C190: B
A191: B | C191: B
A192: B | C192: B
A193: B | C193: B
A194: B | C194: B
A195: B | C195: B
A196: B | C196: B
A197: B | C197: B
A198: B | C198: B
A199: B | C199: B
A200: B | C200: B
A201: B | C201: B
A202: B | C202: B
A203: B | C203: B
A204: B | C204: B
A205: B | C205: B
A206: B | C206: B
A207: B | C207: B
A208: B | C208: B
A209: B | B209: B | C209: B
... 106 more rows

Sheet diverses (hidden)
A1: Schlüsselnummer | B1: Anzahl
A2: 1 | B2: =COUNTIF('S-Plan'!E:E,A2) -> 0
A3: Bestehende vorhanden Status X | B3: Anzahl
A4: X | B4: =COUNTIF('S-Plan'!B:B,A4) -> 0

Sheet altanl (hidden)
A1: VON / VAN | B1: BIS / T/MET | C1: Aufschlag | D1: Länge
C2: 0 | D2: 0
A3: FVTZ | B3: FWWW | C3: 15 | D3: 4
A4: NFCN | B4: NFKY | C4: 15 | D4: 4
A5: NHWO | B5: NWWW | C5: 15 | D5: 4
A6: REZO | B6: RWWW | C6: 15 | D6: 4
A7: YAAA | B7: YZZZ | C7: 15 | D7: 4
A8: XAAA | B8: XGYD | C8: 15 | D8: 4
A9: 179289 | B9: 397580 | C9: 15 | D9: 7
A10: 179289 | B10: 397580 | C10: 15 | D10: 8
A11: AA | B11: BB | C11: 15 | D11: 2
A12: AAA | B12: ZZZ | C12: 15 | D12: 3
A13: AA11 | B13: CM96 | C13: 15 | D13: 4
A14: AAAA | B14: FVTY | C14: 15 | D14: 4
A15: LAAA | B15: MWWW | C15: 15 | D15: 4
A16: NAAA | B16: NFCM | C16: 15 | D16: 4
A17: NHAV | B17: NHWN | C17: 15 | D17: 4
A18: PAAA | B18: RFAV | C18: 15 | D18: 4
A19: 800000 | B19: 806000 | C19: 15 | D19: 6
A20: 100000 | B20: 179288 | C20: 15 | D20: 7
A21: 397581 | B21: 999999 | C21: 0 | D21: 7 | G21: Hier tussen geen 15% toeslag
A22: 397581 | B22: 999999 | C22: 0 | D22: 8 | G22: Hier tussen geen 15% toeslag

Sheet art_system (hidden)
A1: Anlagenart | B1: Systeme | C1: Neuanlage E/N | D1: Sichtbar J/N | E1: ART | F1: System
A2: ? | B2: ? | C2: N | D2: J | E2: ? | F2: ?
A3: GHS | B3: IX GAMMA | C3: E | D3: J | E3: ? | F3: GHS
A4: HS | B4: IX10KG | C4: E | D4: J | E4: ? | F4: HS
A5: ZHS | B5: IX5HT | C5: E | D5: J | E5: ? | F5: Z
A6: Z | B6: IX6KG | C6: E | D6: J | E6: ? | F6: ZHS
B7: IX6SR | C7: E | D7: J | E7: DIAMANT | F7: ?
B8: IXHT | C8: E | D8: J | E8: DIAMANT | F8: GHS
B9: IXSAT | C9: E | D9: J | E9: DIAMANT | F9: HS
B10: RS5 | C10: E | D10: J | E10: IX GAMMA | F10: ?
B11: RS8 | C11: E | D11: J | E11: IX GAMMA | F11: GHS
B12: DIAMANT | C12: N | D12: J | E12: IX GAMMA | F12: HS
B13: IXTECO | C13: N | D13: J | E13: IX GAMMA | F13: ZHS
B14: IXTWIDO | C14: N | D14: J | E14: IX10KG | F14: ?
B15: IXTWINSTAR | C15: N | D15: J | E15: IX10KG | F15: GHS
B16: IXTWINSTAR-C | C16: N | D16: J | E16: IX10KG | F16: HS
B17: RS SIGMA | C17: N | D17: J | E17: IX10KG | F17: Z
B18: rs SIRIUS | C18: N | D18: J | E18: IX10KG | F18: ZHS
E19: IX5HT | F19: ?
E20: IX5HT | F20: GHS
E21: IX5HT | F21: HS
E22: IX5HT | F22: Z
E23: IX5HT | F23: ZHS
E24: IX5KG | F24: ?
E25: IX5KG | F25: GHS
E26: IX5KG | F26: HS
E27: IX5KG | F27: Z
E28: IX5KG | F28: ZHS
E29: IX6KG | F29: ?
E30: IX6KG | F30: GHS
E31: IX6KG | F31: HS
E32: IX6KG | F32: Z
E33: IX6KG | F33: ZHS
E34: IX6SR | F34: ?
E35: IX6SR | F35: GHS
E36: IX6SR | F36: HS
E37: IX6SR | F37: Z
E38: IX6SR | F38: ZHS
E39: IXHT | F39: GHS
E40: IXHT | F40: HS
E41: IXHT | F41: Z
E42: IXHT | F42: ZHS
E43: IXSAT | F43: ?
E44: IXSAT | F44: GHS
E45: IXSAT | F45: HS
E46: IXSAT | F46: Z
E47: IXSAT | F47: ZHS
E48: IXTECO | F48: ?
E49: IXTECO | F49: GHS
E50: IXTECO | F50: HS
E51: IXTECO | F51: Z
E52: IXTECO | F52: ZHS
E53: IXTWIDO | F53: ?
E54: IXTWIDO | F54: GHS
E55: IXTWIDO | F55: HS
E56: IXTWIDO | F56: Z
E57: IXTWIDO | F57: ZHS
E58: IXTWINSTAR | F58: ?
E59: IXTWINSTAR | F59: GHS
E60: IXTWINSTAR | F60: HS
E61: IXTWINSTAR | F61: Z
E62: IXTWINSTAR | F62: ZHS
E63: RS SIGMA | F63: ?
E64: RS SIGMA | F64: GHS
E65: RS SIGMA | F65: HS
E66: RS SIGMA | F66: Z
E67: RS SIGMA | F67: ZHS
E68: rs SIRIUS | F68: ?
E69: rs SIRIUS | F69: GHS
E70: rs SIRIUS | F70: HS
E71: rs SIRIUS | F71: Z
E72: rs SIRIUS | F72: ZHS
E73: RS5 | F73: ?
E74: RS5 | F74: GHS
E75: RS5 | F75: HS
E76: RS5 | F76: Z
E77: RS5 | F77: ZHS
E78: RS8 | F78: ?
E79: RS8 | F79: GHS
E80: RS8 | F80: HS
E81: RS8 | F81: Z
E82: RS8 | F82: ZHS

Sheet Farbe (hidden)
A1: ID | B1: Nummer | C1: Name | D1: Aufpreis Halbzylinder | E1: MName1 | F1: MWert1 | G1: MNAME2 | H1: MWERT2 | I1: netto | L1: Tabelle | M1: Name
A2: 0 | C2: ohne | D2: 0 | I2: B
A3: 1 | B3: 01 | C3: matt vernickelt | D3: 0 | E3: B_FAERBUNG_AUSSEN | F3: FA001 | G3: B_FAERBUNG_INNEN | H3: FI001 | I3: B | L3: 0 | M3: ohne
A4: 1 | B4: 03 | C4: Mattverchromt | D4: 26.36 | E4: B_FAERBUNG_AUSSEN | F4: FA003 | G4: B_FAERBUNG_INNEN | H4: FI003 | I4: B | L4: 1 | M4: messing
A5: 1 | B5: 04 | C5: Glanzverchromt | D5: 26.36 | E5: B_FAERBUNG_AUSSEN | F5: FA004 | G5: B_FAERBUNG_INNEN | H5: FI004 | I5: B | L5: 2 | M5: Stahl
A6: 1 | B6: 05 | C6: messing matt gebürstet | D6: 26.36 | E6: B_FAERBUNG_AUSSEN | F6: FA005 | G6: B_FAERBUNG_INNEN | H6: FI005 | I6: B | L6: 3 | M6: Duracast
A7: 1 | B7: 06 | C7: messing poliert | D7: 26.36 | E7: B_FAERBUNG_AUSSEN | F7: FA006 | G7: B_FAERBUNG_INNEN | H7: FI006 | I7: B | L7: 4 | M7: messing halbzylinder
A8: 1 | B8: 07 | C8: messing brüniert | D8: 26.36 | E8: B_FAERBUNG_AUSSEN | F8: FA007 | G8: B_FAERBUNG_INNEN | H8: FI007 | I8: B | L8: 5 | M8: Stahl halbzylinder
A9: 1 | B9: 09 | C9: altdeutsch | D9: 26.36 | E9: B_FAERBUNG_AUSSEN | F9: FA009 | G9: B_FAERBUNG_INNEN | H9: FI009 | I9: B | L9: 6 | M9: Duracast halbzylinder
A10: 1 | B10: 25 | C10: vergoldet | D10: 26.36 | E10: B_FAERBUNG_AUSSEN | F10: FA025 | G10: B_FAERBUNG_INNEN | H10: FI025 | I10: B | L10: 7 | M10: GAMMA
A11: 1 | D11: 0 | I11: B | L11: 8 | M11: GAMMA HALF
A12: 2 | B12: 01 | C12: matt vernickelt | D12: 26.36 | E12: B_FAERBUNG_AUSSEN | F12: FA001 | G12: B_FAERBUNG_INNEN | H12: FI001 | I12: B | L12: 9 | M12: 419 Lips
A13: 2 | B13: 03 | C13: Mattverchromt | D13: 26.36 | E13: B_FAERBUNG_AUSSEN | F13: FA003 | G13: B_FAERBUNG_INNEN | H13: FI003 | I13: B | L13: 10 | M13: AM Knop K7
A14: 2 | B14: 04 | C14: Glanzverchromt | D14: 26.36 | E14: B_FAERBUNG_AUSSEN | F14: FA004 | G14: B_FAERBUNG_INNEN | H14: FI004 | I14: B | L14: 11 | M14: RS-Sigma messing
A15: 2 | B15: 50 | C15: messing matt gebürstet | D15: 26.36 | E15: B_FAERBUNG_AUSSEN | F15: FA050 | G15: B_FAERBUNG_INNEN | H15: FI050 | I15: B | L15: 12 | M15: RS-Sigma messing Half
A16: 2 | B16: 51 | C16: messing poliert | D16: 26.36 | E16: B_FAERBUNG_AUSSEN | F16: FA051 | G16: B_FAERBUNG_INNEN | H16: FI051 | I16: B
A17: 2 | B17: 00 | C17: edelsahl matt | D17: 0 | E17: B_FAERBUNG_AUSSEN | G17: B_FAERBUNG_INNEN | I17: B
A18: 2 | D18: 0 | I18: B
A19: 3 | B19: 01 | C19: matt vernickelt | D19: 0 | E19: B_FAERBUNG_AUSSEN | F19: FA001 | G19: B_FAERBUNG_INNEN | H19: FI001 | I19: B
A20: 3 | B20: 03 | C20: Mattverchromt | D20: 26.36 | E20: B_FAERBUNG_AUSSEN | F20: FA003 | G20: B_FAERBUNG_INNEN | H20: FI003 | I20: B
A21: 3 | B21: 04 | C21: Glanzverchromt | D21: 26.36 | E21: B_FAERBUNG_AUSSEN | F21: FA004 | G21: B_FAERBUNG_INNEN | H21: FI004 | I21: B
A22: 3 | B22: 50 | C22: messing matt gebürstet | D22: 26.36 | E22: B_FAERBUNG_AUSSEN | F22: FA050 | G22: B_FAERBUNG_INNEN | H22: FI050 | I22: B
A23: 3 | B23: 51 | C23: messing poliert | D23: 26.36 | E23: B_FAERBUNG_AUSSEN | F23: FA051 | G23: B_FAERBUNG_INNEN | H23: FI051 | I23: B
A24: 3 | D24: 0 | I24: B
A25: 4 | B25: 01 | C25: matt vernickelt | D25: 0 | E25: B_FAERBUNG_AUSSEN | F25: FA001 | I25: B
A26: 4 | B26: 03 | C26: Mattverchromt | D26: 26.36 | E26: B_FAERBUNG_AUSSEN | F26: FA003 | I26: B
A27: 4 | B27: 04 | C27: Glanzverchromt | D27: 26.36 | E27: B_FAERBUNG_AUSSEN | F27: FA004 | I27: B
A28: 4 | B28: 05 | C28: messing matt gebürstet | D28: 26.36 | E28: B_FAERBUNG_AUSSEN | F28: FA005 | I28: B
A29: 4 | B29: 06 | C29: messing poliert | D29: 26.36 | E29: B_FAERBUNG_AUSSEN | F29: FA006 | I29: B
A30: 4 | B30: 07 | C30: messing brüniert | D30: 26.36 | E30: B_FAERBUNG_AUSSEN | F30: FA007 | I30: B
A31: 4 | B31: 09 | C31: altdeutsch | D31: 26.36 | E31: B_FAERBUNG_AUSSEN | F31: FA009 | I31: B
A32: 4 | B32: 25 | C32: vergoldet | D32: 26.36 | E32: B_FAERBUNG_AUSSEN | F32: FA025 | I32: B
A33: 4 | D33: 0 | I33: B
A34: 5 | B34: 01 | C34: matt vernickelt | D34: 26.36 | E34: B_FAERBUNG_AUSSEN | F34: FA001 | I34: B
A35: 5 | B35: 03 | C35: Mattverchromt | D35: 26.36 | E35: B_FAERBUNG_AUSSEN | F35: FA003 | I35: B
A36: 5 | B36: 04 | C36: Glanzverchromt | D36: 26.36 | E36: B_FAERBUNG_AUSSEN | F36: FA004 | I36: B
A37: 5 | B37: 50 | C37: messing matt gebürstet | D37: 26.36 | E37: B_FAERBUNG_AUSSEN | F37: FA050 | I37: B
A38: 5 | B38: 51 | C38: messing poliert | D38: 26.36 | E38: B_FAERBUNG_AUSSEN | F38: FA051 | I38: B
A39: 5 | B39: 00 | C39: edelsahl matt | D39: 0 | E39: B_FAERBUNG_AUSSEN | I39: B
A40: 5 | D40: 0 | I40: B
A41: 6 | B41: 01 | C41: matt vernickelt | D41: 0 | E41: B_FAERBUNG_AUSSEN | F41: FA001 | I41: B
A42: 6 | B42: 03 | C42: Mattverchromt | D42: 26.36 | E42: B_FAERBUNG_AUSSEN | F42: FA003 | I42: B
A43: 6 | B43: 04 | C43: Glanzverchromt | D43: 26.36 | E43: B_FAERBUNG_AUSSEN | F43: FA004 | I43: B
A44: 6 | B44: 50. | C44: messing matt gebürstet | D44: 26.36 | E44: B_FAERBUNG_AUSSEN | F44: FA050 | I44: B
A45: 6 | B45: 51 | C45: messing poliert | D45: 26.36 | E45: B_FAERBUNG_AUSSEN | F45: FA051 | I45: B
A46: 6 | D46: 0 | I46: B
A47: 7 | B47: 01 | C47: matt vernickelt | D47: 0 | E47: B_FAERBUNG_AUSSEN | F47: FA001 | G47: B_FAERBUNG_INNEN | H47: FI001 | I47: B
A48: 7 | B48: 04 | C48: Glanzverchromt | D48: 26.36 | E48: B_FAERBUNG_AUSSEN | F48: FA004 | G48: B_FAERBUNG_INNEN | H48: FI004 | I48: B
A49: 7 | B49: 05 | C49: messing matt gebürstet | D49: 26.36 | E49: B_FAERBUNG_AUSSEN | F49: FA005 | G49: B_FAERBUNG_INNEN | H49: FI005 | I49: B
A50: 7 | B50: 06 | C50: messing poliert | D50: 26.36 | E50: B_FAERBUNG_AUSSEN | F50: FA006 | G50: B_FAERBUNG_INNEN | H50: FI006 | I50: B
A51: 7 | B51: 07 | C51: messing brüniert | D51: 26.36 | E51: B_FAERBUNG_AUSSEN | F51: FA007 | G51: B_FAERBUNG_INNEN | H51: FI007 | I51: B
A52: 7 | B52: 09 | C52: altdeutsch | D52: 26.36 | E52: B_FAERBUNG_AUSSEN | F52: FA009 | G52: B_FAERBUNG_INNEN | H52: FI009 | I52: B
A53: 7 | B53: 25 | C53: vergoldet | D53: 26.36 | E53: B_FAERBUNG_AUSSEN | F53: FA025 | G53: B_FAERBUNG_INNEN | H53: FI025 | I53: B
A54: 7 | D54: 0 | I54: B
A55: 8 | B55: 01 | C55: matt vernickelt | D55: 0 | E55: B_FAERBUNG_AUSSEN | F55: FA001 | I55: B
A56: 8 | B56: 04 | C56: Glanzverchromt | D56: 26.36 | E56: B_FAERBUNG_AUSSEN | F56: FA004 | I56: B
A57: 8 | B57: 05 | C57: messing matt gebürstet | D57: 26.36 | E57: B_FAERBUNG_AUSSEN | F57: FA005 | I57: B
A58: 8 | B58: 06 | C58: messing poliert | D58: 26.36 | E58: B_FAERBUNG_AUSSEN | F58: FA006 | I58: B
A59: 8 | B59: 07 | C59: messing brüniert | D59: 26.36 | E59: B_FAERBUNG_AUSSEN | F59: FA007 | I59: B
A60: 8 | B60: 09 | C60: altdeutsch | D60: 26.36 | E60: B_FAERBUNG_AUSSEN | F60: FA009 | I60: B
A61: 8 | B61: 25 | C61: vergoldet | D61: 26.36 | E61: B_FAERBUNG_AUSSEN | F61: FA025 | I61: B
A62: 8 | D62: 0 | I62: B
A63: 9 | B63: 01 | C63: matt vernickelt | D63: 0 | E63: B_FAERBUNG_AUSSEN | F63: FA001 | G63: B_FAERBUNG_INNEN | H63: FI001 | I63: B
A64: 10 | B64: 01 | C64: matt vernickelt | D64: 0 | E64: B_FAERBUNG_AUSSEN | F64: FA001 | G64: B_FAERBUNG_INNEN | H64: FI001 | I64: B
A65: 10 | B65: 06 | C65: messing poliert | D65: 26.36 | E65: B_FAERBUNG_AUSSEN | F65: FA006 | G65: B_FAERBUNG_INNEN | H65: FI006 | I65: B
A66: 11 | B66: 01 | C66: matt vernickelt | D66: 0 | E66: B_FAERBUNG_AUSSEN | F66: FA001 | G66: B_FAERBUNG_INNEN | H66: FI001 | I66: B
A67: 11 | B67: 03 | C67: Mattverchromt | D67: 26.36 | E67: B_FAERBUNG_AUSSEN | F67: FA003 | G67: B_FAERBUNG_INNEN | H67: FI003 | I67: B
A68: 11 | B68: 04 | C68: Glanzverchromt | D68: 26.36 | E68: B_FAERBUNG_AUSSEN | F68: FA004 | G68: B_FAERBUNG_INNEN | H68: FI004 | I68: B
A69: 11 | B69: 05 | C69: messing matt gebürstet | D69: 26.36 | E69: B_FAERBUNG_AUSSEN | F69: FA005 | G69: B_FAERBUNG_INNEN | H69: FI005 | I69: B
A70: 11 | B70: 06 | C70: messing poliert | D70: 26.36 | E70: B_FAERBUNG_AUSSEN | F70: FA006 | G70: B_FAERBUNG_INNEN | H70: FI006 | I70: B
A71: 11 | B71: 07 | C71: messing brüniert | D71: 26.36 | E71: B_FAERBUNG_AUSSEN | F71: FA007 | G71: B_FAERBUNG_INNEN | H71: FI007 | I71: B
A72: 11 | B72: 09 | C72: altdeutsch | D72: 26.36 | E72: B_FAERBUNG_AUSSEN | F72: FA009 | G72: B_FAERBUNG_INNEN | H72: FI009 | I72: B
A73: 11 | B73: 17 | C73: Zwart | D73: 26.36 | E73: B_FAERBUNG_AUSSEN | F73: FA017 | G73: B_FAERBUNG_INNEN | H73: FI017 | I73: B
A74: 11 | B74: 25 | C74: vergoldet | D74: 26.36 | E74: B_FAERBUNG_AUSSEN | F74: FA025 | G74: B_FAERBUNG_INNEN | H74: FI025 | I74: B
A75: 12 | B75: 01 | C75: matt vernickelt | D75: 0 | E75: B_FAERBUNG_AUSSEN | F75: FA001 | I75: B
A76: 12 | B76: 03 | C76: Mattverchromt | D76: 26.36 | E76: B_FAERBUNG_AUSSEN | F76: FA003 | I76: B
A77: 12 | B77: 04 | C77: Glanzverchromt | D77: 26.36 | E77: B_FAERBUNG_AUSSEN | F77: FA004 | I77: B
A78: 12 | B78: 05 | C78: messing matt gebürstet | D78: 26.36 | E78: B_FAERBUNG_AUSSEN | F78: FA005 | I78: B
A79: 12 | B79: 06 | C79: messing poliert | D79: 26.36 | E79: B_FAERBUNG_AUSSEN | F79: FA006 | I79: B
A80: 12 | B80: 07 | C80: messing brüniert | D80: 26.36 | E80: B_FAERBUNG_AUSSEN | F80: FA007 | I80: B
A81: 12 | B81: 09 | C81: altdeutsch | D81: 26.36 | E81: B_FAERBUNG_AUSSEN | F81: FA009 | I81: B
A82: 12 | B82: 17 | C82: Zwart | D82: 26.36 | E82: B_FAERBUNG_AUSSEN | F82: FA017 | I82: B
A83: 12 | B83: 25 | C83: vergoldet | D83: 26.36 | E83: B_FAERBUNG_AUSSEN | F83: FA025 | I83: B

Sheet Längen (hidden)
A1: ID | B1: A | C1: B | D1: Gesamt | E1: Text | F1: VLA | G1: VLB | H1: Aufpreis | I1: Netto
A2: 0 | B2: * | C2: * | D2: * | F2: * | G2: * | H2: 0 | I2: B | J2: 0 | K2: ohne Längen | M2: Aufpreis | N2: €
A3: 1 | B3: 30 | C3: 30 | D3: =B3+C3 -> 60 | E3: =CONCATENATE(B3," / ",C3) -> 30 / 30 | F3: 0 | G3: 0 | H3: =(G3+F3)*N$3 -> 0 | I3: B | J3: 1 | K3: Messing | L3: N3 | M3: Messing <=100 | N3: 4.85 | O3: je 5mm
A4: 1 | B4: 30 | C4: 35 | D4: 65 | E4: 30 / 35 | F4: 0 | G4: 1 | H4: 4.85 | I4: B | J4: 2 | K4: Stahl | L4: N5 | M4: Messing > 100 | N4: 4.85 | O4: je 5mm
A5: 1 | B5: 30 | C5: 40 | D5: 70 | E5: 30 / 40 | F5: 0 | G5: 2 | H5: 9.7 | I5: B | J5: 3 | K5: Modular | L5: N5 | M5: Stahl alle langen | N5: 12.03 | O5: je 5mm
A6: 1 | B6: 30 | C6: 45 | D6: 75 | E6: 30 / 45 | F6: 0 | G6: 3 | H6: 14.55 | I6: B | J6: 4 | K6: Halb messing | L6: N3 | M6: duracast alle langen | N6: 12.03 | O6: je 5mm
A7: 1 | B7: 30 | C7: 50 | D7: 80 | E7: 30 / 50 | F7: 0 | G7: 4 | H7: 19.4 | I7: B | J7: 5 | K7: Kurz/Lang | M7: Modular alle langen | N7: 12.03 | O7: je 5mm
A8: 1 | B8: 30 | C8: 55 | D8: 85 | E8: 30 / 55 | F8: 0 | G8: 5 | H8: 24.25 | I8: B | J8: 6 | K8: Kurz/Kurz | M8: GAMMA | N8: 4.85 | O8: je 5mm
A9: 1 | B9: 30 | C9: 60 | D9: 90 | E9: 30 / 60 | F9: 0 | G9: 6 | H9: 29.1 | I9: B | J9: 7 | K9: Messing Sirius | L9: N10 | M9: GAMMA MODULAIR | N9: 12.03 | O9: je 5mm
A10: 1 | B10: 30 | C10: 65 | D10: 95 | E10: 30 / 65 | F10: 0 | G10: 7 | H10: 33.95 | I10: B | J10: 8 | K10: Halb messing Sirius | L10: N10 | M10: Sirius | N10: 4.85 | O10: je 5mm
A11: 1 | B11: 30 | C11: 70 | D11: 100 | E11: 30 / 70 | F11: 0 | G11: 8 | H11: 38.8 | I11: B | J11: 9 | K11: Knop K7 max 60/60 Sirius | L11: N10
A12: 1 | B12: 30 | C12: 75 | D12: 105 | E12: 30 / 75 | F12: 0 | G12: 9 | H12: 43.65 | I12: B | J12: 10 | K12: Halb Stahl | L12: N5
A13: 1 | B13: 30 | C13: 80 | D13: 110 | E13: 30 / 80 | F13: 0 | G13: 10 | H13: 48.5 | I13: B | J13: 17 | K13: Modular Halb | L13: N5
A14: 1 | B14: 35 | C14: 30 | D14: 65 | E14: 35 / 30 | F14: 1 | G14: 0 | H14: 4.85 | I14: B | J14: 18 | K14: Duracast | L14: N5 | P14: Uniek_Langen_Typen
A15: 1 | B15: 35 | C15: 35 | D15: 70 | E15: 35 / 35 | F15: 1 | G15: 1 | H15: 9.7 | I15: B | J15: 19 | K15: Halb Duracast | L15: N5 | P15: =_xlfn._xlws.SORT(_xlfn.UNIQUE(typen!H2:H732)) -> 0
A16: 1 | B16: 35 | C16: 40 | D16: 75 | E16: 35 / 40 | F16: 1 | G16: 2 | H16: 14.55 | I16: B | J16: 24 | K16: Messing vrijloop IX frl vanaf 35/35 | P16: 1
A17: 1 | B17: 35 | C17: 45 | D17: 80 | E17: 35 / 45 | F17: 1 | G17: 3 | H17: 19.4 | I17: B | J17: 25 | K17: Halb messing vrijloop IX | P17: 2
A18: 1 | B18: 35 | C18: 50 | D18: 85 | E18: 35 / 50 | F18: 1 | G18: 4 | H18: 24.25 | I18: B | J18: 26 | K18: Messing Keso | P18: 3
A19: 1 | B19: 35 | C19: 55 | D19: 90 | E19: 35 / 55 | F19: 1 | G19: 5 | H19: 29.1 | I19: B | J19: 27 | K19: Halb messing Keso | P19: 4
A20: 1 | B20: 35 | C20: 60 | D20: 95 | E20: 35 / 60 | F20: 1 | G20: 6 | H20: 33.95 | I20: B | J20: 30 | K20: Knop K7 max 60/60 | P20: 5
A21: 1 | B21: 35 | C21: 65 | D21: 100 | E21: 35 / 65 | F21: 1 | G21: 7 | H21: 38.8 | I21: B | J21: 31 | K21: Knop K7 Modulair max 60/60 | P21: 7
A22: 1 | B22: 35 | C22: 70 | D22: 105 | E22: 35 / 70 | F22: 1 | G22: 8 | H22: 43.65 | I22: B | J22: 33 | K22: MESSING IX MET SKG2 60/60 MAX | P22: 8
A23: 1 | B23: 35 | C23: 75 | D23: 110 | E23: 35 / 75 | F23: 1 | G23: 9 | H23: 48.5 | I23: B | J23: 34 | K23: Kort Lang Sirius | P23: 9
A24: 1 | B24: 35 | C24: 80 | D24: 115 | E24: 35 / 80 | F24: 1 | G24: 10 | H24: 53.35 | I24: B | J24: 35 | K24: 333H SKG2 Twin/Sat tot 0/50 | P24: 10
A25: 1 | B25: 40 | C25: 30 | D25: 70 | E25: 40 / 30 | F25: 2 | G25: 0 | H25: 9.7 | I25: B | P25: 17
A26: 1 | B26: 40 | C26: 35 | D26: 75 | E26: 40 / 35 | F26: 2 | G26: 1 | H26: 14.55 | I26: B | P26: 18
A27: 1 | B27: 40 | C27: 40 | D27: 80 | E27: 40 / 40 | F27: 2 | G27: 2 | H27: 19.4 | I27: B | J27: 12 | K27: S6 35 / 35 | L27: NVT | P27: 19
A28: 1 | B28: 40 | C28: 45 | D28: 85 | E28: 40 / 45 | F28: 2 | G28: 3 | H28: 24.25 | I28: B | J28: 13 | K28: S6 MX | L28: NVT | P28: 24
A29: 1 | B29: 40 | C29: 50 | D29: 90 | E29: 40 / 50 | F29: 2 | G29: 4 | H29: 29.1 | I29: B | J29: 14 | K29: S6H 35 | L29: NVT | P29: 25
A30: 1 | B30: 40 | C30: 55 | D30: 95 | E30: 40 / 55 | F30: 2 | G30: 5 | H30: 33.95 | I30: B | J30: 15 | K30: S6H MX | L30: NVT | P30: 26
A31: 1 | B31: 40 | C31: 60 | D31: 100 | E31: 40 / 60 | F31: 2 | G31: 6 | H31: 38.8 | I31: B | J31: 16 | K31: Blind | L31: NVT | P31: 27
A32: 1 | B32: 40 | C32: 65 | D32: 105 | E32: 40 / 65 | F32: 2 | G32: 7 | H32: 43.65 | I32: B | J32: 20 | K32: GAMMA | L32: NVT | P32: 30
A33: 1 | B33: 40 | C33: 70 | D33: 110 | E33: 40 / 70 | F33: 2 | G33: 8 | H33: 48.5 | I33: B | J33: 21 | K33: GAMMA HALF | L33: NVT | P33: 31
A34: 1 | B34: 40 | C34: 75 | D34: 115 | E34: 40 / 75 | F34: 2 | G34: 9 | H34: 53.35 | I34: B | J34: 22 | K34: GAMMA MODU. | L34: NVT | P34: 33
A35: 1 | B35: 40 | C35: 80 | D35: 120 | E35: 40 / 80 | F35: 2 | G35: 10 | H35: 58.2 | I35: B | J35: 23 | K35: GAMMA MODU.HALF | L35: NVT | P35: 34
A36: 1 | B36: 45 | C36: 30 | D36: 75 | E36: 45 / 30 | F36: 3 | G36: 0 | H36: 14.55 | I36: B | J36: 28 | K36: Modular vrijloop >35/35 | L36: NVT | P36: 35
A37: 1 | B37: 45 | C37: 35 | D37: 80 | E37: 45 / 35 | F37: 3 | G37: 1 | H37: 19.4 | I37: B | J37: 29 | K37: Modular Halb vrijloop >35 | L37: NVT | P37: L_Länge
A38: 1 | B38: 45 | C38: 40 | D38: 85 | E38: 45 / 40 | F38: 3 | G38: 2 | H38: 24.25 | I38: B
A39: 1 | B39: 45 | C39: 45 | D39: 90 | E39: 45 / 45 | F39: 3 | G39: 3 | H39: 29.1 | I39: B
A40: 1 | B40: 45 | C40: 50 | D40: 95 | E40: 45 / 50 | F40: 3 | G40: 4 | H40: 33.95 | I40: B
A41: 1 | B41: 45 | C41: 55 | D41: 100 | E41: 45 / 55 | F41: 3 | G41: 5 | H41: 38.8 | I41: B
A42: 1 | B42: 45 | C42: 60 | D42: 105 | E42: 45 / 60 | F42: 3 | G42: 6 | H42: 43.65 | I42: B
A43: 1 | B43: 45 | C43: 65 | D43: 110 | E43: 45 / 65 | F43: 3 | G43: 7 | H43: 48.5 | I43: B
A44: 1 | B44: 45 | C44: 70 | D44: 115 | E44: 45 / 70 | F44: 3 | G44: 8 | H44: 53.35 | I44: B
A45: 1 | B45: 50 | C45: 30 | D45: 80 | E45: 50 / 30 | F45: 4 | G45: 0 | H45: 19.4 | I45: B
A46: 1 | B46: 50 | C46: 35 | D46: 85 | E46: 50 / 35 | F46: 4 | G46: 1 | H46: 24.25 | I46: B
A47: 1 | B47: 50 | C47: 40 | D47: 90 | E47: 50 / 40 | F47: 4 | G47: 2 | H47: 29.1 | I47: B
A48: 1 | B48: 50 | C48: 45 | D48: 95 | E48: 50 / 45 | F48: 4 | G48: 3 | H48: 33.95 | I48: B
A49: 1 | B49: 50 | C49: 50 | D49: 100 | E49: 50 / 50 | F49: 4 | G49: 4 | H49: 38.8 | I49: B
A50: 1 | B50: 50 | C50: 55 | D50: 105 | E50: 50 / 55 | F50: 4 | G50: 5 | H50: 43.65 | I50: B
A51: 1 | B51: 50 | C51: 60 | D51: 110 | E51: 50 / 60 | F51: 4 | G51: 6 | H51: 48.5 | I51: B
A52: 1 | B52: 50 | C52: 65 | D52: 115 | E52: 50 / 65 | F52: 4 | G52: 7 | H52: 53.35 | I52: B
A53: 1 | B53: 50 | C53: 70 | D53: 120 | E53: 50 / 70 | F53: 4 | G53: 8 | H53: 58.2 | I53: B
A54: 1 | B54: 55 | C54: 30 | D54: 85 | E54: 55 / 30 | F54: 5 | G54: 0 | H54: 24.25 | I54: B
A55: 1 | B55: 55 | C55: 35 | D55: 90 | E55: 55 / 35 | F55: 5 | G55: 1 | H55: 29.1 | I55: B
A56: 1 | B56: 55 | C56: 40 | D56: 95 | E56: 55 / 40 | F56: 5 | G56: 2 | H56: 33.95 | I56: B
A57: 1 | B57: 55 | C57: 45 | D57: 100 | E57: 55 / 45 | F57: 5 | G57: 3 | H57: 38.8 | I57: B
A58: 1 | B58: 55 | C58: 50 | D58: 105 | E58: 55 / 50 | F58: 5 | G58: 4 | H58: 43.65 | I58: B
A59: 1 | B59: 55 | C59: 55 | D59: 110 | E59: 55 / 55 | F59: 5 | G59: 5 | H59: 48.5 | I59: B
A60: 1 | B60: 55 | C60: 60 | D60: 115 | E60: 55 / 60 | F60: 5 | G60: 6 | H60: 53.35 | I60: B
A61: 1 | B61: 55 | C61: 65 | D61: 120 | E61: 55 / 65 | F61: 5 | G61: 7 | H61: 58.2 | I61: B
A62: 1 | B62: 60 | C62: 30 | D62: 90 | E62: 60 / 30 | F62: 6 | G62: 0 | H62: 29.1 | I62: B
A63: 1 | B63: 60 | C63: 35 | D63: 95 | E63: 60 / 35 | F63: 6 | G63: 1 | H63: 33.95 | I63: B
A64: 1 | B64: 60 | C64: 40 | D64: 100 | E64: 60 / 40 | F64: 6 | G64: 2 | H64: 38.8 | I64: B
A65: 1 | B65: 60 | C65: 45 | D65: 105 | E65: 60 / 45 | F65: 6 | G65: 3 | H65: 43.65 | I65: B
A66: 1 | B66: 60 | C66: 50 | D66: 110 | E66: 60 / 50 | F66: 6 | G66: 4 | H66: 48.5 | I66: B
A67: 1 | B67: 60 | C67: 55 | D67: =B67+C67 -> 115 | E67: =CONCATENATE(B67," / ",C67) -> 60 / 55 | F67: 6 | G67: 5 | H67: =(G67+F67)*N$3 -> 53.35 | I67: B
A68: 1 | B68: 60 | C68: 60 | D68: 120 | E68: 60 / 60 | F68: 6 | G68: 6 | H68: 58.2 | I68: B
A69: 1 | B69: 65 | C69: 30 | D69: 95 | E69: 65 / 30 | F69: 7 | G69: 0 | H69: 33.95 | I69: B
A70: 1 | B70: 65 | C70: 35 | D70: 100 | E70: 65 / 35 | F70: 7 | G70: 1 | H70: 38.8 | I70: B
A71: 1 | B71: 65 | C71: 40 | D71: 105 | E71: 65 / 40 | F71: 7 | G71: 2 | H71: 43.65 | I71: B
A72: 1 | B72: 65 | C72: 45 | D72: 110 | E72: 65 / 45 | F72: 7 | G72: 3 | H72: 48.5 | I72: B
A73: 1 | B73: 65 | C73: 50 | D73: 115 | E73: 65 / 50 | F73: 7 | G73: 4 | H73: 53.35 | I73: B
A74: 1 | B74: 65 | C74: 55 | D74: 120 | E74: 65 / 55 | F74: 7 | G74: 5 | H74: 58.2 | I74: B
A75: 1 | B75: 70 | C75: 30 | D75: 100 | E75: 70 / 30 | F75: 8 | G75: 0 | H75: 38.8 | I75: B
A76: 1 | B76: 70 | C76: 35 | D76: 105 | E76: 70 / 35 | F76: 8 | G76: 1 | H76: 43.65 | I76: B
A77: 1 | B77: 70 | C77: 40 | D77: 110 | E77: 70 / 40 | F77: 8 | G77: 2 | H77: 48.5 | I77: B
A78: 1 | B78: 70 | C78: 45 | D78: 115 | E78: 70 / 45 | F78: 8 | G78: 3 | H78: 53.35 | I78: B
A79: 1 | B79: 70 | C79: 50 | D79: 120 | E79: 70 / 50 | F79: 8 | G79: 4 | H79: 58.2 | I79: B
A80: 1 | B80: 75 | C80: 30 | D80: 105 | E80: 75 / 30 | F80: 9 | G80: 0 | H80: 43.65 | I80: B
A81: 1 | B81: 75 | C81: 35 | D81: 110 | E81: 75 / 35 | F81: 9 | G81: 1 | H81: 48.5 | I81: B
A82: 1 | B82: 75 | C82: 40 | D82: 115 | E82: 75 / 40 | F82: 9 | G82: 2 | H82: 53.35 | I82: B
A83: 1 | B83: 80 | C83: 30 | D83: 110 | E83: 80 / 30 | F83: 10 | G83: 0 | H83: 48.5 | I83: B
A84: 1 | B84: 80 | C84: 35 | D84: 115 | E84: 80 / 35 | F84: 10 | G84: 1 | H84: 53.35 | I84: B
A85: 1 | B85: 80 | C85: 40 | D85: 120 | E85: 80 / 40 | F85: 10 | G85: 2 | H85: 58.2 | I85: B
A86: 2 | B86: 32 | C86: 32 | D86: 64 | E86: 32 / 32 | F86: =ROUNDDOWN((B86-30)/5,0) -> 0 | G86: =ROUNDDOWN((C86-30)/5,0) -> 0 | H86: 0 | I86: B
A87: 2 | B87: 32 | C87: 37 | D87: 69 | E87: 32 / 37 | F87: =ROUNDDOWN((B87-30)/5,0) -> 0 | G87: =ROUNDDOWN((C87-30)/5,0) -> 1 | H87: =(G87+F87)*N$5 -> 12.03 | I87: B
A88: 2 | B88: 32 | C88: 42 | D88: 74 | E88: 32 / 42 | F88: 0 | G88: 2 | H88: 24.06 | I88: B
A89: 2 | B89: 32 | C89: 47 | D89: 79 | E89: 32 / 47 | F89: 0 | G89: 3 | H89: 36.09 | I89: B
A90: 2 | B90: 32 | C90: 52 | D90: 84 | E90: 32 / 52 | F90: 0 | G90: 4 | H90: 48.12 | I90: B
A91: 2 | B91: 32 | C91: 57 | D91: 89 | E91: 32 / 57 | F91: 0 | G91: 5 | H91: 60.15 | I91: B
A92: 2 | B92: 32 | C92: 62 | D92: 94 | E92: 32 / 62 | F92: 0 | G92: 6 | H92: 72.18 | I92: B
A93: 2 | B93: 32 | C93: 67 | D93: 99 | E93: 32 / 67 | F93: 0 | G93: 7 | H93: 84.21 | I93: B
A94: 2 | B94: 32 | C94: 72 | D94: 104 | E94: 32 / 72 | F94: 0 | G94: 8 | H94: 96.24 | I94: B
A95: 2 | B95: 32 | C95: 82 | D95: 114 | E95: 32 / 82 | F95: 0 | G95: 10 | H95: 120.3 | I95: B
A96: 2 | B96: 32 | C96: 92 | D96: 124 | E96: 32 / 92 | F96: 0 | G96: 12 | H96: 144.36 | I96: B
A97: 2 | B97: 32 | C97: 102 | D97: 134 | E97: 32 / 102 | F97: 0 | G97: 14 | H97: 168.42 | I97: B
A98: 2 | B98: 32 | C98: 112 | D98: 144 | E98: 32 / 112 | F98: 0 | G98: 16 | H98: 192.48 | I98: B
A99: 2 | B99: 32 | C99: 122 | D99: 154 | E99: 32 / 122 | F99: 0 | G99: 18 | H99: 216.54 | I99: B
A100: 2 | B100: 32 | C100: 132 | D100: 164 | E100: 32 / 132 | F100: 0 | G100: 20 | H100: 240.6 | I100: B
A101: 2 | B101: 37 | C101: 32 | D101: 69 | E101: 37 / 32 | F101: 1 | G101: 0 | H101: 12.03 | I101: B
A102: 2 | B102: 37 | C102: 37 | D102: 74 | E102: 37 / 37 | F102: 1 | G102: 1 | H102: 24.06 | I102: B
A103: 2 | B103: 37 | C103: 42 | D103: 79 | E103: 37 / 42 | F103: 1 | G103: 2 | H103: 36.09 | I103: B
A104: 2 | B104: 37 | C104: 47 | D104: 84 | E104: 37 / 47 | F104: 1 | G104: 3 | H104: 48.12 | I104: B
A105: 2 | B105: 37 | C105: 52 | D105: 89 | E105: 37 / 52 | F105: 1 | G105: 4 | H105: 60.15 | I105: B
A106: 2 | B106: 37 | C106: 57 | D106: 94 | E106: 37 / 57 | F106: 1 | G106: 5 | H106: 72.18 | I106: B
A107: 2 | B107: 37 | C107: 62 | D107: 99 | E107: 37 / 62 | F107: 1 | G107: 6 | H107: 84.21 | I107: B
A108: 2 | B108: 37 | C108: 67 | D108: 104 | E108: 37 / 67 | F108: 1 | G108: 7 | H108: 96.24 | I108: B
A109: 2 | B109: 42 | C109: 32 | D109: 74 | E109: 42 / 32 | F109: 2 | G109: 0 | H109: 24.06 | I109: B
A110: 2 | B110: 42 | C110: 37 | D110: 79 | E110: 42 / 37 | F110: 2 | G110: 1 | H110: 36.09 | I110: B
A111: 2 | B111: 42 | C111: 42 | D111: 84 | E111: 42 / 42 | F111: 2 | G111: 2 | H111: 48.12 | I111: B
A112: 2 | B112: 42 | C112: 47 | D112: 89 | E112: 42 / 47 | F112: 2 | G112: 3 | H112: 60.15 | I112: B
A113: 2 | B113: 42 | C113: 52 | D113: 94 | E113: 42 / 52 | F113: 2 | G113: 4 | H113: 72.18 | I113: B
A114: 2 | B114: 42 | C114: 57 | D114: 99 | E114: 42 / 57 | F114: 2 | G114: 5 | H114: 84.21 | I114: B
A115: 2 | B115: 42 | C115: 62 | D115: 104 | E115: 42 / 62 | F115: 2 | G115: 6 | H115: 96.24 | I115: B
A116: 2 | B116: 42 | C116: 67 | D116: 109 | E116: 42 / 67 | F116: 2 | G116: 7 | H116: 108.27 | I116: B
A117: 2 | B117: 42 | C117: 72 | D117: 114 | E117: 42 / 72 | F117: 2 | G117: 8 | H117: 120.3 | I117: B
A118: 2 | B118: 42 | C118: 82 | D118: 124 | E118: 42 / 82 | F118: 2 | G118: 10 | H118: 144.36 | I118: B
A119: 2 | B119: 42 | C119: 92 | D119: 134 | E119: 42 / 92 | F119: 2 | G119: 12 | H119: 168.42 | I119: B
A120: 2 | B120: 42 | C120: 102 | D120: 144 | E120: 42 / 102 | F120: 2 | G120: 14 | H120: 192.48 | I120: B
A121: 2 | B121: 42 | C121: 112 | D121: 154 | E121: 42 / 112 | F121: 2 | G121: 16 | H121: 216.54 | I121: B
A122: 2 | B122: 42 | C122: 122 | D122: 164 | E122: 42 / 122 | F122: 2 | G122: 18 | H122: 240.6 | I122: B
A123: 2 | B123: 42 | C123: 132 | D123: 174 | E123: 42 / 132 | F123: 2 | G123: 20 | H123: 264.66 | I123: B
A124: 2 | B124: 47 | C124: 32 | D124: 79 | E124: 47 / 32 | F124: 3 | G124: 0 | H124: 36.09 | I124: B
A125: 2 | B125: 47 | C125: 37 | D125: 84 | E125: 47 / 37 | F125: 3 | G125: 1 | H125: 48.12 | I125: B
A126: 2 | B126: 47 | C126: 42 | D126: 89 | E126: 47 / 42 | F126: 3 | G126: 2 | H126: 60.15 | I126: B
A127: 2 | B127: 47 | C127: 47 | D127: 94 | E127: 47 / 47 | F127: 3 | G127: 3 | H127: 72.18 | I127: B
A128: 2 | B128: 47 | C128: 52 | D128: 99 | E128: 47 / 52 | F128: 3 | G128: 4 | H128: 84.21 | I128: B
A129: 2 | B129: 47 | C129: 57 | D129: 104 | E129: 47 / 57 | F129: 3 | G129: 5 | H129: 96.24 | I129: B
A130: 2 | B130: 47 | C130: 62 | D130: 109 | E130: 47 / 62 | F130: 3 | G130: 6 | H130: 108.27 | I130: B
A131: 2 | B131: 47 | C131: 67 | D131: =B131+C131 -> 114 | E131: =CONCATENATE(B131," / ",C131) -> 47 / 67 | F131: 3 | G131: 7 | H131: 120.3 | I131: B
A132: 2 | B132: 52 | C132: 32 | D132: 84 | E132: 52 / 32 | F132: 4 | G132: 0 | H132: 48.12 | I132: B
A133: 2 | B133: 52 | C133: 37 | D133: 89 | E133: 52 / 37 | F133: 4 | G133: 1 | H133: 60.15 | I133: B
A134: 2 | B134: 52 | C134: 42 | D134: 94 | E134: 52 / 42 | F134: 4 | G134: 2 | H134: 72.18 | I134: B
A135: 2 | B135: 52 | C135: 47 | D135: 99 | E135: 52 / 47 | F135: 4 | G135: 3 | H135: 84.21 | I135: B
A136: 2 | B136: 52 | C136: 52 | D136: 104 | E136: 52 / 52 | F136: 4 | G136: 4 | H136: 96.24 | I136: B
A137: 2 | B137: 52 | C137: 57 | D137: 109 | E137: 52 / 57 | F137: 4 | G137: 5 | H137: 108.27 | I137: B
A138: 2 | B138: 52 | C138: 62 | D138: 114 | E138: 52 / 62 | F138: 4 | G138: 6 | H138: 120.3 | I138: B
A139: 2 | B139: 52 | C139: 67 | D139: 119 | E139: 52 / 67 | F139: 4 | G139: 7 | H139: 132.33 | I139: B
A140: 2 | B140: 52 | C140: 72 | D140: 124 | E140: 52 / 72 | F140: 4 | G140: 8 | H140: 144.36 | I140: B
A141: 2 | B141: 52 | C141: 82 | D141: 134 | E141: 52 / 82 | F141: 4 | G141: 10 | H141: 168.42 | I141: B
A142: 2 | B142: 52 | C142: 92 | D142: 144 | E142: 52 / 92 | F142: 4 | G142: 12 | H142: 192.48 | I142: B
A143: 2 | B143: 52 | C143: 102 | D143: 154 | E143: 52 / 102 | F143: 4 | G143: 14 | H143: 216.54 | I143: B
A144: 2 | B144: 52 | C144: 112 | D144: 164 | E144: 52 / 112 | F144: 4 | G144: 16 | H144: 240.6 | I144: B
A145: 2 | B145: 52 | C145: 122 | D145: 174 | E145: 52 / 122 | F145: 4 | G145: 18 | H145: 264.66 | I145: B
A146: 2 | B146: 52 | C146: 132 | D146: 184 | E146: 52 / 132 | F146: 4 | G146: 20 | H146: 288.72 | I146: B
A147: 2 | B147: 57 | C147: 32 | D147: 89 | E147: 57 / 32 | F147: 5 | G147: 0 | H147: 60.15 | I147: B
A148: 2 | B148: 57 | C148: 37 | D148: 94 | E148: 57 / 37 | F148: 5 | G148: 1 | H148: 72.18 | I148: B
A149: 2 | B149: 57 | C149: 42 | D149: 99 | E149: 57 / 42 | F149: 5 | G149: 2 | H149: 84.21 | I149: B
A150: 2 | B150: 57 | C150: 47 | D150: 104 | E150: 57 / 47 | F150: 5 | G150: 3 | H150: 96.24 | I150: B
A151: 2 | B151: 57 | C151: 52 | D151: 109 | E151: 57 / 52 | F151: =ROUNDDOWN((B151-30)/5,0) -> 5 | G151: =ROUNDDOWN((C151-30)/5,0) -> 4 | H151: =(G151+F151)*N$5 -> 108.27 | I151: B
A152: 2 | B152: 57 | C152: 57 | D152: 114 | E152: 57 / 57 | F152: 5 | G152: 5 | H152: 120.3 | I152: B
A153: 2 | B153: 57 | C153: 62 | D153: 119 | E153: 57 / 62 | F153: 5 | G153: 6 | H153: 132.33 | I153: B
A154: 2 | B154: 57 | C154: 67 | D154: 124 | E154: 57 / 67 | F154: 5 | G154: 7 | H154: 144.36 | I154: B
A155: 2 | B155: 62 | C155: 32 | D155: 94 | E155: 62 / 32 | F155: 6 | G155: 0 | H155: 72.18 | I155: B
A156: 2 | B156: 62 | C156: 37 | D156: 99 | E156: 62 / 37 | F156: 6 | G156: 1 | H156: 84.21 | I156: B
A157: 2 | B157: 62 | C157: 42 | D157: 104 | E157: 62 / 42 | F157: 6 | G157: 2 | H157: 96.24 | I157: B
A158: 2 | B158: 62 | C158: 47 | D158: 109 | E158: 62 / 47 | F158: 6 | G158: 3 | H158: 108.27 | I158: B
A159: 2 | B159: 62 | C159: 52 | D159: 114 | E159: 62 / 52 | F159: 6 | G159: 4 | H159: 120.3 | I159: B
A160: 2 | B160: 62 | C160: 57 | D160: 119 | E160: 62 / 57 | F160: 6 | G160: 5 | H160: 132.33 | I160: B
A161: 2 | B161: 62 | C161: 62 | D161: 124 | E161: 62 / 62 | F161: 6 | G161: 6 | H161: 144.36 | I161: B
A162: 2 | B162: 62 | C162: 67 | D162: 129 | E162: 62 / 67 | F162: 6 | G162: 7 | H162: 156.39 | I162: B
A163: 2 | B163: 62 | C163: 72 | D163: 134 | E163: 62 / 72 | F163: 6 | G163: 8 | H163: 168.42 | I163: B
A164: 2 | B164: 62 | C164: 82 | D164: 144 | E164: 62 / 82 | F164: 6 | G164: 10 | H164: 192.48 | I164: B
A165: 2 | B165: 62 | C165: 92 | D165: 154 | E165: 62 / 92 | F165: 6 | G165: 12 | H165: 216.54 | I165: B
A166: 2 | B166: 62 | C166: 102 | D166: 164 | E166: 62 / 102 | F166: 6 | G166: 14 | H166: 240.6 | I166: B
A167: 2 | B167: 62 | C167: 112 | D167: 174 | E167: 62 / 112 | F167: 6 | G167: 16 | H167: 264.66 | I167: B
A168: 2 | B168: 62 | C168: 122 | D168: 184 | E168: 62 / 122 | F168: 6 | G168: 18 | H168: 288.72 | I168: B
A169: 2 | B169: 62 | C169: 132 | D169: 194 | E169: 62 / 132 | F169: 6 | G169: 20 | H169: 312.78 | I169: B
A170: 2 | B170: 67 | C170: 32 | D170: 99 | E170: 67 / 32 | F170: 7 | G170: 0 | H170: 84.21 | I170: B
A171: 2 | B171: 67 | C171: 37 | D171: 104 | E171: 67 / 37 | F171: 7 | G171: 1 | H171: 96.24 | I171: B
A172: 2 | B172: 67 | C172: 42 | D172: 109 | E172: 67 / 42 | F172: 7 | G172: 2 | H172: 108.27 | I172: B
A173: 2 | B173: 67 | C173: 47 | D173: 114 | E173: 67 / 47 | F173: 7 | G173: 3 | H173: 120.3 | I173: B
A174: 2 | B174: 67 | C174: 52 | D174: 119 | E174: 67 / 52 | F174: 7 | G174: 4 | H174: 132.33 | I174: B
A175: 2 | B175: 67 | C175: 57 | D175: 124 | E175: 67 / 57 | F175: 7 | G175: 5 | H175: 144.36 | I175: B
A176: 2 | B176: 67 | C176: 62 | D176: 129 | E176: 67 / 62 | F176: 7 | G176: 6 | H176: 156.39 | I176: B
A177: 2 | B177: 67 | C177: 67 | D177: 134 | E177: 67 / 67 | F177: 7 | G177: 7 | H177: 168.42 | I177: B
A178: 2 | B178: 72 | C178: 32 | D178: 104 | E178: 72 / 32 | F178: 8 | G178: 0 | H178: 96.24 | I178: B
A179: 2 | B179: 72 | C179: 42 | D179: 114 | E179: 72 / 42 | F179: 8 | G179: 2 | H179: 120.3 | I179: B
A180: 2 | B180: 72 | C180: 52 | D180: 124 | E180: 72 / 52 | F180: 8 | G180: 4 | H180: 144.36 | I180: B
A181: 2 | B181: 72 | C181: 62 | D181: 134 | E181: 72 / 62 | F181: 8 | G181: 6 | H181: 168.42 | I181: B
A182: 2 | B182: 72 | C182: 72 | D182: 144 | E182: 72 / 72 | F182: 8 | G182: 8 | H182: 192.48 | I182: B
A183: 2 | B183: 72 | C183: 82 | D183: 154 | E183: 72 / 82 | F183: 8 | G183: 10 | H183: 216.54 | I183: B
A184: 2 | B184: 72 | C184: 92 | D184: 164 | E184: 72 / 92 | F184: 8 | G184: 12 | H184: 240.6 | I184: B
A185: 2 | B185: 72 | C185: 102 | D185: 174 | E185: 72 / 102 | F185: 8 | G185: 14 | H185: 264.66 | I185: B
A186: 2 | B186: 72 | C186: 112 | D186: 184 | E186: 72 / 112 | F186: 8 | G186: 16 | H186: 288.72 | I186: B
A187: 2 | B187: 72 | C187: 122 | D187: 194 | E187: 72 / 122 | F187: 8 | G187: 18 | H187: 312.78 | I187: B
A188: 2 | B188: 72 | C188: 132 | D188: 204 | E188: 72 / 132 | F188: 8 | G188: 20 | H188: 336.84 | I188: B
A189: 2 | B189: 82 | C189: 32 | D189: 114 | E189: 82 / 32 | F189: 10 | G189: 0 | H189: 120.3 | I189: B
A190: 2 | B190: 82 | C190: 42 | D190: 124 | E190: 82 / 42 | F190: 10 | G190: 2 | H190: 144.36 | I190: B
A191: 2 | B191: 82 | C191: 52 | D191: 134 | E191: 82 / 52 | F191: 10 | G191: 4 | H191: 168.42 | I191: B
A192: 2 | B192: 82 | C192: 62 | D192: 144 | E192: 82 / 62 | F192: 10 | G192: 6 | H192: 192.48 | I192: B
A193: 2 | B193: 82 | C193: 72 | D193: 154 | E193: 82 / 72 | F193: 10 | G193: 8 | H193: 216.54 | I193: B
A194: 2 | B194: 82 | C194: 82 | D194: 164 | E194: 82 / 82 | F194: 10 | G194: 10 | H194: 240.6 | I194: B
A195: 2 | B195: 82 | C195: 92 | D195: =B195+C195 -> 174 | E195: =CONCATENATE(B195," / ",C195) -> 82 / 92 | F195: 10 | G195: 12 | H195: 264.66 | I195: B
A196: 2 | B196: 82 | C196: 102 | D196: 184 | E196: 82 / 102 | F196: 10 | G196: 14 | H196: 288.72 | I196: B
A197: 2 | B197: 82 | C197: 112 | D197: 194 | E197: 82 / 112 | F197: 10 | G197: 16 | H197: 312.78 | I197: B
A198: 2 | B198: 82 | C198: 122 | D198: 204 | E198: 82 / 122 | F198: 10 | G198: 18 | H198: 336.84 | I198: B
A199: 2 | B199: 82 | C199: 132 | D199: 214 | E199: 82 / 132 | F199: 10 | G199: 20 | H199: 360.9 | I199: B
A200: 2 | B200: 92 | C200: 32 | D200: 124 | E200: 92 / 32 | F200: 12 | G200: 0 | H200: 144.36 | I200: B
... 1492 more rows

Sheet SchAuf (hidden)
A1: System | B1: Frei pro Zyl | C1: Aufpreis | D1: Gruppen HS | E1: GHS | F1: Gefahr | G1: ES ohne zyl | H1: HS-GS ohne zyl | I1: GHS ohne zyl | J1: G ohne zyl | K1: Netto
A2: DIAMANT | B2: 0 | C2: 21.61 | D2: 32.19 | E2: 32.19 | F2: 0 | G2: 46.94 | H2: 46.94 | I2: 46.94 | K2: B
A3: IX GAMMA | B3: 3 | C3: 14.93 | D3: 25.16 | E3: 25.16 | F3: 0 | G3: 35.53 | H3: 35.53 | I3: 35.53 | K3: B
A4: IX10KG | B4: 3 | C4: 14.93 | D4: 25.16 | E4: 25.16 | F4: 0 | G4: 35.53 | H4: 35.53 | I4: 35.53 | K4: B
A5: IX5HT | B5: 3 | C5: 14.93 | D5: 25.16 | E5: 25.16 | F5: 0 | G5: 35.53 | H5: 35.53 | I5: 35.53 | K5: B
A6: IX6KG | B6: 3 | C6: 14.93 | D6: 25.16 | E6: 25.16 | F6: 0 | G6: 35.53 | H6: 35.53 | I6: 35.53 | K6: B
A7: IX6SR | B7: 3 | C7: 14.93 | D7: 25.16 | E7: 25.16 | F7: 0 | G7: 35.53 | H7: 35.53 | I7: 35.53 | K7: B
A8: IXHT | B8: 3 | C8: 14.93 | D8: 25.16 | E8: 25.16 | F8: 0 | G8: 35.53 | H8: 35.53 | I8: 35.53 | K8: B
A9: IXSAT | B9: 3 | C9: 14.93 | D9: 25.16 | E9: 25.16 | F9: 0 | G9: 35.53 | H9: 35.53 | I9: 35.53 | K9: B
A10: IXTECO | B10: 3 | C10: 14.93 | D10: 25.16 | E10: 25.16 | F10: 0 | G10: 35.53 | H10: 35.53 | I10: 35.53 | K10: B
A11: IXTWIDO | B11: 3 | C11: 14.93 | D11: 25.16 | E11: 25.16 | F11: 0 | G11: 35.53 | H11: 35.53 | I11: 35.53 | K11: B
A12: IXTWINSTAR | B12: 3 | C12: 14.93 | D12: 25.16 | E12: 25.16 | F12: 0 | G12: 35.53 | H12: 35.53 | I12: 35.53 | K12: B
A13: IXTWINSTAR-C | B13: 3 | C13: 14.93 | D13: 25.16 | E13: 25.16 | F13: 0 | G13: 35.53 | H13: 35.53 | I13: 35.53 | K13: B
A14: RS SIGMA | B14: 3 | C14: 9.8 | D14: 19.44 | E14: 19.44 | F14: 0 | G14: 23.25 | H14: 23.25 | I14: 23.25 | K14: B
A15: rs SIRIUS | B15: 0 | C15: 5.37 | D15: 18.96 | E15: 18.96 | F15: 0 | G15: 23.25 | H15: 23.25 | I15: 23.25 | K15: B
A16: RS5 | B16: 3 | C16: 9.8 | D16: 19.44 | E16: 19.44 | F16: 0 | G16: 23.25 | H16: 23.25 | I16: 23.25 | K16: B
A17: RS8 | B17: 3 | C17: 9.8 | D17: 19.44 | E17: 19.44 | F17: 0 | G17: 23.25 | H17: 23.25 | I17: 23.25 | K17: B

Sheet preis (hidden)

Sheet Start
C1: DOM-XL 2024 V9.0
C18: Klant | F18: Project
C19: Klantnummer | D19: 617441 | F19: Versienummer
C20: Telefoon | F20: Postcode
C21: Contactpersoon | F21: Woonplaats
C22: Straat | F22: Provincie
C23: Postcode
C24: Woonplaats | F24: Referentie
C25: Provincie
C27: Bijzonderheden
J30: we domore for security

Sheet S-Plan
L1: Aantal
L3: Type
L7: Omschrijving
L8: Sleutelnummer
D9: !!Niet in DOM-plan!! | F9: Aantal
A10: Positie | B10: Status | C10: Deur-Ruimteomschrijving | D10: Vrije invoer | E10: Sleutelnummer | F10: Cil. | G10: Sl. | I10: Cilindertype | J10: Uitvoering | K10: Lengte (A / B) | L10: kleur | N10: PAusf. | O10: PLänge | P10: PFrb
A11: 1
A12: 2
A13: 3
A14: 4
A15: 5
A16: 6
A17: 7
A18: 8
A19: 9
A20: 10
A21: 11
A22: 12
A23: 13
A24: 14
A25: 15
A26: 16
A27: 17
A28: 18
A29: 19
A30: 20

Sheet Ausf (hidden)
A1: ID | B1: Kurzzeichen | C1: Beschreibung | D1: Tabelle | E1: Aufpreis | F1: Merkmal1 | G1: Wert1 | H1: Merkmal2 | I1: Wert2 | J1: Merkmal3 | K1: Wert3 | L1: Merkmal4 | M1: Wert4 | N1: Merkmal5 | O1: Wert5 | P1: Netto | Q1: Tabelle | R1: Beschreibung
A2: 1 | B2: K1 | C2: Knauf | E2: 0 | F2: B_KNAUFAUSF | G2: KNK1 | P2: B | Q2: 1 | R2: Ohne G Fuktion Doppelzyl
A3: 1 | B3: K2 | C3: Knauf | E3: 0 | F3: B_KNAUFAUSF | G3: KNK2 | P3: B | Q3: 2 | R3: Mit G Funktion Doppelzyl
A4: 1 | B4: K3 | C4: Knauf | E4: 0 | F4: B_KNAUFAUSF | G4: KNK3 | P4: B | Q4: 3 | R4: K2
A5: 1 | B5: K4 | C5: Knauf | E5: 0 | F5: B_KNAUFAUSF | G5: KNK4 | P5: B | Q5: 4 | R5: 382
A6: 1 | B6: K6 | C6: Knauf | E6: 0 | F6: B_KNAUFAUSF | G6: KNK6 | P6: B | Q6: 5 | R6: 393
A7: 1 | B7: SEW | C7: Seewasser | D7: Ohne G Fuktion Doppelzyl | E7: 0 | F7: B_SEEWASSERAUSF | G7: SEW | H7: B_STULPSCHRAUBENAUSF | I7: SA80 SEEW | J7: B_FAERBUNG_AUSSEN | K7: FA004 | L7: B_FAERBUNG_INNEN | M7: FI004 | P7: B | Q7: 6 | R7: 419/1
A8: 2 | B8: K1 | C8: Knauf | E8: 0 | F8: B_KNAUFAUSF | G8: KNK1 | P8: B | Q8: 7 | R8: 777
A9: 2 | B9: K2 | C9: Knauf | E9: 0 | F9: B_KNAUFAUSF | G9: KNK2 | P9: B | Q9: 8 | R9: Halbzyl
A10: 2 | B10: K3 | C10: Knauf | E10: 0 | F10: B_KNAUFAUSF | G10: KNK3 | P10: B | Q10: 9 | R10: gelöscht
A11: 2 | B11: K4 | C11: Knauf | E11: 0 | F11: B_KNAUFAUSF | G11: KNK4 | P11: B | Q11: 10 | R11: 3020
A12: 2 | B12: K6 | C12: Knauf | E12: 0 | F12: B_KNAUFAUSF | G12: KNK6 | P12: B | Q12: 11 | R12: 333RI
A13: 2 | B13: SEW | C13: Seewasser | D13: Mit G Funktion Doppelzyl | E13: 0 | F13: B_SEEWASSERAUSF | G13: SEW | H13: B_STULPSCHRAUBENAUSF | I13: SA80 SEEW | J13: B_FAERBUNG_AUSSEN | K13: FA004 | L13: B_FAERBUNG_INNEN | M13: FI004 | P13: B | Q13: 12 | R13: Blindzyl
A14: 3 | B14: SEW | C14: Seewasser | D14: Ohne G Fuktion Doppelzyl | E14: 0 | F14: B_SEEWASSERAUSF | G14: SEW | H14: B_STULPSCHRAUBENAUSF | I14: SA80 SEEW | J14: B_FAERBUNG_AUSSEN | K14: FA004 | L14: B_FAERBUNG_INNEN | M14: FI004 | P14: B | Q14: 13 | R14: Ohne T und G
A15: 4 | B15: LI | D15: 382 | E15: 0 | F15: B_AUSFUEHRUNG_LI_RE | G15: AGLI | H15: B_TEILENR_HEBEL_10_8_BAU | I15: 200013F013 | P15: B | Q15: 14 | R15: VAR
A16: 4 | B16: RE | D16: 382 | E16: 0 | F16: B_AUSFUEHRUNG_LI_RE | G16: AGRE | H16: B_TEILENR_HEBEL_10_8_BAU | I16: 200013F013 | P16: B | Q16: 15 | R16: Cod ES fü Enet
A17: 4 | B17: SD-LI | C17: Zahnrad Schlüsseldepot | D17: 382 | E17: 0 | F17: B_AUSFUEHRUNG_LI_RE | G17: AGLI | H17: B_TEILENR_HEBEL_10_8_BAU | I17: 200013F013 | J17: B_ZUBEHOER_SCHRANK | K17: SD | P17: B | Q17: 16 | R17: 555
A18: 4 | B18: SD-RE | C18: Zahnrad Schlüsseldepot | D18: 382 | E18: 0 | F18: B_AUSFUEHRUNG_LI_RE | G18: AGRE | H18: B_TEILENR_HEBEL_10_8_BAU | I18: 200013F013 | J18: B_ZUBEHOER_SCHRANK | K18: SD | P18: B
A19: 5 | B19: 393/1 - 1 x 90° | C19: Schlüsseldrehweg | D19: 393 | E19: 0 | F19: B_SCHALTERAUSF | G19: 2S/FE STE | P19: B
A20: 5 | B20: 393/2 - 1 x 90° rückfedernd | C20: Schlüsseldrehweg | D20: 393 | E20: 0 | F20: B_SCHALTERAUSF | G20: 2S/RE STE | P20: B
A21: 5 | B21: 393/3 - 1 x 360° 90° | C21: Schlüsseldrehweg | D21: 393 | E21: 0 | F21: B_SCHALTERAUSF | G21: 2S/1X STE | P21: B
A22: 5 | B22: 393/4 - 2 x 90° | C22: Schlüsseldrehweg | D22: 393 | E22: 0 | F22: B_SCHALTERAUSF | G22: 2S/2X STE | P22: B
A23: 6 | B23: A | C23: Gewinde - Mitnehmer | D23: 419/1 | E23: 0 | F23: B_MITNEHMERAUSF_419 | G23: CMA | P23: B
A24: 6 | B24: B | C24: Gewinde - Mitnehmer | D24: 419/1 | E24: 0 | F24: B_MITNEHMERAUSF_419 | G24: CMB | P24: B
A25: 6 | B25: C | C25: Gewinde - Mitnehmer | D25: 419/1 | E25: 0 | F25: B_MITNEHMERAUSF_419 | G25: CMC | P25: B
A26: 6 | B26: D | C26: Gewinde - Mitnehmer | D26: 419/1 | E26: 0 | F26: B_MITNEHMERAUSF_419 | G26: CMD | P26: B
A27: 6 | B27: E | C27: Gewinde - Mitnehmer | D27: 419/1 | E27: 0 | F27: B_MITNEHMERAUSF_419 | G27: CME | P27: B
A28: 6 | B28: F | C28: Gewinde - Mitnehmer | D28: 419/1 | E28: 0 | F28: B_MITNEHMERAUSF_419 | G28: CMF | P28: B
A29: 6 | B29: G | C29: Gewinde - Mitnehmer | D29: 419/1 | E29: 0 | F29: B_MITNEHMERAUSF_419 | G29: CMG | P29: B
A30: 8 | B30: SEW | C30: Seewasser | D30: Ohne G Fuktion Halbzyl | E30: 0 | F30: B_SEEWASSERAUSF | G30: SEW | H30: B_STULPSCHRAUBENAUSF | I30: SA80 SEEW | J30: B_FAERBUNG_AUSSEN | K30: FA004 | P30: B
A31: 14 | B31: BLN | C31: Einseitig Blind einseitig normal | D31: VAR | E31: 0 | F31: B_VARIOAUSF_AUSSEN | G31: VAN | H31: B_VARIOAUSF_INNEN | I31: VIBL | P31: B
A32: 14 | B32: BLS | C32: Eins. Blind, Eins SS | D32: VAR | E32: 0 | F32: B_VARIOAUSF_AUSSEN | G32: VAS | H32: B_VARIOAUSF_INNEN | I32: VIBL | P32: B
A33: 14 | B33: SN | C33: Eins SS Eins Normal | D33: VAR | E33: 0 | F33: B_VARIOAUSF_AUSSEN | G33: VAS | H33: B_VARIOAUSF_INNEN | I33: VIN | P33: B
A34: 14 | B34: SS | C34: SS | D34: VAR | E34: 0 | F34: B_VARIOAUSF_AUSSEN | G34: VAS | H34: B_VARIOAUSF_INNEN | I34: VIS | P34: B
A35: 16 | B35: RPP | E35: 0 | F35: B_AUSFUEHRUNG_ROHR_PLATTE | G35: RPP | P35: B
A36: 16 | B36: RPR35 | E36: 0 | F36: B_AUSFUEHRUNG_ROHR_PLATTE | G36: RPR35 | P36: B
A37: 16 | B37: RPR38 | E37: 0 | F37: B_AUSFUEHRUNG_ROHR_PLATTE | G37: RPR38 | P37: B
A38: 16 | B38: RPR43 | E38: 0 | F38: B_AUSFUEHRUNG_ROHR_PLATTE | G38: RPR43 | P38: B
A39: 16 | B39: RPR48 | E39: 0 | F39: B_AUSFUEHRUNG_ROHR_PLATTE | G39: RPR48 | P39: B
A40: 16 | B40: RPR53 | E40: 0 | F40: B_AUSFUEHRUNG_ROHR_PLATTE | G40: RPR53 | P40: B
A41: 16 | B41: RPR58 | E41: 0 | F41: B_AUSFUEHRUNG_ROHR_PLATTE | G41: RPR58 | P41: B
A42: 16 | B42: RPR63 | E42: 0 | F42: B_AUSFUEHRUNG_ROHR_PLATTE | G42: RPR63 | P42: B
A43: 16 | B43: RPR68 | E43: 0 | F43: B_AUSFUEHRUNG_ROHR_PLATTE | G43: RPR68 | P43: B
A44: 16 | B44: RPR73 | E44: 0 | F44: B_AUSFUEHRUNG_ROHR_PLATTE | G44: RPR73 | P44: B
A45: 16 | B45: RPR78 | E45: 0 | F45: B_AUSFUEHRUNG_ROHR_PLATTE | G45: RPR78 | P45: B
A46: 16 | B46: RPR83 | E46: 0 | F46: B_AUSFUEHRUNG_ROHR_PLATTE | G46: RPR83 | P46: B
A47: 18 | B47: K6 | C47: Knauf | E47: 0 | F47: B_KNAUFAUSF | G47: KNK6 | P47: B
A48: 19 | B48: DM-25 | C48: DOORMAAT | E48: 0 | F48: B_DORNMASS | G48: DO25 | P48: B
A49: 19 | B49: DM-30 | C49: DOORMAAT | E49: 0 | F49: B_DORNMASS | G49: DO30 | P49: B
A50: 19 | B50: DM-35 | C50: DOORMAAT | E50: 0 | F50: B_DORNMASS | G50: DO35 | P50: B
A51: 19 | B51: DM-40 | C51: DOORMAAT | E51: 0 | F51: B_DORNMASS | G51: DO40 | P51: B
A52: 19 | B52: DM-45 | C52: DOORMAAT | E52: 0 | F52: B_DORNMASS | G52: DO45 | P52: B
A53: 19 | B53: DM-50 | C53: DOORMAAT | E53: 0 | F53: B_DORNMASS | G53: DO50 | P53: B
A54: 20 | B54: SEW | C54: Seewasser | D54: Ohne G Fuktion Doppelzyl | E54: 0 | F54: B_SEEWASSERAUSF | G54: SEW | H54: B_STULPSCHRAUBENAUSF | I54: SA80 SEEW | J54: B_FAERBUNG_AUSSEN | K54: FA004 | L54: B_FAERBUNG_INNEN | M54: FI004 | P54: B
A55: 21 | B55: Dwangsl. Ja | C55: Dwangs.-Ja | E55: 0 | F55: B_Verriegelung | G55: VRZV | P55: B
A56: 21 | B56: Dwangsl. Nee | C56: Dwangsl.-Nee | E56: 0 | F56: B_Verriegelung | G56: VRSV | P56: B
A57: 2 | B57: G | C57: Gefahrenfunktion mit sep. Gefahrenschlüssel | D57: Mit G Funktion Doppelzyl | E57: 0 | F57: B_FUNKTIONEN | G57: FUG | P57: B
A58: 11 | B58: RI10 | D58: 333RI | E58: 0 | F58: B_MITNEHMERAUSF | G58: MIRI10 | P58: B
A59: 11 | B59: RI14 | D59: 333RI | E59: 0 | F59: B_MITNEHMERAUSF | G59: MIRI14 | P59: B
A60: 12 | B60: 52-144 mm | E60: 0 | P60: B
A61: 17 | B61: A | E61: 0 | F61: B_MITNEHMERAUSF_419 | G61: CMA | P61: B
A62: 17 | B62: A TOYOKO | E62: 0 | F62: B_MITNEHMERAUSF_419 | G62: CMA TOYOKO | P62: B
A63: 17 | B63: B | E63: 0 | F63: B_MITNEHMERAUSF_419 | G63: CMB | P63: B
A64: 17 | B64: C | E64: 0 | F64: B_MITNEHMERAUSF_419 | G64: CMC | P64: B
A65: 17 | B65: D | E65: 0 | F65: B_MITNEHMERAUSF_419 | G65: CMD | P65: B
A66: 17 | B66: E | E66: 0 | F66: B_MITNEHMERAUSF_419 | G66: CME | P66: B
A67: 17 | B67: F | E67: 0 | F67: B_MITNEHMERAUSF_419 | G67: CMF | P67: B
A68: 17 | B68: G | E68: 0 | F68: B_MITNEHMERAUSF_419 | G68: CMG | P68: B
A69: 17 | B69: H | E69: 0 | F69: B_MITNEHMERAUSF_419 | G69: CMH | P69: B
A70: 17 | B70: X | E70: 0 | F70: B_MITNEHMERAUSF_419 | G70: CMX | P70: B
A71: 17 | B71: Y | E71: 0 | F71: B_MITNEHMERAUSF_419 | G71: CMY | P71: B
A72: 17 | B72: Z | E72: 0 | F72: B_MITNEHMERAUSF_419 | G72: CMZ | P72: B
A73: 18 | B73: K2 | C73: Knauf | E73: 7.93 | F73: B_KNAUFAUSF | G73: KNK2 | P73: B
A74: 18 | B74: K3 | C74: Knauf | E74: 7.93 | F74: B_KNAUFAUSF | G74: KNK3 | P74: B
A75: 18 | B75: K4 | C75: Knauf | E75: 7.93 | F75: B_KNAUFAUSF | G75: KNK4 | P75: B
A76: 1 | B76: T | C76: Beidseitig | D76: Ohne G Fuktion Doppelzyl | E76: 0 | F76: B_FUNKTIONEN | G76: FUT | P76: B
A77: 2 | B77: T | C77: Beidseitig | D77: Mit G Funktion Doppelzyl | E77: 0 | F77: B_FUNKTIONEN | G77: FUT | K77: FA004 | P77: B
A78: 7 | B78: 60 mm HB | C78: Bügelhöhe 60 mm | D78: 777 | E78: 0 | F78: B_BUEGEL | G78: BULANG | P78: B
A79: 3 | B79: Zorgfunctie | C79: Zorgfunctie | D79: Zorgfunctie | E79: 15.36 | F79: B_SCHLIESSFUNKTION_AU_IN | G79: SHJA | P79: B
A80: 1 | B80: Slipkoppeling | C80: Slipkoppeling | E80: 0 | P80: B
A81: 2 | B81: Slipkoppeling | C81: Slipkoppeling | E81: 0 | P81: B

Sheet typen (hidden)
A1: |rs SIRIUS | B1: =VLOOKUP($A1,$A3:$AO751,2,0) -> 0 | C1: =VLOOKUP($A1,$A3:$AO751,3,0) -> rs SIRIUS | D1: =VLOOKUP($A1,$A3:$AO751,4,0) -> 120.91 | E1: =VLOOKUP($A1,$A3:$AO751,5,0) -> 120.91 | F1: =VLOOKUP($A1,$A3:$AO751,6,0) -> 120.91 | G1: =VLOOKUP($A1,$A3:$AO751,7,0) -> 362.73 | H1: =VLOOKUP($A1,$A3:$AO751,8,0) -> 0 | I1: =VLOOKUP($A1,$A3:$AO751,9,0) -> 0 | J1: =VLOOKUP($A1,$A3:$AO751,10,0) -> 0 | K1: =VLOOKUP($A1,$A3:$AO751,11,0) -> 0 | L1: =VLOOKUP($A1,$A3:$AO751,12,0) -> N | M1: =VLOOKUP($A1,$A3:$AO751,13,0) -> 235271 | N1: =VLOOKUP($A1,$A3:$AO751,14,0) -> 0 | O1: =VLOOKUP($A1,$A3:$AO751,15,0) -> 0 | P1: =VLOOKUP($A1,$A3:$AO751,16,0) -> 0 | Q1: =VLOOKUP($A1,$A3:$AO751,17,0) -> 0 | R1: =VLOOKUP($A1,$A3:$AO751,18,0) -> 0 | S1: =VLOOKUP($A1,$A3:$AO751,19,0) -> 0 | T1: =VLOOKUP($A1,$A3:$AO751,20,0) -> 0 | U1: =VLOOKUP($A1,$A3:$AO751,21,0) -> 0 | V1: =VLOOKUP($A1,$A3:$AO751,22,0) -> 0 | W1: =VLOOKUP($A1,$A3:$AO751,23,0) -> 0 | X1: =VLOOKUP($A1,$A3:$AO751,24,0) -> 0 | Y1: =VLOOKUP($A1,$A3:$AO751,25,0) -> 0 | Z1: =VLOOKUP($A1,$A3:$AO751,26,0) -> 0 | AA1: =VLOOKUP($A1,$A3:$AO751,27,0) -> 0 | AB1: =VLOOKUP($A1,$A3:$AO751,28,0) -> 0 | AC1: =VLOOKUP($A1,$A3:$AO751,29,0) -> 0 | AD1: =VLOOKUP($A1,$A3:$AO751,30,0) -> 0 | AE1: =VLOOKUP($A1,$A3:$AO751,31,0) -> 0 | AF1: =VLOOKUP($A1,$A3:$AO751,32,0) -> 0 | AG1: =VLOOKUP($A1,$A3:$AO751,33,0) -> 0 | AH1: =VLOOKUP($A1,$A3:$AO751,34,0) -> B | AI1: =VLOOKUP($A1,$A3:$AO751,35,0) -> 0 | AJ1: =VLOOKUP($A1,$A3:$AO751,36,0) -> 0 | AK1: =VLOOKUP($A1,$A3:$AO751,37,0) -> 0 | AL1: Aufpreis Z nach HS | AM1: Aufpreis HS nachGHS | AO1: =VLOOKUP($A1,$A3:$AO751,41,0) -> M | AP1: =VLOOKUP($A1,$A3:$AP551,42,0) -> 
A2: Typ SYS | B2: Typ | C2: System | D2: PZ/ZHS | E2: PHS | F2: PGHS | G2: P? | H2: L_Länge | I2: L_Farbe | J2: l_ausf | K2: Doppel | L2: Neuanlage | M2: MATERIAL | N2: Merkmal1 | O2: Mwert1 | P2: Merkmal2 | Q2: Mwert2 | R2: Merkmal3 | S2: Mwert3 | T2: Merkmal4 | U2: Mwert4 | V2: Merkmal5 | W2: Mwert5 | X2: Merkmal6 | Y2: Mwert6 | Z2: Merkmal7 | AA2: Mwert7 | AB2: Merkmal8 | AC2: Mwert8 | AD2: Merkmal9 | AE2: Mwert9 | AF2: Merkmal10 | AG2: Mwert10 | AH2: Netto | AI2: ENET | AJ2: COD ES | AK2: Preisanteil merkmale | AN2: Doppel | AO2: Variante ? | AP2: Text | AQ2: fam | AR2: sorteer | AS2: sort
A3: =CONCATENATE(B3,"|",C3) -> 333|? | B3: 333 | C3: ? | D3: 0 | E3: 0 | F3: 0 | G3: =D3+E3+F3 -> 0 | H3: 0 | I3: 0 | J3: 0 | K3: D | L3: N | AH3: B | AI3: x | AK3: 0 | AO3: M | AR3: 1 | AS3: 1
A4: 333H|? | B4: 333H | C4: ? | D4: 0 | E4: 0 | F4: 0 | G4: 0 | H4: 0 | I4: 0 | J4: 0 | K4: H | L4: N | AH4: B | AI4: x | AK4: 0 | AO4: M | AR4: 2 | AS4: 2
A5: 333K6|? | B5: 333K6 | C5: ? | D5: 0 | E5: 0 | F5: 0 | G5: 0 | H5: 0 | I5: 0 | J5: 0 | K5: D | L5: N | AH5: B | AK5: 0 | AO5: M | AR5: 3 | AS5: 3
A6: 333T|? | B6: 333T | C6: ? | D6: 0 | E6: 0 | F6: 0 | G6: 0 | H6: 0 | I6: 0 | J6: 0 | K6: D | L6: N | AH6: B | AK6: 0 | AO6: M | AR6: 4 | AS6: 4
A7: 333M|? | B7: 333M | C7: ? | D7: 0 | E7: 0 | F7: 0 | G7: 0 | H7: 0 | I7: 0 | J7: 0 | K7: D | L7: N | AH7: B | AI7: x | AK7: 0 | AO7: M | AR7: 5 | AS7: 5
A8: 333K2|? | B8: 333K2 | C8: ? | D8: 0 | E8: 0 | F8: 0 | G8: 0 | H8: 0 | I8: 0 | J8: 0 | K8: D | L8: N | AH8: B | AK8: 0 | AO8: M | AR8: 6 | AS8: 6
A9: 333KK|? | B9: 333KK | C9: ? | D9: 0 | E9: 0 | F9: 0 | G9: 0 | H9: 0 | I9: 0 | J9: 0 | K9: D | L9: N | AH9: B | AI9: x | AK9: 0 | AO9: M | AR9: 7 | AS9: 7
A10: 333KL|? | B10: 333KL | C10: ? | D10: 0 | E10: 0 | F10: 0 | G10: 0 | H10: 0 | I10: 0 | J10: 0 | K10: D | L10: N | AH10: B | AI10: x | AK10: 0 | AO10: M | AR10: 8 | AS10: 8
A11: 472|? | B11: 472 | C11: ? | D11: 0 | E11: 0 | F11: 0 | G11: 0 | H11: 0 | I11: 0 | J11: 0 | K11: D | L11: N | AH11: B | AK11: 0 | AO11: M | AR11: 9 | AS11: 9
A12: 472K6|? | B12: 472K6 | C12: ? | D12: 0 | E12: 0 | F12: 0 | G12: 0 | H12: 0 | I12: 0 | J12: 0 | K12: D | L12: N | AH12: B | AK12: 0 | AO12: M | AR12: 10 | AS12: 10
A13: 555P|? | B13: 555P | C13: ? | D13: 0 | E13: 0 | F13: 0 | G13: 0 | H13: 0 | I13: 0 | J13: 0 | K13: H | L13: N | AH13: B | AI13: x | AK13: 0 | AO13: M | AR13: 11 | AS13: 11
A14: 555P|? | B14: 555P | C14: ? | D14: 0 | E14: 0 | F14: 0 | G14: 0 | H14: 0 | I14: 0 | J14: 0 | K14: H | L14: N | AH14: B | AI14: x | AK14: 0 | AO14: M | AR14: 12 | AS14: 12
A15: 325/464|? | B15: 325/464 | C15: ? | D15: 0 | E15: 0 | F15: 0 | G15: 0 | H15: 0 | I15: 0 | J15: 0 | K15: H | L15: N | AH15: B | AI15: x | AK15: 0 | AO15: M | AR15: 13 | AS15: 13
A16: 777G3|? | B16: 777G3 | C16: ? | D16: 0 | E16: 0 | F16: 0 | G16: 0 | H16: 0 | I16: 0 | J16: 0 | K16: H | L16: N | AH16: B | AI16: x | AK16: 0 | AO16: M | AR16: 14 | AS16: 14
A17: 393|? | B17: 393 | C17: ? | D17: 0 | E17: 0 | F17: 0 | G17: 0 | H17: 0 | I17: 0 | J17: 0 | K17: H | L17: N | AH17: B | AI17: x | AK17: 0 | AO17: M | AR17: 15 | AS17: 15
A18: |? | C18: ? | D18: 0 | E18: 0 | F18: 0 | G18: 0 | H18: 0 | I18: 0 | J18: 0 | K18: D | L18: N | AH18: B | AK18: 0 | AO18: M | AR18: 16 | AS18: 16
A19: 333STAALSKG3|DIAMANT | B19: 333STAALSKG3 | C19: DIAMANT | D19: 283.03 | E19: 283.03 | F19: 283.03 | G19: 849.09 | H19: 2 | I19: 5 | J19: 0 | K19: D | L19: N | M19: 333DIA | N19: B_AUSF_ST_DUR | O19: SDST | AH19: B | AI19: x | AJ19: 142.9 | AO19: M | AR19: 90 | AS19: 17
A20: 333TSTAALSKG3|DIAMANT | B20: 333TSTAALSKG3 | C20: DIAMANT | D20: 292.56 | E20: 292.56 | F20: 292.56 | G20: 877.68 | H20: 2 | I20: 5 | J20: 0 | K20: D | L20: N | M20: 333DIA | N20: B_AUSF_ST_DUR | O20: SDST | P20: B_FUNKTION | Q20: FUT | AH20: B | AO20: M | AR20: 91 | AS20: 18
A21: 333HSTAALSKG3|DIAMANT | B21: 333HSTAALSKG3 | C21: DIAMANT | D21: 254.72 | E21: 254.72 | F21: 254.72 | G21: 764.16 | H21: 10 | I21: 5 | J21: 0 | K21: H | L21: N | M21: 333DIAH | N21: B_AUSF_ST_DUR | O21: SDST | AH21: B | AI21: x | AJ21: 118.3 | AO21: M | AR21: 92 | AS21: 19
A22: 333K6STAALSKG3|DIAMANT | B22: 333K6STAALSKG3 | C22: DIAMANT | D22: 283.03 | E22: 283.03 | F22: 283.03 | G22: 849.09 | H22: 2 | I22: 5 | J22: 0 | K22: D | L22: N | M22: 333DIA | N22: B_KNAUFAUSF | O22: KNK6 | P22: B_AUSF_ST_DUR | Q22: SDST/DUR | AH22: B | AO22: M | AR22: 93 | AS22: 20
A23: 333DUR|DIAMANT | B23: 333DUR | C23: DIAMANT | D23: 212.28 | E23: 212.28 | F23: 212.28 | G23: 636.84 | H23: 18 | I23: 3 | J23: 0 | K23: D | L23: N | M23: 333DIA | N23: B_AUSF_ST_DUR | O23: SDDUR | AH23: B | AI23: x | AO23: M | AR23: 94 | AS23: 21
A24: 333TDUR|DIAMANT | B24: 333TDUR | C24: DIAMANT | D24: 221.81 | E24: 221.81 | F24: 221.81 | G24: 665.43 | H24: 18 | I24: 3 | J24: 0 | K24: D | L24: N | M24: 333DIA | N24: B_AUSF_ST_DUR | O24: SDDUR | P24: B_FUNKTION | Q24: FUT | AH24: B | AI24: x | AO24: M | AR24: 94.1 | AS24: 22
A25: 333HDUR|DIAMANT | B25: 333HDUR | C25: DIAMANT | D25: 191 | E25: 191 | F25: 191 | G25: 573 | H25: 19 | I25: 6 | J25: 0 | K25: H | L25: N | M25: 333DIAH | N25: B_AUSF_ST_DUR | O25: SDDUR | AH25: B | AI25: x | AO25: M | AR25: 95 | AS25: 23
A26: 333K6DUR|DIAMANT | B26: 333K6DUR | C26: DIAMANT | D26: 212.28 | E26: 212.28 | F26: 212.28 | G26: 636.84 | H26: 18 | I26: 3 | J26: 0 | K26: D | L26: N | M26: 333DIA | N26: B_AUSF_ST_DUR | O26: SDDUR | P26: B_KNAUFAUSF | Q26: KNK6 | AH26: B | AO26: M | AR26: 96 | AS26: 24
A27: 555PDUR|DIAMANT | B27: 555PDUR | C27: DIAMANT | D27: 222.92 | E27: 222.92 | F27: 222.92 | G27: 668.76 | H27: 0 | I27: 6 | J27: 0 | K27: H | L27: N | M27: 555DIADUR | N27: B_AUSFUEHRUNG_ROHR_PLATTE | O27: RPP | AH27: B | AI27: x | AJ27: 74.5 | AO27: M | AR27: 97 | AS27: 25
A28: 382DUR|DIAMANT | B28: 382DUR | C28: DIAMANT | D28: 191 | E28: 191 | F28: 191 | G28: 573 | H28: 0 | I28: 6 | J28: 4 | K28: H | L28: N | M28: 382DIA | N28: B_TEILENR_HEBEL_10_8_BAU | O28: 200013F013 | AH28: B | AI28: x | AJ28: 68,7 | AO28: M | AR28: 98 | AS28: 26
A29: 393DUR|DIAMANT | B29: 393DUR | C29: DIAMANT | D29: 244.1 | E29: 244.1 | F29: 244.1 | G29: 732.3 | H29: 0 | I29: 6 | J29: 5 | K29: H | L29: N | M29: 393DIADUR | N29: B_AUSF_ST_DUR | O29: SDDUR | AH29: B | AI29: x | AO29: M | AR29: 99 | AS29: 27
A30: |DIAMANT | C30: DIAMANT | D30: 0 | E30: 0 | F30: 0 | G30: 0 | H30: 0 | I30: 0 | J30: 0 | L30: N | AH30: B | AO30: M | AR30: 99.1 | AS30: 28
A31: 333|IX GAMMA | B31: 333 | C31: IX GAMMA | D31: 125.54 | E31: 125.54 | F31: 125.54 | G31: 376.62 | H31: 1 | I31: 7 | J31: 20 | K31: D | L31: E | M31: 333IXGA | AH31: B | AI31: x | AO31: M | AR31: 1 | AS31: 29
A32: 333SKG2|IX GAMMA | B32: 333SKG2 | C32: IX GAMMA | D32: 134.3 | E32: 134.3 | F32: 134.3 | G32: 402.9 | H32: 33 | I32: 7 | J32: 20 | K32: D | L32: E | M32: 333IXGA SKG2 | AH32: B | AI32: x | AO32: M | AR32: 2 | AS32: 30
A33: 333H|IX GAMMA | B33: 333H | C33: IX GAMMA | D33: 112.96 | E33: 112.96 | F33: 112.96 | G33: 338.88 | H33: 4 | I33: 8 | J33: 8 | K33: H | L33: E | M33: 333IXGAH | AH33: B | AI33: x | AO33: M | AR33: 2.1 | AS33: 31
A34: 333HSKG2|IX GAMMA | B34: 333HSKG2 | C34: IX GAMMA | D34: 121.7 | E34: 121.7 | F34: 121.7 | G34: 365.1 | H34: 4 | I34: 8 | J34: 8 | K34: H | L34: E | M34: 333IXGAH SKG2 | AH34: B | AI34: x | AO34: M | AR34: 2.2 | AS34: 32
A35: 333K6|IX GAMMA | B35: 333K6 | C35: IX GAMMA | D35: 125.54 | E35: 125.54 | F35: 125.54 | G35: 376.62 | H35: 1 | I35: 7 | J35: 20 | K35: D | L35: E | M35: 333IXGA | N35: B_KNAUFAUSF | O35: KNK6 | AH35: B | AO35: M | AR35: 2.3 | AS35: 33
A36: 333K6SKG2|IX GAMMA | B36: 333K6SKG2 | C36: IX GAMMA | D36: 134.3 | E36: 134.3 | F36: 134.3 | G36: 402.9 | H36: 33 | I36: 7 | J36: 20 | K36: D | L36: E | M36: 333IXGA SKG2 | N36: B_KNAUFAUSF | O36: KNK6 | AH36: B | AO36: M | AR36: 2.4 | AS36: 34
A37: 333T|IX GAMMA | B37: 333T | C37: IX GAMMA | D37: 135.07 | E37: 135.07 | F37: 135.07 | G37: 405.21 | H37: 1 | I37: 7 | J37: 3 | K37: D | L37: E | M37: 333IXGA | N37: B_FUNKTIONEN | O37: FUT | AH37: B | AO37: M | AR37: 4 | AS37: 35
A38: 333TSKG2|IX GAMMA | B38: 333TSKG2 | C38: IX GAMMA | D38: 143.81 | E38: 143.81 | F38: 143.81 | G38: 431.43 | H38: 33 | I38: 7 | J38: 3 | K38: D | L38: E | M38: 333IXGA SKG2 | N38: B_FUNKTIONEN | O38: FUT | AH38: B | AO38: M | AR38: 5 | AS38: 36
A39: 333FRL|IX GAMMA | B39: 333FRL | C39: IX GAMMA | D39: 138.57 | E39: 138.57 | F39: 138.57 | G39: 415.71 | H39: 24 | I39: 7 | J39: 0 | K39: D | L39: E | M39: 333IXGA FRL | AH39: B | AI39: x | AO39: M | AR39: 7 | AS39: 37
A40: 333FRLSKG2|IX GAMMA | B40: 333FRLSKG2 | C40: IX GAMMA | D40: 147.32 | E40: 147.32 | F40: 147.32 | G40: 441.96 | H40: 24 | I40: 7 | J40: 0 | K40: D | L40: E | M40: 333IXGA FRL SKG2 | AH40: B | AI40: x | AO40: M | AR40: 8 | AS40: 38
A41: 333M|IX GAMMA | B41: 333M | C41: IX GAMMA | D41: 165.26 | E41: 165.26 | F41: 165.26 | G41: 495.78 | H41: 3 | I41: 7 | J41: 20 | K41: D | L41: E | M41: 333IXGAM | AH41: B | AI41: x | AO41: M | AR41: 12 | AS41: 39
A42: 333MSKG2|IX GAMMA | B42: 333MSKG2 | C42: IX GAMMA | D42: 174.01 | E42: 174.01 | F42: 174.01 | G42: 522.03 | H42: 3 | I42: 7 | J42: 20 | K42: D | L42: E | M42: 333IXGAM SKG2 | AH42: B | AI42: x | AO42: M | AR42: 13 | AS42: 40
A43: 333MT|IX GAMMA | B43: 333MT | C43: IX GAMMA | D43: 174.78 | E43: 174.78 | F43: 174.78 | G43: 524.34 | H43: 3 | I43: 7 | J43: 3 | K43: D | L43: E | M43: 333IXGAM | N43: B_FUNKTIONEN | O43: FUT | AH43: B | AN43: H | AO43: M | AR43: 15 | AS43: 41
A44: 333HFRL|IX GAMMA | B44: 333HFRL | C44: IX GAMMA | D44: 125.95 | E44: 125.95 | F44: 125.95 | G44: 377.85 | H44: 25 | I44: 8 | J44: 0 | K44: H | L44: E | M44: 333IXGAH FRL | AH44: B | AI44: x | AO44: M | AR44: 24 | AS44: 42
A45: 333HFRLSKG2|IX GAMMA | B45: 333HFRLSKG2 | C45: IX GAMMA | D45: 134.7 | E45: 134.7 | F45: 134.7 | G45: 404.1 | H45: 25 | I45: 8 | J45: 0 | K45: H | L45: E | M45: 333IXGAH FRL SKG2 | AH45: B | AI45: x | AO45: M | AR45: 25 | AS45: 43
A46: 333MH|IX GAMMA | B46: 333MH | C46: IX GAMMA | D46: 148.75 | E46: 148.75 | F46: 148.75 | G46: 446.25 | H46: 17 | I46: 8 | J46: 0 | K46: H | L46: E | M46: 333IXGAHM | AH46: B | AI46: x | AO46: M | AR46: 27 | AS46: 44
A47: 333MHSKG2|IX GAMMA | B47: 333MHSKG2 | C47: IX GAMMA | D47: 157.5 | E47: 157.5 | F47: 157.5 | G47: 472.5 | H47: 17 | I47: 8 | J47: 0 | K47: H | L47: E | M47: 333IXGAHM SKG2 | AH47: B | AI47: x | AO47: M | AR47: 28 | AS47: 45
A48: 333K1|IX GAMMA | B48: 333K1 | C48: IX GAMMA | D48: 133.47 | E48: 133.47 | F48: 133.47 | G48: 400.41 | H48: 1 | I48: 7 | J48: 20 | K48: D | L48: E | M48: 333IXGA | N48: B_KNAUFAUSF | O48: KNK1 | AH48: B | AO48: M | AR48: 36 | AS48: 46
A49: 333K1SKG2|IX GAMMA | B49: 333K1SKG2 | C49: IX GAMMA | D49: 142.23 | E49: 142.23 | F49: 142.23 | G49: 426.69 | H49: 33 | I49: 7 | J49: 20 | K49: D | L49: E | M49: 333IXGA SKG2 | N49: B_KNAUFAUSF | O49: KNK1 | AH49: B | AO49: M | AR49: 37 | AS49: 47
A50: 333K2|IX GAMMA | B50: 333K2 | C50: IX GAMMA | D50: 133.47 | E50: 133.47 | F50: 133.47 | G50: 400.41 | H50: 1 | I50: 7 | J50: 20 | K50: D | L50: E | M50: 333IXGA | N50: B_KNAUFAUSF | O50: KNK2 | AH50: B | AO50: M | AR50: 39 | AS50: 48
A51: 333K2SKG2|IX GAMMA | B51: 333K2SKG2 | C51: IX GAMMA | D51: 142.23 | E51: 142.23 | F51: 142.23 | G51: 426.69 | H51: 33 | I51: 7 | J51: 20 | K51: D | L51: E | M51: 333IXGA SKG2 | N51: B_KNAUFAUSF | O51: KNK2 | AH51: B | AO51: M | AR51: 40 | AS51: 49
A52: 333K3|IX GAMMA | B52: 333K3 | C52: IX GAMMA | D52: 133.47 | E52: 133.47 | F52: 133.47 | G52: 400.41 | H52: 1 | I52: 7 | J52: 20 | K52: D | L52: E | M52: 333IXGA | N52: B_KNAUFAUSF | O52: KNK3 | AH52: B | AO52: M | AR52: 42 | AS52: 50
A53: 333K3SKG2|IX GAMMA | B53: 333K3SKG2 | C53: IX GAMMA | D53: 142.23 | E53: 142.23 | F53: 142.23 | G53: 426.69 | H53: 33 | I53: 7 | J53: 20 | K53: D | L53: E | M53: 333IXGA SKG2 | N53: B_KNAUFAUSF | O53: KNK3 | AH53: B | AO53: M | AR53: 43 | AS53: 51
A54: 333K4|IX GAMMA | B54: 333K4 | C54: IX GAMMA | D54: 133.47 | E54: 133.47 | F54: 133.47 | G54: 400.41 | H54: 1 | I54: 7 | J54: 20 | K54: D | L54: E | M54: 333IXGA | N54: B_KNAUFAUSF | O54: KNK4 | AH54: B | AO54: M | AR54: 45 | AS54: 52
A55: 333K4SKG2|IX GAMMA | B55: 333K4SKG2 | C55: IX GAMMA | D55: 142.23 | E55: 142.23 | F55: 142.23 | G55: 426.69 | H55: 33 | I55: 7 | J55: 20 | K55: D | L55: E | M55: 333IXGA SKG2 | N55: B_KNAUFAUSF | O55: KNK4 | AH55: B | AO55: M | AR55: 46 | AS55: 53
A56: 333K7|IX GAMMA | B56: 333K7 | C56: IX GAMMA | D56: 171.91 | E56: 171.91 | F56: 171.91 | G56: 515.73 | H56: 30 | I56: 10 | J56: 0 | K56: D | L56: E | M56: 333IXGA K7 SKG2 | AH56: B | AO56: M | AR56: 48 | AS56: 54
A57: 333K7SKG2|IX GAMMA | B57: 333K7SKG2 | C57: IX GAMMA | D57: 180.67 | E57: 180.67 | F57: 180.67 | G57: 542.01 | H57: 30 | I57: 10 | J57: 0 | K57: D | L57: E | M57: 333IXGA K7 SKG2 | AH57: B | AO57: M | AR57: 49 | AS57: 55
A58: 333K6KRU|IX GAMMA | B58: 333K6KRU | C58: IX GAMMA | D58: 155.19 | E58: 155.19 | F58: 155.19 | G58: 465.57 | H58: 1 | I58: 7 | J58: 20 | K58: D | L58: E | M58: 333IXGA KRU | N58: B_KNAUFAUSF | O58: KNK6 | AH58: B | AO58: M | AR58: 50 | AS58: 56
A59: 333MK6|IX GAMMA | B59: 333MK6 | C59: IX GAMMA | D59: 165.26 | E59: 165.26 | F59: 165.26 | G59: 495.78 | H59: 3 | I59: 7 | J59: 20 | K59: D | L59: E | M59: 333IXGAM | N59: B_KNAUFAUSF | O59: KNK6 | AH59: B | AO59: M | AR59: 51 | AS59: 57
A60: 333MK6SKG2|IX GAMMA | B60: 333MK6SKG2 | C60: IX GAMMA | D60: 174.02 | E60: 174.02 | F60: 174.02 | G60: 522.06 | H60: 3 | I60: 7 | J60: 20 | K60: D | L60: E | M60: 333IXGAM SKG2 | N60: B_KNAUFAUSF | O60: KNK6 | AH60: B | AO60: M | AR60: 52 | AS60: 58
A61: 333MK7|IX GAMMA | B61: 333MK7 | C61: IX GAMMA | D61: 211.63 | E61: 211.63 | F61: 211.63 | G61: 634.89 | H61: 31 | I61: 10 | J61: 0 | K61: D | L61: E | M61: 333IXGAM K7 SKG2 | AH61: B | AO61: M | AR61: 58 | AS61: 59
A62: 333MK7SKG2|IX GAMMA | B62: 333MK7SKG2 | C62: IX GAMMA | D62: 220.39 | E62: 220.39 | F62: 220.39 | G62: 661.17 | H62: 31 | I62: 10 | J62: 0 | K62: D | L62: E | M62: 333IXGAM K7 SKG2 | AH62: B | AO62: M | AR62: 59 | AS62: 60
A63: 333KL|IX GAMMA | B63: 333KL | C63: IX GAMMA | D63: 131.79 | E63: 131.79 | F63: 131.79 | G63: 395.37 | H63: 5 | I63: 7 | J63: 18 | K63: D | L63: E | M63: 333IXGAKL | AH63: B | AI63: x | AO63: M | AR63: 62 | AS63: 61
A64: 333KLK6|IX GAMMA | B64: 333KLK6 | C64: IX GAMMA | D64: 131.79 | E64: 131.79 | F64: 131.79 | G64: 395.37 | H64: 5 | I64: 7 | J64: 0 | K64: D | L64: E | M64: 333IXGAKL | N64: B_KNAUFAUSF | O64: KNK6 | AH64: B | AO64: M | AR64: 63 | AS64: 62
A65: 333KLSKG2|IX GAMMA | B65: 333KLSKG2 | C65: IX GAMMA | D65: 140.55 | E65: 140.55 | F65: 140.55 | G65: 421.65 | H65: 5 | I65: 7 | J65: 18 | K65: D | L65: E | M65: 333IXGAKL SKG2 | AH65: B | AI65: x | AO65: M | AR65: 64 | AS65: 63
A66: 333KLT|IX GAMMA | B66: 333KLT | C66: IX GAMMA | D66: 141.32 | E66: 141.32 | F66: 141.32 | G66: 423.96 | H66: 5 | I66: 7 | J66: 0 | K66: D | L66: E | M66: 333IXGAKL | N66: B_FUNKTIONEN | O66: FUT | AH66: B | AO66: M | AR66: 65 | AS66: 64
A67: =CONCATENATE(B67,"|",C67) -> 333RI-10|IX GAMMA | B67: 333RI-10 | C67: IX GAMMA | D67: 155.11 | E67: 155.11 | F67: 155.11 | G67: =D67+E67+F67 -> 465.33 | H67: 1 | I67: 7 | J67: 0 | K67: D | L67: E | M67: 333IXGA | N67: B_MITNEHMERAUSF | O67: MIRI10 | AH67: B | AO67: M | AR67: 65.5 | AS67: 65
A68: 333RI-14|IX GAMMA | B68: 333RI-14 | C68: IX GAMMA | D68: 155.11 | E68: 155.11 | F68: 155.11 | G68: 465.33 | H68: 1 | I68: 7 | J68: 0 | K68: D | L68: E | M68: 333IXGA | N68: B_MITNEHMERAUSF | O68: MIRI14 | AH68: B | AO68: M | AR68: 65.6 | AS68: 66
A69: 472|IX GAMMA | B69: 472 | C69: IX GAMMA | D69: 138.73 | E69: 138.73 | F69: 138.73 | G69: 416.19 | H69: 1 | I69: 7 | J69: 0 | K69: D | L69: E | M69: 2222IXGA | AH69: B | AO69: M | AR69: 66 | AS69: 67
A70: 472H|IX GAMMA | B70: 472H | C70: IX GAMMA | D70: 124.81 | E70: 124.81 | F70: 124.81 | G70: 374.43 | H70: 4 | I70: 8 | J70: 8 | K70: H | L70: E | M70: 2222IXGAH | AH70: B | AO70: M | AR70: 67 | AS70: 68
A71: 472K6|IX GAMMA | B71: 472K6 | C71: IX GAMMA | D71: 145.66 | E71: 145.66 | F71: 145.66 | G71: 436.98 | H71: 1 | I71: 7 | J71: 0 | K71: D | L71: E | M71: 2222IXGA | N71: B_KNAUFAUSF | O71: KNK6 | AH71: B | AO71: M | AR71: 68 | AS71: 69
A72: 555P|IX GAMMA | B72: 555P | C72: IX GAMMA | D72: 131.79 | E72: 131.79 | F72: 131.79 | G72: 395.37 | H72: 0 | I72: 8 | J72: 0 | K72: H | L72: E | M72: 555IXGA | N72: B_AUSFUEHRUNG_ROHR_PLATTE | O72: RPP | AH72: B | AI72: x | AO72: M | AR72: 69 | AS72: 70
A73: 555PSKG2*|IX GAMMA | B73: 555PSKG2* | C73: IX GAMMA | D73: 140.54 | E73: 140.54 | F73: 140.54 | G73: 421.62 | H73: 0 | I73: 8 | J73: 0 | K73: H | L73: E | M73: 555IXGA | AH73: B | AI73: x | AO73: M | AR73: 70 | AS73: 71
A74: 325L|IX GAMMA | B74: 325L | C74: IX GAMMA | D74: 112.96 | E74: 112.96 | F74: 112.96 | G74: 338.88 | H74: 0 | I74: 8 | J74: 0 | K74: H | L74: E | M74: 325IXGA | N74: B_AUSFUEHRUNG_325 | O74: LIPS | AH74: B | AO74: M | AR74: 71 | AS74: 72
A75: 325L/1754DR1|IX GAMMA | B75: 325L/1754DR1 | C75: IX GAMMA | D75: 358.46 | E75: 358.46 | F75: 358.46 | G75: 1075.38 | H75: 0 | I75: 8 | J75: 0 | K75: H | L75: E | M75: 325IXGA | N75: B_AUSFUEHRUNG_325 | O75: LIPS | P75: x | AH75: B | AO75: M | AR75: 72 | AS75: 73
A76: 325L/1754DR2|IX GAMMA | B76: 325L/1754DR2 | C76: IX GAMMA | D76: 358.46 | E76: 358.46 | F76: 358.46 | G76: 1075.38 | H76: 0 | I76: 8 | J76: 0 | K76: H | L76: E | M76: 325IXGA | N76: B_AUSFUEHRUNG_325 | O76: LIPS | P76: x | AH76: B | AO76: M | AR76: 73 | AS76: 74
A77: 777G3|IX GAMMA | B77: 777G3 | C77: IX GAMMA | D77: 167.74 | E77: 167.74 | F77: 167.74 | G77: 503.22 | H77: 0 | I77: 0 | J77: 21 | K77: H | L77: E | M77: 777IXGAG3 | AH77: B | AI77: x | AJ77: 70.5 | AO77: M | AR77: 75 | AS77: 75
A78: 777G3-HB60|IX GAMMA | B78: 777G3-HB60 | C78: IX GAMMA | D78: 182.88 | E78: 182.88 | F78: 182.88 | G78: 548.64 | H78: 0 | I78: 0 | J78: 21 | K78: H | L78: E | M78: 777IXGAG3 | N78: B_BUEGELLAENGE | O78: BU60 | AH78: B | AI78: x | AJ78: 70.5 | AO78: M | AR78: 76 | AS78: 76
A79: 777G3-HB120|IX GAMMA | B79: 777G3-HB120 | C79: IX GAMMA | D79: 186.35 | E79: 186.35 | F79: 186.35 | G79: 559.05 | H79: 0 | I79: 0 | J79: 21 | K79: H | L79: E | M79: 777IXGAG3 | N79: B_BUEGELLAENGE | O79: BU120 | AH79: B | AI79: x | AJ79: 70.5 | AO79: M | AR79: 77 | AS79: 77
A80: 382LI|IX GAMMA | B80: 382LI | C80: IX GAMMA | D80: 112.96 | E80: 112.96 | F80: 112.96 | G80: 338.88 | H80: 0 | I80: 8 | J80: 4 | K80: H | L80: E | M80: 382IXGA | N80: B_TEILENR_HEBEL_10_8_BAU | O80: 200013F013 | P80: B_AUSFUEHRUNG_LI_RE | Q80: AGLI | AH80: B | AI80: x | AO80: M | AR80: 78 | AS80: 78
A81: 382RE|IX GAMMA | B81: 382RE | C81: IX GAMMA | D81: 112.96 | E81: 112.96 | F81: 112.96 | G81: 338.88 | H81: 0 | I81: 8 | J81: 4 | K81: H | L81: E | M81: 382IXGA | N81: B_TEILENR_HEBEL_10_8_BAU | O81: 200013F013 | P81: B_AUSFUEHRUNG_LI_RE | Q81: AGRE | AH81: B | AI81: x | AO81: M | AR81: 79 | AS81: 79
A82: 393|IX GAMMA | B82: 393 | C82: IX GAMMA | D82: 204.98 | E82: 204.98 | F82: 204.98 | G82: 614.94 | H82: 0 | I82: 8 | J82: 5 | K82: H | L82: E | M82: 393IXGA | AH82: B | AI82: x | AO82: M | AR82: 80 | AS82: 80
A83: 419 LIPS|IX GAMMA | B83: 419 LIPS | C83: IX GAMMA | D83: 144.33 | E83: 144.33 | F83: 144.33 | G83: 432.99 | H83: 0 | I83: 9 | J83: 0 | K83: H | L83: E | M83: 419IXGA LIPS | AH83: B | AO83: M | AR83: 81 | AS83: 81
A84: |IX GAMMA | C84: IX GAMMA | D84: 0 | E84: 0 | F84: 0 | G84: 0 | H84: 0 | I84: 0 | J84: 0 | L84: E | M84: 235271 | AH84: B | AO84: M | AR84: 81.1 | AS84: 82
A85: 333|IX10KG | B85: 333 | C85: IX10KG | D85: 207.99 | E85: 207.99 | F85: 207.99 | G85: 623.97 | H85: 1 | I85: 1 | J85: 20 | K85: D | L85: E | M85: 333IXKG | AH85: B | AI85: x | AJ85: 1 | AO85: M | AR85: 1 | AS85: 83
A86: 333H|IX10KG | B86: 333H | C86: IX10KG | D86: 187.17 | E86: 187.17 | F86: 187.17 | G86: 561.51 | H86: 4 | I86: 4 | J86: 8 | K86: H | L86: E | M86: 333IXKGH | AH86: B | AI86: x | AJ86: 70 | AO86: M | AR86: 2.1 | AS86: 84
A87: 333K6|IX10KG | B87: 333K6 | C87: IX10KG | D87: 207.99 | E87: 207.99 | F87: 207.99 | G87: 623.97 | H87: 1 | I87: 1 | J87: 20 | K87: D | L87: E | M87: 333IXKG | N87: B_KNAUFAUSF | O87: KNK6 | AH87: B | AO87: M | AR87: 2.3 | AS87: 85
A88: 333T|IX10KG | B88: 333T | C88: IX10KG | D88: 217.52 | E88: 217.52 | F88: 217.52 | G88: 652.56 | H88: 1 | I88: 1 | J88: 3 | K88: D | L88: E | M88: 333IXKG | N88: B_FUNKTIONEN | O88: FUT | AH88: B | AO88: M | AR88: 4 | AS88: 86
A89: 333FRL|IX10KG | B89: 333FRL | C89: IX10KG | D89: 221.01 | E89: 221.01 | F89: 221.01 | G89: 663.03 | H89: 24 | I89: 1 | J89: 0 | K89: D | L89: E | M89: 333IXKG | AH89: B | AI89: x | AJ89: 102.1 | AO89: M | AR89: 7 | AS89: 87
A90: 333M|IX10KG | B90: 333M | C90: IX10KG | D90: 247.71 | E90: 247.71 | F90: 247.71 | G90: 743.13 | H90: 3 | I90: 1 | J90: 20 | K90: D | L90: E | M90: 333IXKGM | AH90: B | AI90: x | AO90: M | AR90: 12 | AS90: 88
A91: 333MT|IX10KG | B91: 333MT | C91: IX10KG | D91: 257.24 | E91: 257.24 | F91: 257.24 | G91: 771.72 | H91: 3 | I91: 1 | J91: 3 | K91: D | L91: E | M91: 333IXKGM | N91: B_FUNKTIONEN | O91: FUT | AH91: B | AO91: M | AR91: 15 | AS91: 89
A92: 333HFRL|IX10KG | B92: 333HFRL | C92: IX10KG | D92: 200.17 | E92: 200.17 | F92: 200.17 | G92: 600.51 | H92: 25 | I92: 4 | J92: 8 | K92: H | L92: E | M92: 333IXKGH | O92: MIFRLIX | AH92: B | AI92: x | AJ92: 70 | AO92: M | AR92: 24 | AS92: 90
A93: 333MH|IX10KG | B93: 333MH | C93: IX10KG | D93: 222.94 | E93: 222.94 | F93: 222.94 | G93: 668.82 | H93: 17 | I93: 4 | J93: 0 | K93: H | L93: E | M93: 333IXKGHM | AH93: B | AI93: x | AO93: M | AR93: 27 | AS93: 91
A94: 333K1|IX10KG | B94: 333K1 | C94: IX10KG | D94: 215.92 | E94: 215.92 | F94: 215.92 | G94: 647.76 | H94: 1 | I94: 1 | J94: 20 | K94: D | L94: E | M94: 333IXKG | N94: B_KNAUFAUSF | O94: KNK1 | AH94: B | AO94: M | AR94: 36 | AS94: 92
A95: 333K2|IX10KG | B95: 333K2 | C95: IX10KG | D95: 215.92 | E95: 215.92 | F95: 215.92 | G95: 647.76 | H95: 1 | I95: 1 | J95: 20 | K95: D | L95: E | M95: 333IXKG | N95: B_KNAUFAUSF | O95: KNK2 | AH95: B | AO95: M | AR95: 39 | AS95: 93
A96: 333K3|IX10KG | B96: 333K3 | C96: IX10KG | D96: 215.92 | E96: 215.92 | F96: 215.92 | G96: 647.76 | H96: 1 | I96: 1 | J96: 20 | K96: D | L96: E | M96: 333IXKG | N96: B_KNAUFAUSF | O96: KNK3 | AH96: B | AO96: M | AR96: 42 | AS96: 94
A97: 333K4|IX10KG | B97: 333K4 | C97: IX10KG | D97: 215.92 | E97: 215.92 | F97: 215.92 | G97: 647.76 | H97: 1 | I97: 1 | J97: 0 | K97: D | L97: E | M97: 333IXKG | N97: B_KNAUFAUSF | O97: KNK4 | AH97: B | AO97: M | AR97: 45 | AS97: 95
A98: 333MK6|IX10KG | B98: 333MK6 | C98: IX10KG | D98: 247.71 | E98: 247.71 | F98: 247.71 | G98: 743.13 | H98: 3 | I98: 1 | J98: 20 | K98: D | L98: E | M98: 333IXKGM | N98: B_KNAUFAUSF | O98: KNK6 | AH98: B | AO98: M | AR98: 51 | AS98: 96
A99: 472|IX10KG | B99: 472 | C99: IX10KG | D99: 239.22 | E99: 239.22 | F99: 239.22 | G99: 717.66 | H99: 26 | I99: 1 | J99: 0 | K99: D | L99: E | M99: 2222IXKG | AH99: B | AO99: M | AR99: 66 | AS99: 97
A100: 472H|IX10KG | B100: 472H | C100: IX10KG | D100: 215.25 | E100: 215.25 | F100: 215.25 | G100: 645.75 | H100: 27 | I100: 4 | J100: 8 | K100: H | L100: E | M100: 2222HIXKG | AH100: B | AO100: M | AR100: 67 | AS100: 98
A101: 472K6|IX10KG | B101: 472K6 | C101: IX10KG | D101: 251.2 | E101: 251.2 | F101: 251.2 | G101: 753.6 | H101: 26 | I101: 1 | J101: 0 | K101: D | L101: E | M101: 2222IXKG | N101: B_KNAUFAUSF | O101: KNK6 | AH101: B | AO101: M | AR101: 68 | AS101: 99
A102: 555P|IX10KG | B102: 555P | C102: IX10KG | D102: 218.41 | E102: 218.41 | F102: 218.41 | G102: 655.23 | H102: 0 | I102: 4 | J102: 0 | K102: H | L102: E | M102: 555IXKG | N102: B_AUSFUEHRUNG_ROHR_PLATTE | O102: RPP | AH102: B | AI102: x | AJ102: 62.2 | AO102: M | AR102: 69 | AS102: 100
A103: 777G3|IX10KG | B103: 777G3 | C103: IX10KG | D103: 241.96 | E103: 241.96 | F103: 241.96 | G103: 725.88 | H103: 0 | I103: 0 | J103: 21 | K103: H | L103: E | M103: 777IXKGG3 | AH103: B | AI103: x | AJ103: 1 | AO103: M | AR103: 75 | AS103: 101
A104: 777G3-HB60|IX10KG | B104: 777G3-HB60 | C104: IX10KG | D104: 257.11 | E104: 257.11 | F104: 257.11 | G104: 771.33 | H104: 0 | I104: 0 | J104: 21 | K104: H | L104: E | M104: 777IXKGG3 | N104: B_BUEGELLAENGE | O104: BU60 | AH104: B | AI104: x | AN104: H | AO104: M | AR104: 76 | AS104: 102
A105: 393|IX10KG | B105: 393 | C105: IX10KG | D105: 239.22 | E105: 239.22 | F105: 239.22 | G105: 717.66 | H105: 0 | I105: 4 | J105: 5 | K105: H | L105: E | M105: 393IXKG | AH105: B | AI105: x | AJ105: 110.6 | AO105: M | AR105: 80 | AS105: 103
A106: |IX10KG | C106: IX10KG | D106: 0 | E106: 0 | F106: 0 | G106: 0 | H106: 0 | I106: 0 | J106: 0 | L106: E | M106: 235271 | AH106: B | AO106: M | AR106: 81 | AS106: 104
A107: 333|IX5HT | B107: 333 | C107: IX5HT | D107: 150.97 | E107: 150.97 | F107: 150.97 | G107: 452.91 | H107: 1 | I107: 1 | J107: 20 | K107: D | L107: E | M107: 333IX5HT | AH107: B | AI107: x | AO107: M | AR107: 1 | AS107: 105
A108: 333H|IX5HT | B108: 333H | C108: IX5HT | D108: 135.85 | E108: 135.85 | F108: 135.85 | G108: 407.55 | H108: 4 | I108: 4 | J108: 8 | K108: H | L108: E | M108: 333IX5HTH | AH108: B | AI108: x | AO108: M | AR108: 2.1 | AS108: 106
A109: 333K6|IX5HT | B109: 333K6 | C109: IX5HT | D109: 150.97 | E109: 150.97 | F109: 150.97 | G109: 452.91 | H109: 1 | I109: 1 | J109: 20 | K109: D | L109: E | M109: 333IX5HT | N109: B_KNAUFAUSF | O109: KNK6 | AH109: B | AO109: M | AR109: 2.3 | AS109: 107
A110: 333T|IX5HT | B110: 333T | C110: IX5HT | D110: 160.5 | E110: 160.5 | F110: 160.5 | G110: 481.5 | H110: 1 | I110: 1 | J110: 3 | K110: D | L110: E | M110: 333IX5HT | N110: B_FUNKTIONEN | O110: FUT | AH110: B | AO110: M | AR110: 4 | AS110: 108
A111: 333FRL|IX5HT | B111: 333FRL | C111: IX5HT | D111: 163.99 | E111: 163.99 | F111: 163.99 | G111: 491.97 | H111: 24 | I111: 1 | J111: 0 | K111: D | L111: E | M111: 333IX5HT FRL | AH111: B | AI111: x | AO111: M | AR111: 7 | AS111: 109
A112: 333M|IX5HT | B112: 333M | C112: IX5HT | D112: 190.73 | E112: 190.73 | F112: 190.73 | G112: 572.19 | H112: 3 | I112: 1 | J112: 20 | K112: D | L112: E | M112: 333IX5HTM | AH112: B | AI112: x | AO112: M | AR112: 12 | AS112: 110
A113: 333MT|IX5HT | B113: 333MT | C113: IX5HT | D113: 200.26 | E113: 200.26 | F113: 200.26 | G113: 600.78 | H113: 3 | I113: 1 | J113: 3 | K113: D | L113: E | M113: 333IX5HTM | N113: B_FUNKTIONEN | O113: FUT | AH113: B | AO113: M | AR113: 15 | AS113: 111
A114: 333HFRL|IX5HT | B114: 333HFRL | C114: IX5HT | D114: 148.88 | E114: 148.88 | F114: 148.88 | G114: 446.64 | H114: 25 | I114: 4 | J114: 8 | K114: H | L114: E | M114: 333IX5HTH FRL | AH114: B | AI114: x | AO114: M | AR114: 24 | AS114: 112
A115: 333MH|IX5HT | B115: 333MH | C115: IX5HT | D115: 171.59 | E115: 171.59 | F115: 171.59 | G115: 514.77 | H115: 17 | I115: 4 | J115: 0 | K115: H | L115: E | M115: 333IX5HTHM | AH115: B | AI115: x | AO115: M | AR115: 27 | AS115: 113
A116: 333K1|IX5HT | B116: 333K1 | C116: IX5HT | D116: 158.9 | E116: 158.9 | F116: 158.9 | G116: 476.7 | H116: 1 | I116: 1 | J116: 20 | K116: D | L116: E | M116: 333IX5HT | N116: B_KNAUFAUSF | O116: KNK1 | AH116: B | AO116: M | AR116: 36 | AS116: 114
A117: 333K2|IX5HT | B117: 333K2 | C117: IX5HT | D117: 158.9 | E117: 158.9 | F117: 158.9 | G117: 476.7 | H117: 1 | I117: 1 | J117: 20 | K117: D | L117: E | M117: 333IX5HT | N117: B_KNAUFAUSF | O117: KNK2 | AH117: B | AO117: M | AR117: 39 | AS117: 115
A118: 333K3|IX5HT | B118: 333K3 | C118: IX5HT | D118: 158.9 | E118: 158.9 | F118: 158.9 | G118: 476.7 | H118: 1 | I118: 1 | J118: 20 | K118: D | L118: E | M118: 333IX5HT | N118: B_KNAUFAUSF | O118: KNK3 | AH118: B | AO118: M | AR118: 42 | AS118: 116
A119: 333K4|IX5HT | B119: 333K4 | C119: IX5HT | D119: 158.9 | E119: 158.9 | F119: 158.9 | G119: 476.7 | H119: 1 | I119: 1 | J119: 0 | K119: D | L119: E | M119: 333IX5HT | N119: B_KNAUFAUSF | O119: KNK4 | AH119: B | AO119: M | AR119: 45 | AS119: 117
A120: 333MK6|IX5HT | B120: 333MK6 | C120: IX5HT | D120: 190.73 | E120: 190.73 | F120: 190.73 | G120: 572.19 | H120: 3 | I120: 1 | J120: 20 | K120: D | L120: E | M120: 333IX5HTM | N120: B_KNAUFAUSF | O120: KNK6 | AH120: B | AO120: M | AR120: 51 | AS120: 118
A121: 333KL|IX5HT | B121: 333KL | C121: IX5HT | D121: 158.48 | E121: 158.48 | F121: 158.48 | G121: 475.44 | H121: 5 | I121: 1 | J121: 18 | K121: D | L121: E | M121: 333IX5HTKL | AH121: B | AI121: x | AO121: M | AR121: 62 | AS121: 119
A122: 333KLT|IX5HT | B122: 333KLT | C122: IX5HT | D122: 168.01 | E122: 168.01 | F122: 168.01 | G122: 504.03 | H122: 5 | I122: 1 | J122: 0 | K122: D | L122: E | M122: 333IX5HTKL | N122: B_FUNKTIONEN | O122: FUT | AH122: B | AO122: M | AR122: 65 | AS122: 120
A123: 472|IX5HT | B123: 472 | C123: IX5HT | D123: 156.21 | E123: 156.21 | F123: 156.21 | G123: 468.63 | H123: 1 | I123: 1 | J123: 0 | K123: D | L123: E | M123: 2222IX5HT | AH123: B | AO123: M | AR123: 66 | AS123: 121
A124: 472H|IX5HT | B124: 472H | C124: IX5HT | D124: 140.56 | E124: 140.56 | F124: 140.56 | G124: 421.68 | H124: 4 | I124: 4 | J124: 8 | K124: H | L124: E | M124: 2222HIX5HT | AH124: B | AO124: M | AR124: 67 | AS124: 122
A125: 472K6|IX5HT | B125: 472K6 | C125: IX5HT | D125: 164.02 | E125: 164.02 | F125: 164.02 | G125: 492.06 | H125: 1 | I125: 1 | J125: 0 | K125: D | L125: E | M125: 2222IX5HT | N125: B_KNAUFAUSF | O125: KNK6 | AH125: B | AO125: M | AR125: 68 | AS125: 123
A126: 555P|IX5HT | B126: 555P | C126: IX5HT | D126: 158.47 | E126: 158.47 | F126: 158.47 | G126: 475.41 | H126: 0 | I126: 4 | J126: 0 | K126: H | L126: E | M126: 555IX5HT | N126: B_AUSFUEHRUNG_ROHR_PLATTE | O126: RPP | AH126: B | AI126: x | AO126: M | AR126: 69 | AS126: 124
A127: 325L|IX5HT | B127: 325L | C127: IX5HT | D127: 135.85 | E127: 135.85 | F127: 135.85 | G127: 407.55 | H127: 0 | I127: 1 | J127: 0 | K127: H | L127: E | M127: 325IX5HT | N127: B_AUSFUEHRUNG_325 | O127: LIPS | AH127: B | AO127: M | AR127: 71 | AS127: 125
A128: 325L/1754DR1|IX5HT | B128: 325L/1754DR1 | C128: IX5HT | D128: 381.35 | E128: 381.35 | F128: 381.35 | G128: 1144.05 | H128: 0 | I128: 1 | J128: 0 | K128: H | L128: E | M128: 325IX5HT | N128: B_AUSFUEHRUNG_325 | O128: LIPS | P128: x | AH128: B | AO128: M | AR128: 72 | AS128: 126
A129: 325L/1754DR2|IX5HT | B129: 325L/1754DR2 | C129: IX5HT | D129: 381.35 | E129: 381.35 | F129: 381.35 | G129: 1144.05 | H129: 0 | I129: 1 | J129: 0 | K129: H | L129: E | M129: 325IX5HT | N129: B_AUSFUEHRUNG_325 | O129: LIPS | P129: x | AH129: B | AO129: M | AR129: 73 | AS129: 127
A130: 325/464|IX5HT | B130: 325/464 | C130: IX5HT | D130: 0 | E130: 0 | F130: 0 | G130: 0 | H130: 0 | I130: 0 | J130: 0 | K130: H | L130: E | M130: 325IX5HT3464 | AH130: B | AO130: M | AR130: 74 | AS130: 128
A131: =CONCATENATE(B131,"|",C131) -> 777G3|IX5HT | B131: 777G3 | C131: IX5HT | D131: 190.64 | E131: 190.64 | F131: 190.64 | G131: =D131+E131+F131 -> 571.92 | H131: 0 | I131: 0 | J131: 21 | K131: H | L131: E | M131: 777IX5HTG3 | AH131: B | AI131: x | AJ131: 70.5 | AO131: M | AR131: 75 | AS131: 129
A132: 777G3-HB60|IX5HT | B132: 777G3-HB60 | C132: IX5HT | D132: 205.79 | E132: 205.79 | F132: 205.79 | G132: 617.37 | H132: 0 | I132: 0 | J132: 21 | K132: H | L132: E | M132: 777IX5HTG3 | N132: B_BUEGELLAENGE | O132: BU60 | AH132: B | AI132: x | AJ132: 1 | AO132: M | AR132: 76 | AS132: 130
A133: 393|IX5HT | B133: 393 | C133: IX5HT | D133: 173.56 | E133: 173.56 | F133: 173.56 | G133: 520.68 | H133: 0 | I133: 4 | J133: 5 | K133: H | L133: E | M133: 393IX5HT | AH133: B | AI133: x | AO133: M | AR133: 80 | AS133: 131
A134: 419 LIPS|IX5HT | B134: 419 LIPS | C134: IX5HT | D134: 181.16 | E134: 181.16 | F134: 181.16 | G134: 543.48 | H134: 0 | I134: 9 | J134: 0 | L134: E | M134: 419IX5HT LIPS | AH134: B | AO134: M | AR134: 81 | AS134: 132
A135: 464/325-L|IX5HT | B135: 464/325-L | C135: IX5HT | D135: 0 | E135: 0 | F135: 0 | G135: 0 | H135: 0 | I135: 4 | J135: 19 | K135: H | L135: E | M135: 3464IX5HT | N135: B_AUSFUEHRUNG_LI_RE | O135: AGLI | AH135: B | AI135: X | AO135: M | AR135: 82 | AS135: 133
A136: 464/325-R|IX5HT | B136: 464/325-R | C136: IX5HT | D136: 0 | E136: 0 | F136: 0 | G136: 0 | H136: 0 | I136: 4 | J136: 19 | K136: H | L136: E | M136: 3464IX5HT | N136: B_AUSFUEHRUNG_LI_RE | O136: AGRE | AH136: B | AI136: x | AO136: M | AR136: 83 | AS136: 134
A137: |IX5HT | C137: IX5HT | D137: 0 | E137: 0 | F137: 0 | G137: 0 | H137: 0 | I137: 0 | J137: 0 | L137: E | M137: 235271 | AH137: B | AO137: M | AR137: 84 | AS137: 135
A138: 333|IX5KG | B138: 333 | C138: IX5KG | D138: 192.51 | E138: 192.51 | F138: 192.51 | G138: 577.53 | H138: 1 | I138: 1 | J138: 20 | K138: D | L138: E | M138: 333IX5KG | AH138: B | AI138: x | AJ138: 1 | AO138: M | AR138: 1 | AS138: 136
A139: 333H|IX5KG | B139: 333H | C139: IX5KG | D139: 173.28 | E139: 173.28 | F139: 173.28 | G139: 519.84 | H139: 4 | I139: 4 | J139: 8 | K139: H | L139: E | M139: 333IX5KGH | AH139: B | AI139: x | AJ139: 1 | AO139: M | AR139: 2.1 | AS139: 137
A140: 333K6|IX5KG | B140: 333K6 | C140: IX5KG | D140: 192.51 | E140: 192.51 | F140: 192.51 | G140: 577.53 | H140: 1 | I140: 1 | J140: 20 | K140: D | L140: E | M140: 333IX5KG | N140: B_KNAUFAUSF | O140: KNK6 | AH140: B | AO140: M | AR140: 2.3 | AS140: 138
A141: 333T|IX5KG | B141: 333T | C141: IX5KG | D141: 202.04 | E141: 202.04 | F141: 202.04 | G141: 606.12 | H141: 1 | I141: 1 | J141: 3 | K141: D | L141: E | M141: 333IX5KG | N141: B_FUNKTIONEN | O141: FUT | AH141: B | AO141: M | AR141: 4 | AS141: 139
A142: 333HFRL|IX5KG | B142: 333HFRL | C142: IX5KG | D142: 186.3 | E142: 186.3 | F142: 186.3 | G142: 558.9 | H142: 25 | I142: 4 | J142: 8 | K142: H | L142: E | M142: 333IX5KGH MIWE | AH142: B | AI142: x | AJ142: 1 | AO142: M | AR142: 24 | AS142: 140
A143: 333K1|IX5KG | B143: 333K1 | C143: IX5KG | D143: 200.44 | E143: 200.44 | F143: 200.44 | G143: 601.32 | H143: 1 | I143: 1 | J143: 20 | K143: D | L143: E | M143: 333IX5KG | N143: B_KNAUFAUSF | O143: KNK1 | AH143: B | AO143: M | AR143: 36 | AS143: 141
A144: 333K2|IX5KG | B144: 333K2 | C144: IX5KG | D144: 200.44 | E144: 200.44 | F144: 200.44 | G144: 601.32 | H144: 1 | I144: 1 | J144: 20 | K144: D | L144: E | M144: 333IX5KG | N144: B_KNAUFAUSF | O144: KNK2 | AH144: B | AN144: D | AO144: M | AR144: 39 | AS144: 142
A145: 333K3|IX5KG | B145: 333K3 | C145: IX5KG | D145: 200.44 | E145: 200.44 | F145: 200.44 | G145: 601.32 | H145: 1 | I145: 1 | J145: 20 | K145: D | L145: E | M145: 333IX5KG | N145: B_KNAUFAUSF | O145: KNK3 | AH145: B | AO145: M | AR145: 42 | AS145: 143
A146: 333K4|IX5KG | B146: 333K4 | C146: IX5KG | D146: 200.44 | E146: 200.44 | F146: 200.44 | G146: 601.32 | H146: 1 | I146: 1 | J146: 0 | K146: D | L146: E | M146: 333IX5KG | N146: B_KNAUFAUSF | O146: KNK4 | AH146: B | AO146: M | AR146: 45 | AS146: 144
A147: 333KL|IX5KG | B147: 333KL | C147: IX5KG | D147: 192.51 | E147: 192.51 | F147: 192.51 | G147: 577.53 | H147: 5 | I147: 1 | J147: 18 | K147: D | L147: E | M147: 333IX5KGKL | AH147: B | AI147: x | AJ147: 1 | AO147: M | AR147: 62 | AS147: 145
A148: 472|IX5KG | B148: 472 | C148: IX5KG | D148: 221.41 | E148: 221.41 | F148: 221.41 | G148: 664.23 | H148: 1 | I148: 1 | J148: 0 | K148: D | L148: E | M148: 2222IX5KG | AH148: B | AO148: M | AR148: 66 | AS148: 146
A149: 472H|IX5KG | B149: 472H | C149: IX5KG | D149: 199.29 | E149: 199.29 | F149: 199.29 | G149: 597.87 | H149: 4 | I149: 4 | J149: 8 | K149: H | L149: E | M149: 2222HIX5KG | AH149: B | AO149: M | AR149: 67 | AS149: 147
A150: 472K6|IX5KG | B150: 472K6 | C150: IX5KG | D150: 232.45 | E150: 232.45 | F150: 232.45 | G150: 697.35 | H150: 1 | I150: 1 | J150: 0 | K150: D | L150: E | M150: 2222IX5KG | N150: B_KNAUFAUSF | O150: KNK6 | AH150: B | AO150: M | AR150: 68 | AS150: 148
A151: 555P|IX5KG | B151: 555P | C151: IX5KG | D151: 202.11 | E151: 202.11 | F151: 202.11 | G151: 606.33 | H151: 0 | I151: 4 | J151: 0 | K151: H | L151: E | M151: 555IX5KG | N151: B_AUSFUEHRUNG_ROHR_PLATTE | O151: RPP | AH151: B | AI151: x | AJ151: 1 | AO151: M | AR151: 69 | AS151: 149
A152: 325/464|IX5KG | B152: 325/464 | C152: IX5KG | D152: 0 | E152: 0 | F152: 0 | G152: 0 | H152: 0 | I152: 0 | J152: 0 | K152: H | L152: E | M152: 325IX5KG3464 | AH152: B | AO152: M | AR152: 74 | AS152: 150
A153: 777G3|IX5KG | B153: 777G3 | C153: IX5KG | D153: 228.08 | E153: 228.08 | F153: 228.08 | G153: 684.24 | H153: 0 | I153: 0 | J153: 21 | K153: H | L153: E | M153: 777IX5KGG3 | AH153: B | AI153: x | AO153: M | AR153: 75 | AS153: 151
A154: 393|IX5KG | B154: 393 | C154: IX5KG | D154: 221.41 | E154: 221.41 | F154: 221.41 | G154: 664.23 | H154: 0 | I154: 4 | J154: 5 | K154: H | L154: E | M154: 393IX5KG | AH154: B | AI154: x | AO154: M | AR154: 80 | AS154: 152
A155: |IX5KG | C155: IX5KG | D155: 0 | E155: 0 | F155: 0 | G155: 0 | H155: 0 | I155: 0 | J155: 0 | L155: E | M155: 235271 | AH155: B | AO155: M | AR155: 81 | AS155: 153
A156: 333|IX6KG | B156: 333 | C156: IX6KG | D156: 192.51 | E156: 192.51 | F156: 192.51 | G156: 577.53 | H156: 1 | I156: 1 | J156: 20 | K156: D | L156: E | M156: 333IX6KG | AH156: B | AI156: x | AJ156: 1 | AO156: M | AR156: 1 | AS156: 154
A157: 333H|IX6KG | B157: 333H | C157: IX6KG | D157: 173.28 | E157: 173.28 | F157: 173.28 | G157: 519.84 | H157: 4 | I157: 4 | J157: 8 | K157: H | L157: E | M157: 333IX6KGH | AH157: B | AI157: x | AJ157: 1 | AO157: M | AR157: 2.1 | AS157: 155
A158: 333K6|IX6KG | B158: 333K6 | C158: IX6KG | D158: 192.51 | E158: 192.51 | F158: 192.51 | G158: 577.53 | H158: 1 | I158: 1 | J158: 20 | K158: D | L158: E | M158: 333IX6KG | N158: B_KNAUFAUSF | O158: KNK6 | AH158: B | AO158: M | AR158: 2.3 | AS158: 156
A159: 333T|IX6KG | B159: 333T | C159: IX6KG | D159: 202.04 | E159: 202.04 | F159: 202.04 | G159: 606.12 | H159: 1 | I159: 1 | J159: 3 | K159: D | L159: E | M159: 333IX6KG | N159: B_FUNKTIONEN | O159: FUT | AH159: B | AO159: M | AR159: 4 | AS159: 157
A160: 333FRL|IX6KG | B160: 333FRL | C160: IX6KG | D160: 205.53 | E160: 205.53 | F160: 205.53 | G160: 616.59 | H160: 24 | I160: 1 | J160: 0 | K160: D | L160: E | M160: 333IX6KG FRL | AH160: B | AI160: x | AJ160: 102.1 | AO160: M | AR160: 7 | AS160: 158
A161: 333HFRL|IX6KG | B161: 333HFRL | C161: IX6KG | D161: 186.3 | E161: 186.3 | F161: 186.3 | G161: 558.9 | H161: 25 | I161: 4 | J161: 8 | K161: H | L161: E | M161: 333IX6KGH FRL | AH161: B | AI161: x | AJ161: 1 | AN161: H | AO161: M | AR161: 24 | AS161: 159
A162: 333K1|IX6KG | B162: 333K1 | C162: IX6KG | D162: 200.44 | E162: 200.44 | F162: 200.44 | G162: 601.32 | H162: 1 | I162: 1 | J162: 20 | K162: D | L162: E | M162: 333IX6KG | N162: B_KNAUFAUSF | O162: KNK1 | AH162: B | AO162: M | AR162: 36 | AS162: 160
A163: 333K2|IX6KG | B163: 333K2 | C163: IX6KG | D163: 200.44 | E163: 200.44 | F163: 200.44 | G163: 601.32 | H163: 1 | I163: 1 | J163: 20 | K163: D | L163: E | M163: 333IX6KG | N163: B_KNAUFAUSF | O163: KNK2 | AH163: B | AO163: M | AR163: 39 | AS163: 161
A164: 333K3|IX6KG | B164: 333K3 | C164: IX6KG | D164: 200.44 | E164: 200.44 | F164: 200.44 | G164: 601.32 | H164: 1 | I164: 1 | J164: 20 | K164: D | L164: E | M164: 333IX6KG | N164: B_KNAUFAUSF | O164: KNK3 | AH164: B | AO164: M | AR164: 42 | AS164: 162
A165: 333K4|IX6KG | B165: 333K4 | C165: IX6KG | D165: 200.44 | E165: 200.44 | F165: 200.44 | G165: 601.32 | H165: 1 | I165: 1 | J165: 0 | K165: D | L165: E | M165: 333IX6KG | N165: B_KNAUFAUSF | O165: KNK4 | AH165: B | AO165: M | AR165: 45 | AS165: 163
A166: 333KL|IX6KG | B166: 333KL | C166: IX6KG | D166: 192.51 | E166: 192.51 | F166: 192.51 | G166: 577.53 | H166: 5 | I166: 1 | J166: 18 | K166: D | L166: E | M166: 333IX6KGKL | AH166: B | AI166: x | AJ166: 1 | AO166: M | AR166: 62 | AS166: 164
A167: 472|IX6KG | B167: 472 | C167: IX6KG | D167: 221.41 | E167: 221.41 | F167: 221.41 | G167: 664.23 | H167: 1 | I167: 1 | J167: 0 | K167: D | L167: E | M167: 2222IX6KG | AH167: B | AO167: M | AR167: 66 | AS167: 165
A168: 472H|IX6KG | B168: 472H | C168: IX6KG | D168: 199.29 | E168: 199.29 | F168: 199.29 | G168: 597.87 | H168: 4 | I168: 4 | J168: 8 | K168: H | L168: E | M168: 2222HIX6KG | AH168: B | AO168: M | AR168: 67 | AS168: 166
A169: 472K6|IX6KG | B169: 472K6 | C169: IX6KG | D169: 232.45 | E169: 232.45 | F169: 232.45 | G169: 697.35 | H169: 1 | I169: 1 | J169: 0 | K169: D | L169: E | M169: 2222IX6KG | N169: B_KNAUFAUSF | O169: KNK6 | AH169: B | AO169: M | AR169: 68 | AS169: 167
A170: 555P|IX6KG | B170: 555P | C170: IX6KG | D170: 202.11 | E170: 202.11 | F170: 202.11 | G170: 606.33 | H170: 0 | I170: 4 | J170: 0 | K170: H | L170: E | M170: 555IX6KG | N170: B_AUSFUEHRUNG_ROHR_PLATTE | O170: RPP | AH170: B | AI170: x | AJ170: 1 | AO170: M | AR170: 69 | AS170: 168
A171: 325L|IX6KG | B171: 325L | C171: IX6KG | D171: 173.28 | E171: 173.28 | F171: 173.28 | G171: 519.84 | H171: 0 | I171: 1 | J171: 0 | K171: H | L171: E | M171: 325IX6KG | N171: B_AUSFUEHRUNG_325 | O171: LIPS | AH171: B | AO171: M | AR171: 71 | AS171: 169
A172: 325L/1754DR1|IX6KG | B172: 325L/1754DR1 | C172: IX6KG | D172: 418.78 | E172: 418.78 | F172: 418.78 | G172: 1256.34 | H172: 0 | I172: 1 | J172: 0 | K172: H | L172: E | M172: 325IX6KG | N172: B_AUSFUEHRUNG_325 | O172: LIPS | P172: x | AH172: B | AO172: M | AR172: 72 | AS172: 170
A173: 325L/1754DR2|IX6KG | B173: 325L/1754DR2 | C173: IX6KG | D173: 418.78 | E173: 418.78 | F173: 418.78 | G173: 1256.34 | H173: 0 | I173: 1 | J173: 0 | K173: H | L173: E | M173: 325IX6KG | N173: B_AUSFUEHRUNG_325 | O173: LIPS | P173: x | AH173: B | AO173: M | AR173: 73 | AS173: 171
A174: 325/464|IX6KG | B174: 325/464 | C174: IX6KG | D174: 0 | E174: 0 | F174: 0 | G174: 0 | H174: 0 | I174: 0 | J174: 0 | K174: H | L174: E | M174: 325IX6KG3464 | AH174: B | AO174: M | AR174: 74 | AS174: 172
A175: 777G3|IX6KG | B175: 777G3 | C175: IX6KG | D175: 228.08 | E175: 228.08 | F175: 228.08 | G175: 684.24 | H175: 0 | I175: 0 | J175: 21 | K175: H | L175: E | M175: 777IX6KGG3 | AH175: B | AI175: x | AJ175: 1 | AO175: M | AR175: 75 | AS175: 173
A176: 777G3-HB60|IX6KG | B176: 777G3-HB60 | C176: IX6KG | D176: 243.22 | E176: 243.22 | F176: 243.22 | G176: 729.66 | H176: 0 | I176: 0 | J176: 21 | K176: H | L176: E | M176: 777IX6KGG3 | N176: B_BUEGELLAENGE | O176: BU60 | AH176: B | AI176: x | AJ176: 70.5 | AO176: M | AR176: 76 | AS176: 174
A177: 393|IX6KG | B177: 393 | C177: IX6KG | D177: 221.41 | E177: 221.41 | F177: 221.41 | G177: 664.23 | H177: 0 | I177: 4 | J177: 5 | K177: H | L177: E | M177: 393IX6KG | AH177: B | AI177: x | AO177: M | AR177: 80 | AS177: 175
A178: |IX6KG | C178: IX6KG | D178: 0 | E178: 0 | F178: 0 | G178: 0 | H178: 0 | I178: 0 | J178: 0 | L178: E | M178: 235271 | AH178: B | AO178: M | AR178: 81 | AS178: 176
A179: 333|IX6SR | B179: 333 | C179: IX6SR | D179: 192.51 | E179: 192.51 | F179: 192.51 | G179: 577.53 | H179: 1 | I179: 1 | J179: 20 | K179: D | L179: E | M179: 333IX6SR | AH179: B | AI179: x | AO179: M | AR179: 1 | AS179: 177
A180: 333SKG2|IX6SR | B180: 333SKG2 | C180: IX6SR | D180: 201.27 | E180: 201.27 | F180: 201.27 | G180: 603.81 | H180: 33 | I180: 1 | J180: 20 | K180: D | L180: E | M180: 333IX6SR SKG2 | AH180: B | AO180: M | AR180: 2 | AS180: 178
A181: 333H|IX6SR | B181: 333H | C181: IX6SR | D181: 173.28 | E181: 173.28 | F181: 173.28 | G181: 519.84 | H181: 4 | I181: 4 | J181: 8 | K181: H | L181: E | M181: 333IX6SRH | AH181: B | AI181: x | AO181: M | AR181: 2.1 | AS181: 179
A182: 333HSKG2|IX6SR | B182: 333HSKG2 | C182: IX6SR | D182: 182.04 | E182: 182.04 | F182: 182.04 | G182: 546.12 | H182: 4 | I182: 4 | J182: 8 | K182: H | L182: E | M182: 333IX6SRH SKG2 | AH182: B | AO182: M | AR182: 2.2 | AS182: 180
A183: 333K6|IX6SR | B183: 333K6 | C183: IX6SR | D183: 192.51 | E183: 192.51 | F183: 192.51 | G183: 577.53 | H183: 1 | I183: 1 | J183: 20 | K183: D | L183: E | M183: 333IX6SR | N183: B_KNAUFAUSF | O183: KNK6 | AH183: B | AO183: M | AR183: 2.3 | AS183: 181
A184: 333K6SKG2|IX6SR | B184: 333K6SKG2 | C184: IX6SR | D184: 201.27 | E184: 201.27 | F184: 201.27 | G184: 603.81 | H184: 1 | I184: 1 | J184: 20 | K184: D | L184: E | M184: 333IX6SR SKG2 | N184: B_KNAUFAUSF | O184: KNK6 | AH184: B | AO184: M | AR184: 2.4 | AS184: 182
A185: 333T|IX6SR | B185: 333T | C185: IX6SR | D185: 202.04 | E185: 202.04 | F185: 202.04 | G185: 606.12 | H185: 1 | I185: 1 | J185: 3 | K185: D | L185: E | M185: 333IX6SR | N185: B_FUNKTIONEN | O185: FUT | AH185: B | AO185: M | AR185: 4 | AS185: 183
A186: 333TSKG2|IX6SR | B186: 333TSKG2 | C186: IX6SR | D186: 210.8 | E186: 210.8 | F186: 210.8 | G186: 632.4 | H186: 1 | I186: 1 | J186: 3 | K186: D | L186: E | M186: 333IX6SR SKG2 | N186: B_FUNKTIONEN | O186: FUT | AH186: B | AO186: M | AR186: 5 | AS186: 184
A187: 333FRL|IX6SR | B187: 333FRL | C187: IX6SR | D187: 205.53 | E187: 205.53 | F187: 205.53 | G187: 616.59 | H187: 24 | I187: 1 | J187: 0 | K187: D | L187: E | M187: 333IX6SR FRL | AH187: B | AI187: x | AO187: M | AR187: 7 | AS187: 185
A188: 333FRLSKG2|IX6SR | B188: 333FRLSKG2 | C188: IX6SR | D188: 214.29 | E188: 214.29 | F188: 214.29 | G188: 642.87 | H188: 24 | I188: 1 | J188: 0 | K188: D | L188: E | M188: 333IX6SR FRL SKG2 | AH188: B | AO188: M | AR188: 8 | AS188: 186
A189: 333M|IX6SR | B189: 333M | C189: IX6SR | D189: 232.2 | E189: 232.2 | F189: 232.2 | G189: 696.6 | H189: 3 | I189: 1 | J189: 20 | K189: D | L189: E | M189: 333IX6SRM | AH189: B | AI189: x | AO189: M | AR189: 12 | AS189: 187
A190: 333MSKG2|IX6SR | B190: 333MSKG2 | C190: IX6SR | D190: 240.96 | E190: 240.96 | F190: 240.96 | G190: 722.88 | H190: 3 | I190: 1 | J190: 20 | K190: D | L190: E | M190: 333IX6SRM SKG2 | AH190: B | AO190: M | AR190: 13 | AS190: 188
A191: 333MT|IX6SR | B191: 333MT | C191: IX6SR | D191: 241.73 | E191: 241.73 | F191: 241.73 | G191: 725.19 | H191: 3 | I191: 1 | J191: 3 | K191: D | L191: E | M191: 333IX6SRM | N191: B_FUNKTIONEN | O191: FUT | AH191: B | AO191: M | AR191: 15 | AS191: 189
A192: 333HFRL|IX6SR | B192: 333HFRL | C192: IX6SR | D192: 186.3 | E192: 186.3 | F192: 186.3 | G192: 558.9 | H192: 25 | I192: 4 | J192: 8 | K192: H | L192: E | M192: 333IX6SRH FRL | AH192: B | AI192: x | AO192: M | AR192: 24 | AS192: 190
A193: 333HFRLSKG2|IX6SR | B193: 333HFRLSKG2 | C193: IX6SR | D193: 195.07 | E193: 195.07 | F193: 195.07 | G193: 585.21 | H193: 25 | I193: 4 | J193: 8 | K193: H | L193: E | M193: 333IX6SRH FRL SKG2 | AH193: B | AI193: x | AO193: M | AR193: 25 | AS193: 191
A194: 333MH|IX6SR | B194: 333MH | C194: IX6SR | D194: 208.98 | E194: 208.98 | F194: 208.98 | G194: 626.94 | H194: 17 | I194: 4 | J194: 0 | K194: H | L194: E | M194: 333IX6SRHM | AH194: B | AI194: x | AO194: M | AR194: 27 | AS194: 192
A195: =CONCATENATE(B195,"|",C195) -> 333MHSKG2|IX6SR | B195: 333MHSKG2 | C195: IX6SR | D195: 217.74 | E195: 217.74 | F195: 217.74 | G195: =D195+E195+F195 -> 653.22 | H195: 17 | I195: 4 | J195: 8 | K195: H | L195: E | M195: 333IX6SRHM SKG2 | AH195: B | AO195: M | AR195: 28 | AS195: 193
A196: 333K1|IX6SR | B196: 333K1 | C196: IX6SR | D196: 200.44 | E196: 200.44 | F196: 200.44 | G196: 601.32 | H196: 1 | I196: 1 | J196: 20 | K196: D | L196: E | M196: 333IX6SR | N196: B_KNAUFAUSF | O196: KNK1 | AH196: B | AO196: M | AR196: 36 | AS196: 194
A197: 333K1SKG2|IX6SR | B197: 333K1SKG2 | C197: IX6SR | D197: 209.2 | E197: 209.2 | F197: 209.2 | G197: 627.6 | H197: 1 | I197: 1 | J197: 20 | K197: D | L197: E | M197: 333IX6SR SKG2 | N197: B_KNAUFAUSF | O197: KNK1 | AH197: B | AO197: M | AR197: 37 | AS197: 195
A198: 333K2|IX6SR | B198: 333K2 | C198: IX6SR | D198: 200.44 | E198: 200.44 | F198: 200.44 | G198: 601.32 | H198: 1 | I198: 1 | J198: 20 | K198: D | L198: E | M198: 333IX6SR | N198: B_KNAUFAUSF | O198: KNK2 | AH198: B | AO198: M | AR198: 39 | AS198: 196
A199: 333K2SKG2|IX6SR | B199: 333K2SKG2 | C199: IX6SR | D199: 209.2 | E199: 209.2 | F199: 209.2 | G199: 627.6 | H199: 1 | I199: 1 | J199: 20 | K199: D | L199: E | M199: 333IX6SR SKG2 | N199: B_KNAUFAUSF | O199: KNK2 | AH199: B | AN199: D | AO199: M | AR199: 40 | AS199: 197
A200: 333K3|IX6SR | B200: 333K3 | C200: IX6SR | D200: 200.44 | E200: 200.44 | F200: 200.44 | G200: 601.32 | H200: 1 | I200: 1 | J200: 20 | K200: D | L200: E | M200: 333IX6SR | N200: B_KNAUFAUSF | O200: KNK3 | AH200: B | AO200: M | AR200: 42 | AS200: 198
... 535 more rows

Sheet Sprachen (hidden)
A1: ID | B1: DE | C1: GB | D1: FR | E1: NL
A2: 1 | B2: Deutsch | C2: English | D2: Français | E2: Nederlands
A3: 2 | B3: S-Plan speichern unter | C3: Save MK-plan as | D3: Enregistrer sous | E3: Sluitplan opslaan als..
A4: 3 | B4: Dateiname/Projekt | C4: File name / Project | D4: Nom du fichier/Projet | E4: Bestand/ projectnaam
A5: 4 | B5: Schließplan bearbeiten | C5: Edit Masterkey Plan | D5: Éditer le plan | E5: Sluitplan bewerken
A6: 5 | B6: Kalkulieren (F4) ... | C6: Calculate (F4) ... | D6: Calcul du Prix (F4) ... | E6: Prijs ...
A7: 6 | B7: Fachhändler | C7: Customer | D7: Revendeur | E7: Klant
A8: 7 | B8: Kundennummer | C8: Customer No. | D8: N° de client | E8: Klantnummer
A9: 8 | B9: Telefon | C9: Telefon | D9: Téléphone | E9: Telefoon
A10: 9 | B10: Ansprechpartner | C10: Respond partner | D10: Contact | E10: Contactpersoon
A11: 10 | B11: Straße | C11: Road | D11: Rue | E11: Straat
A12: 11 | B12: Land | C12: Country | D12: Pays | E12: Postcode
A13: 12 | B13: Postleitzahl | C13: Postcode | D13: Code postal | E13: Woonplaats
A14: 13 | B14: Ort | C14: City | D14: Ville | E14: Provincie
A15: 14 | B15: Objekt | C15: Object | D15: Objet/Organigr. | E15: Project
A16: 15 | B16: Kommission | C16: Commission | D16: Référence cde | E16: Referentie
A17: 16 | B17: Wunschtermin | C17: Term of delivery | D17: Délais
A18: 17 | B18: Abweichende Lieferanschrift | C18: Special delivery adress | D18: Adresse de livraison complémentaire | E18: Afwijkend leveradres
A19: 18 | B19: Name 1 | C19: Name 1 | D19: Nom 1 | E19: Naam 1
A20: 19 | B20: Name 2 | C20: Name 2 | D20: Nom 2 | E20: Naam 2
A21: 20 | B21: Ortsteil | C21: District | D21: Lieu
A22: 21 | B22: Besondere Hinweise | C22: Special Hints | D22: Remarque particulière | E22: Bijzonderheden
A23: 22 | B23: Titel | C23: Titel | D23: Titre | E23: Titel
A24: 23 | B24: Sicherungskarte | C24: Security card | D24: Carte de propriété | E24: Veiligheidscertificaat
A25: 24 | B25: Anlagennummer | C25: System code | D25: Code organigramme | E25: Sluitplannummer
A26: 25 | B26: Anlagenart | C26: Type of System | D26: Type d'organigramme | E26: Inrichting
A27: 26 | B27: System | C27: System | D27: Système | E27: Systeem
A28: 27 | B28: Kartennummer | C28: No. of security card | D28: N° de carte | E28: Kaartnummer
A29: 28 | B29: Karte eingelesen am | C29: S.-card reading date | D29: Carte lu le | E29: Kaart ingelezen op..
A30: 29 | B30: Karte einlesen | C30: Reading card | D30: Lecture de la carte | E30: Kaart inlezen
A31: 30 | B31: Zurücksetzen | C31: Reset data | D31: Réinitialiser | E31: Terug
A32: 31 | B32: Anschluß des Kartenlesers | C32: Card reader connection | D32: Port du lecteur de carte | E32: Aansluiting kaartlezer
A33: 32 | B33: Tastaturleser (z.B.MAGTEC) | C33: Keybordreader (MAGTEC) | D33: clavier (MAGTEC) | E33: kaartlezer (MAGTEC)
A34: 33 | B34: Daten der Sicherungskarte | C34: Security card data | D34: Données de la carte de propriété | E34: Gegevens van het Veiligheidscertificaat
A35: 34 | B35: Neuanlage | C35: New System | D35: Nouvel organigramme | E35: Nieuw sluitsysteem
A36: 35 | B36: Erweiterung | C36: Extension | D36: Extension | E36: Uitbreiding
A37: 36 | B37: Funktion | C37: Function | D37: Fonction | E37: Functie
A38: 37 | B38: Nummer | C38: Number | D38: Numéro | E38: Nummer
A39: 38 | B39: Bezeichnung | C39: Marking | D39: Description | E39: Omschrijving
A40: 39 | B40: Anzahl | C40: Quantity | D40: Quantité | E40: Aantal
A41: 40 | B41: Pos | C41: Pos | D41: Lg | E41: Positie
A42: 41 | B42: Status | C42: State | D42: état | E42: Status
A43: 42 | B43: Tür.-Raumbez. | C43: Door/room-description | D43: Désignation/porte | E43: Deur-Ruimteomschrijving
A44: 43 | B44: Schlüssel-Nr. | C44: Key.-No. | D44: N° de clé | E44: Sleutelnummer
A45: 44 | B45: Freie Eingabe | C45: Free input | D45: Saisie libre | E45: Vrije invoer
A46: 45 | B46: Zyl. | C46: Cyl. | D46: Cyl. | E46: Cil.
A47: 46 | B47: Sch | C47: Key | D47: Clé | E47: Sl.
A48: 47 | B48: Zylindertyp | C48: Cylinder type | D48: Type | E48: Cilindertype
A49: 48 | B49: Ausführung | C49: Design | D49: Fonctions | E49: Uitvoering
A50: 49 | B50: Länge (A / B) | C50: Length (A / B) | D50: longueurs (A/B) | E50: Lengte (A / B)
A51: 50 | B51: Farbe | C51: Color | D51: Finition | E51: kleur
A52: 51 | B52: Keine Gruppenspalte | C52: column not defined for groups | D52: Pas de colonne de passe | E52: Geen groepenkolom
A53: 52 | B53: Gruppennummer fehlt | C53: masterkey number missing | D53: N° de passe inexistant | E53: Groepennummer ontbreekt
A54: 53 | B54: Schlüsselnummer fehlt bei Pos | C54: Key number missing in position | D54: N° de clé inexistant | E54: Sleutelnummer ontbreekt bij positie
A55: 54 | B55: In dieser Zeile/Spalte ist keine weitere Z/M-Funktion möglich | C55: No more Z/M-function not possible | D55: Impossible d'insérer 1 fonction d'OC suppl. | E55: In deze rij/ kolom is geen Z/M functie meer mogelijk
A56: 55 | B56: Schlüsselnummer für Zentralzylinder muß mit "Z..." beginnen | C56: Key number for Centralcylinder must start with "Z..." | D56: Les n° d' ouvertures centrales doivent commencer par "Z…." | E56: Sleutelnummer voor Centraalcilinder moet met "Z.." beginnen
A57: 56 | B57: Z/M-Funktion kann nicht überschrieben werden | C57: Overwrite Z/M not possible | D57: La Fonction OC ne peut être modifiée | E57: Z/M functie kan niet overschreven worden
A58: 57 | B58: Keine Z oder M-Spalte | C58: No Z or M row | D58: Pas de colonne d'OC | E58: Geen Z of M-kolom
A59: 58 | B59: G-Funktion bereits in Zeile vorhanden oder Schließfunktionen (X/I) ungleich | C59: G-function already exist or different X/I function. | E59: G functie reeds in regels beschikbaar of sluitfuncties X/I ongelijk
A60: 59 | B60: Max eine Mitschließung möglich | C60: Max one I-Funktion | D60: Une entrouverture max. possible ! | E60: Maximaal 1 meesluiting mogelijk
A61: 60 | B61: Gruppen | C61: Master key | D61: Passes | E61: Groepenfunctie
A62: 61 | B62: Schl.-Nummer | C62: MK number | D62: N° de clé | E62: Sleutelnummer
A63: 62 | B63: Bezeichnung | C63: Marking | D63: Désignation | E63: Omschrijving
A64: 63 | B64: Anz. | C64: Quant. | D64: Quantité | E64: Aantal
A65: 64 | B65: Typ | C65: Type | D65: Type | E65: Type
A66: 65 | B66: Keine Guppen bei dieser Anlagenart möglich | C66: No masterkeys possible in type of system | D66: Pas de passe disponible dans ce type d'organigramme | E66: In deze inrichting (Z) is geen groepenindeling mogelijk
A67: 66 | B67: Speichern | C67: Save | D67: Enregistrer | E67: Opslaan
A68: 67 | B68: Löschen | C68: Delete | D68: Supprimer | E68: Wissen
A69: 68 | B69: Maximale Gruppenanzahl bei Anlagenart ZHS: 1 | C69: Max. Masterkeys in type ZHS: 1 | D69: En mode ZHS, nombre de passe max.: 1 | E69: Maximaal aantal groepen in een ZHS- inrichting: 1
A70: 69 | B70: Maximale Gruppenanzahl bei Anlagenart HS: 2 (HS + HS-T) | C70: Max. Masterkeys in type HS: 2 | D70: En mode HS, nombre de passe max.: 1 | E70: Maximale groepenaantal in een HS- inrichting: 2 (HS + HS-TD)
A71: 70 | B71: Bitte Schlüsselnummer, Typ und Neu oder Bestehend angeben. | C71: Please input Masterkey number, type and new or existing group. | D71: Veuillez indiquer le n°de clé, le type ou l'état | E71: Sleutelnummer, type, nieuw of bestaand aangeven a.u.b.
A72: 71 | B72: Schlüsselnummer bereits vorhanden | C72: Keynumber already exists | D72: N° de clé déjà existant | E72: Sleutelnummer is reeds bekend
A73: 72 | B73: Bearbeiten ... | C73: Edit ... | D73: Éditer ... | E73: Bewerken ...
A74: 73 | B74: Spalte(n) hinzufügen | C74: Add column(s) | D74: Insérer colonne(s) | E74: Kolom invoegen
A75: 74 | B75: Spalte(n) löschen | C75: Delete column(s) | D75: Supprimer colonne(s) | E75: Kolom verwijderen
A76: 75 | B76: Zeile(n) hinzufügen | C76: Add row(s) | D76: Insérer ligne(s) | E76: Regel invoegen
A77: 76 | B77: Zeile(n) löschen | C77: Delete row(s) | D77: Supprimer ligne(s) | E77: Regel verwijderen
A78: 77 | B78: Spalten | C78: Columns | D78: Colonne | E78: Kolommen
A79: 78 | B79: Zeilen | C79: Rows | D79: Ligne | E79: Regels
A80: 79 | B80: Bearbeitet werden die ausgwählten Zeilen oder Spalten. | C80: Eding the selected row/columns | D80: Édition des lignes ou colonnes sélectionnées | E80: De geselecteerde regels of kolommen worden bewerkt
A81: 80 | B81: Schließen | C81: Close | D81: Quitter | E81: Sluiten
A82: 81 | B82: Bitte lesen Sie die Sicherungskarte in den Kartenleser ein. Danach OK drücken | C82: Please input security card and then OK. | D82: Insérer SVP la carte de propriété dans le lecteur puis cliquer sur OK | E82: Het veiligheidscertificaat door de kaartlezer halen. Daarna op OK drukken
A83: 82 | B83: Eine bestehende Funktion soll geändert werden. Dies ist in der Regel nicht möglich. Trotzdem ändern? | C83: You try to change an existing Funktion. Mostly not possible. Nevertheless change? | D83: Une fonction existante doit être modifiée. Ce n'est pas pas possible normalement. Continuer ? | E83: Een bestaande functie moet gewijzigd worden.Dit is in het principe niet mogelijk. Toch veranderen?
A84: 83 | B84: Typen OK | C84: Cylinder typ OK | D84: Types OK | E84: Types zijn OK
A85: 84 | B85: Typen fehlerhaft | C85: Cylinder typ not correct. | D85: Types erronés | E85: Types foutmelding
A86: 85 | B86: Typen prüfen | C86: Check types. | D86: Contrôle des types | E86: Types controleren
A87: 86 | B87: Preisvorgaben | C87: Prices | D87: Calcul des prix | E87: Prijsopgave
A88: 87 | B88: Multi % | C88: Multi % | D88: % Multi | E88: Korting %
A89: 88 | B89: BAZ (<=10Zyl.) % | C89: <=10 cyl. % | D89: <10 pièces | E89: Uitbreidingstoeslag %
A90: 89 | B90: Altanlage % | C90: Old system % | D90: % anc.plan | E90: Ouderdomstoeslag
A91: 90 | B91: Zuschlag 1 % | C91: Add 1 % | D91: % Plus-value 1 | E91: Toeslag 1 %
A92: 91 | B92: Zuschlag 2 % | C92: Add 2 % | D92: % Plus-value 2 | E92: Toeslag 2 %
A93: 92 | B93: Abschlag 1 % | C93: minus 1 % | D93: % Remise 1 | E93: Korting 1 %
A94: 93 | B94: Abschlag 2 % | C94: minus 2 % | D94: % Remise 2 | E94: Korting 2 %
A95: 94 | B95: Massen anzeigen | C95: Show | D95: Voir | E95: Prijzen bekijken
A96: 95 | B96: MwSt. % | C96: Tax % | D96: % TVA | E96: BTW %
A97: 96 | B97: 19 | E97: 21
A98: 97 | B98: zus. Einzelschlüssel | C98: additional keys | D98: Clés supplémentaires | E98: Extra monosleutels
A99: 98 | B99: Einzelschl. ohne Zylinder | C99: Existing Keys | D99: Clé sans cylindre | E99: Monosleutels zonder cilinder
A100: 99 | B100: Neue GS/HS-Schlüssel | C100: New MK | D100: Nouveau Passe (PG seul ou PP ) | E100: Nieuwe GS/HS sleutels
A101: 100 | B101: Best. GS/HS-Schlüssel | C101: Existing MK | D101: Passe existant (PG seul ou PP) | E101: Bestaande GS/HS sleutels
A102: 101 | B102: Neue GHS-Schlüssel | C102: New GMK | D102: Nouveau Passe (PPG) | E102: Nieuwe GHS sleutels
A103: 102 | B103: Best. GHS-Schlüssel | C103: Existing GMK | D103: Passe existant (PPG) | E103: Bestaande GHS sleutels
A104: 103 | B104: Neue G-Schlüssel | C104: New G | D104: Nouvelle clé G | E104: Nieuwe G sleutel
A105: 104 | B105: Best. G-Schlüssel | C105: Existing G | D105: Clé G éxistante | E105: Bestaande G sleutel
A106: 105 | B106: Gesamt | C106: Total | D106: Total | E106: Totaal
A107: 106 | B107: Anz. VL | C107: Quant. Length | D107: Qté de rallongements | E107: Aantal verlengingen
A108: 107 | B108: Summe | C108: Sum | D108: Total | E108: Totaal
A109: 108 | B109: Preis | C109: Price | D109: Prix | E109: Prijs
A110: 109 | B110: Einzelpreis | C110: Single Price | D110: Prix unitaire | E110: Stuksprijs
A111: 110 | B111: Preisliste | C111: Price list | D111: Liste de prix | E111: Prijslijst
A112: 111 | B112: Planung | C112: Planing | D112: Prévision | E112: Planning
A113: 112 | B113: N =Neu | C113: N = New | D113: N=Nouveau | E113: N= Nieuw
A114: 113 | B114: B = Bestehend | C114: B = Exist | D114: B=Existant | E114: B= Bestaand
A115: 114 | B115: Import ab Pos. | C115: Import to Pos. | D115: Importer de lg. | E115: Import vanaf positie
A116: 115 | B116: Spalte(n) Import | C116: Columns import | D116: Importer colonne(s) | E116: Import van kolom(men)
A117: 116 | B117: Bitte Funktionsart wählen. X, Z, M, I, G | C117: Choose kind of Function. X, Z, M, I, G | D117: Choisir, SVP, le type de fonction (X, Z, M, I, G) | E117: Kies uit functie: X, Z, M, I, G
A118: 117 | B118: Sicherungkarte paßt nicht zur Anlagennummer!!! | C118: Security card data not equal to system code | D118: Carte incompatible avec l'organigramme | E118: Veiligheidscertificaat komt niet overeen met Sluitsysteemnummer
A119: 118 | B119: Unverbindliche Preisermittlung auf der Grundlage der o.g. Vorgaben. | D119: Ce devis est calculé à titre indicatif et n´a pas de valeur contractuelle. | E119: Prijsindicaties van het systeem zijn onder voorbehoud van een correcte invoer
A120: 119 | B120: Bitte beachten Sie die Preise unserer Auftragsbestätigung. | D120: Le prix vous sera confirmé par le service d'administration des ventes. | E120: Let U a.u.b. op de prijzen die vermeld staan op de opdrachtbevestiging
A121: 120 | B121: Diese Preisermittlung wird beim verlassen der Tabelle gelöscht. | D121: Ce calcul de prix sera supprimé en quittant ce tableau | E121: Deze prijsopgaaf wordt bij het verlaten van dit tabblad gewist
A122: 121 | B122: Schlüssel | C122: Keys | D122: Clé | E122: Sleutel
A123: 122 | B123: Zylinder | C123: Cylinders | D123: Cylindre | E123: Cilinder
A124: 123 | B124: Duplizieren mit "@" | C124: duplicate with "@" | D124: Dupliquer avec "@" | E124: Kopie met "@"
A125: 124 | B125: Startnummer für "@" | C125: Start number for "@" | D125: 1er numéro | E125: Start nummer
A126: 125 | B126: Anzahl der Kopien | C126: Copys count | D126: Nombre de copie | E126: Aantal copys
A127: 126 | B127: Wertehilfe für Typ, Ausf., Länge und Farbe mit "F1" | C127: Input help for types, design, length and color with "F1" | D127: Aide pour le Type, Fonction, longueurs et Finition avec "F1"
A128: 127 | B128: Lesefehler | C128: reading error | D128: Erreur de lecture | E128: Error inlezen
A129: 128 | B129: Nur neue Positionen ohne Status | C129: Only new positions with no status | D129: Uniquement les positions en extension | E129: Nieuwe positions zonder status
A130: 129 | B130: Drucken | C130: Print | D130: Imprimer | E130: Drukken
A131: 130 | B131: . (Punkt) bitte nicht verwenden. | C131: Please do not use "." (Full stop) | D131: . ! Merci de ne pas utiliser le point | E131: "." - Nummer Error
A132: 131 | B132: Fester Aufschag je Zylinder | C132: Text 131 | D132: Plus-value / cyl. | E132: Toeslag per cilinder
A133: 132 | B133: Fehler Daten Typ bei Abzug je Zylinder | C133: Text 132 | D133: Erreur Data-Type - Remise par cylindres | E133: Error - Korting per cilinder
A134: 133 | B134: Sortieren nach Spalte | C134: Sort by column | D134: trier colonne | E134: Sort by column
A135: 134 | B135: Der Schließplan ist auf max. 5000 Zeilen begrenzt. | C135: Maximally 5000 rows | D135: Au maximum 5000 lignes | E135: Maximaal 5000 regel
A136: 135 | B136: Anzahl Sonderspalten. Werden wie die "Freie Eingabe" nicht in DOM-Plan übernommen | C136: Special Columns | D136: Colonne spécialement | E136: Speciaal Kolommen
A137: 136 | B137: Schüsselnummer mehrfach vorhanden. Funktion wird für alle Positionen übernommen. | C137: Keynumber already exists. Existing positions get the new funktion. | D137: N° de clé déjà existant. La nouvelle fonction est prise en charge. | E137: Sleutelnummer komt voor op meerdere posities.Functie wordt op al deze posities overgenomen.
A138: 137 | B138: !!Nicht im DOM-Plan!! | C138: !!Not in DOM-MK-Plan!! | D138: !!Pas dans le DOM l'organigramme!! | E138: !!Niet in DOM-plan!!
A139: 138 | B139: Typenbezeichnung | C139: Type designation | D139: Dénomination du type
A140: 139 | B140: GHS | C140: MKS | D140: PPG | E140: GHS
A141: 140 | B141: HS | C141: MK | D141: PG | E141: HS
A142: 141 | B142: ZHS | C142: CMK | D142: CPG | E142: ZHS
A143: 142 | B143: Z | C143: CC | D143: C | E143: Z
A144: 143 | B144: ? | C144: ? | D144: ? | E144: ?
A145: 144 | B145: Profilserie
A146: 145 | B146: Zentralzyl. I in Z | C146: central cylinder | D146: centrales | E146: Centraalcilinder Z
A147: 146 | B147: Z-Funktion I in Z | C147: central function | D147: function centrales | E147: Centraalfunctie I
A148: 147 | B148: Schlüsselnummer für Zentralzylinder muß mit "C..." beginnen | C148: Key number for Centralcylinder must start with "C..." | D148: Les n° d' ouvertures centrales doivent commencer par "C…." | E148: Sleutelnummer voor Centraalcilinder moet met "C.." beginnen
A149: 148 | B149: GS | C149: SMK | D149: SPG | E149: GS
A150: 149 | B150: Eingang | C150: entrance | D150: contribution | E150: invoer
A151: 150 | B151: Haupteingang | C151: Main entrance | D151: entrée principale | E151: hoofdingang
A152: 151 | B152: Nebeneingang | C152: side entrance | D152: entrée latérale | E152: zijingang
A153: 152 | B153: Fahrradkeller | C153: Bicycle storage | D153: Garage à vélos | E153: fietsenstalling
A154: 153 | B154: Hausanschlussraum | C154: Building connection room | D154: Bâtiment salle de connexion | E154: Gebouw verbinding room
A155: 154 | B155: Heizung | C155: heating | D155: chauffage | E155: verwarming
A156: 155 | B156: Müll | C156: trash | D156: déchets | E156: afval
A157: 156 | B157: Wohnung | C157: apartment | D157: appartement | E157: appartement
A158: 157 | B158: Keller | C158: cellar | D158: cave | E158: kelder
A159: 158 | B159: Briefkasten | C159: mailbox | D159: boîte aux lettres | E159: brievenbus
A160: 159 | B160: Garage | C160: garage | D160: garage | E160: garage
A161: 160 | B161: WC | C161: WC | D161: toilettes | E161: WC
A162: 161 | B162: WC Damen | C162: WC Women | D162: WC Femmes | E162: WC Vrouwen
A163: 162 | B163: WC Herren | C163: WC Men | D163: WC hommes | E163: WC Men
A164: 163 | B164: Büro | C164: office | D164: bureau | E164: kantoor
A165: 164 | B165: Vorraum | C165: anteroom | D165: antichambre | E165: voorkamer
A166: 165 | B166: Durchgang | C166: passage | D166: passage | E166: passage
A167: 166 | B167: Geschäftsleitung | C167: Management | D167: gestion | E167: beheer
A168: 167 | B168: Personalabteilung | C168: personnel department | D168: service du personnel | E168: personeelsdienst
A169: 168 | B169: Konstuktion | C169: Architectural Technology | D169: technologie de l'architecture | E169: Architectural Technology
A170: 169 | B170: Verkauf | C170: sale | D170: vente | E170: verkoop
A171: 170 | B171: Produktion | C171: production | D171: production | E171: productie
A172: 171 | B172: Halle | C172: Hall | D172: hall | E172: hal
A173: 172 | B173: IT | C173: IT | D173: IT | E173: IT
A174: 173 | B174: Server | C174: server | D174: serveur | E174: server
A175: 174 | B175: EDV | C175: it | D175: IT | E175: IT
A176: 175 | B176: Vertrieb | C176: distribution | D176: ventes | E176: verkoop
A177: 176 | B177: Export | C177: export | D177: exportation | E177: export
A178: 177 | B178: Technik | C178: technology | D178: technologie | E178: technologie
A179: 178 | B179: Systeme für Neuanlagen | C179: New systems | D179: Nouveaux systèmes | E179: Nieuwe systemen
A180: 179 | B180: Sonstige Systeme | C180: Other systems | D180: D'autres systèmes | E180: Overige systemen
A181: 180 | B181: Händlerprofile | C181: Lochsmith profiles | D181: Revendeur profil | E181: Eigen profielen
A182: 181 | B182: ? | C182: ? | D182: ? | E182: Netto totaalbedrag excl.BTW
A183: 182 | B183: ? | C183: ? | D183: ? | E183: Meesluiting
A184: 183 | B184: ? | C184: ? | D184: ? | E184: Nieuw / uitbreiding …
A185: 184 | B185: Straße | C185: Road | D185: Rue | E185: Versienummer
A186: 185 | B186: ? | C186: ? | D186: ?
A187: 186 | B187: ? | C187: ? | D187: ? | E187: Zeewaterbestendige uitvoering (in kleur 4, glans chroom afgewerkt, met chemisch vernikkelde meenemer en stulpschroef van rein messing)
A188: 187 | B188: ? | C188: ? | D188: ? | E188: Mono sleutel meebesteld

Sheet Schlüssel (hidden)
A1: Gruppenschlüssel | B1: Schließplan | C1: Nachlieferung | D1: Gesamt | F1: Einzelschlüssel | G1: Schließplan | H1: Nachlieferung | I1: Gesamt

Sheet Hilfe-DE (hidden)
A3: DOM-XL
A5: DOM - Sicherheitstechnik GmbH , 50309 Brühl
A7: Tel: 02232/ 704-0
A9: Bitte senden Sie uns den fertigen DOM-XL-Schließplan per E-Mail, Diskette oder CD-ROM.
A11: Anleitung:
A13: Nach dem Lesen der folgenden Zeilen sind Sie in der Lage, mit DOMXL Schließanlagen schnell zu erfassen und vorab zu kalkulieren.
A15: Start
A17: 1. Öffnen Sie die Datei DOMXL.XLT. Beim Öffnen werden Sie gefragt ob Sie "Makros aktivieren" möchten. Diese Frage müssen Sie mit "Ja" beantworten, um die Datei mit voller Funktionalität zu öffnen. Sollte diese Frage nicht gestellt werden, müssen Sie in Excel unter "Extras>Macro>Sicherheit" die Sicherheitsstufe auf "Mittel" oder "Niedrig" einstellen. Danach schließen Sie Excel und starten Excel neu.
A18: 2. Füllen Sie, soweit bekannt, die Felder im Tabellenblatt "Start" aus.
A19: 3. Wenn Sie einen Magnetkartenleser besitzen und zu einer bestehenden Schließanlage eine Erweiterung erfassen wollen, klicken Sie auf "Sicherungskarte". In der nächsten Maske stellen Sie den Anschluss Ihres Kartenlesers ein und wählen "Karte einlesen". Nachdem die Karte in den Leser eingelesen wurde wählen Sie "OK".
A20: 4. Über "Schließplan bearbeiten" oder F3 gelangen Sie zum Schließplan.
A22: Schließplan
A24: 1. Soweit die Felder noch nicht durch die Sicherungskarte gefüllt wurden, machen Sie Angaben zu "Neuanlage/Erweiterung", "Anlagennummer", "Anlagenart" und "System".
A25: 2. Erfassen Sie die Spalten "Raumbezeichnungen", "Freie Eingabe" und "Schlüsselnummer". Über den Schalter "Bearbeiten>Spalten importieren" (oder F8-Taste ) können externe Daten durch Kopieren über die Zwischenablage übernommen werden.
A26: 3. Füllen Sie die Felder "Anzahl", "Zylindertyp", "Ausführung", "Länge" und "Farbe" aus. Hier erhalten Sie mit der F1-Taste Hilfe über eine Auswahlliste gültiger Werte, die Sie durch Anklicken übernehmen können.
A28: F1: Wertehilfe für Zylindertyp, Ausführung, Länge und Farbe.
A29: F5: Übernimmt den Wert der darüberliegenden Zelle.
A30: F6: Übernimmt die darüberliegende Zeile komplett.
A31: F7: Übernimmt den rechten Rest der darüberliegenden Zeile.
A32: F9: Fügt Zeile(n) ein. Diese Funktion ist auch unter dem Schalter "Bearbeiten zu finden".
A33: F10: Löscht Zeile(n). Diese Funktion ist auch unter dem Schalter "Bearbeiten zu finden".
A34: F11: Fügt Spalte(n) ein. Diese Funktion ist auch unter dem Schalter "Bearbeiten zu finden".
A35: F12: Löscht Spalte(n). Diese Funktion ist auch unter dem Schalter "Bearbeiten zu finden".
A36: Shift F5: Kopiert die markierten Werte einer Spalte und fügt sie unterhalb der Markierung ein.
A37: Shift F6: Kopiert den markierten Bereich und fügt ihn unterhalb der Markierung ein.
A39: 4. Rot markierte Felder deuten darauf hin, dass hier noch eine Eingabe bzw. Änderung (z.B.: Andere Schreibweise, Ausführung nicht hinterlegt etc.) erforderlich ist.
A40: 5. Die Gruppenschlüssel werden durch Auswahl von Schlüsselnummer, -Bezeichnung oder -Typ im Schließplankopf erfasst und geändert. Achtung: Das Erfassungsfenster öffnet sich nur, wenn Sie die Auswahl wechseln. Mit Hilfe des "@"-Zeichens können Sie innerhalb GHS-Anlagen Gruppenschlüssel fortlaufend "in einem Rutsch" erfassen.
A41: 6. Die Funktionen werden durch Auswahl der "Funktion" und durch Anklicken der gewünschten Position in der Funktionsmatrix gesetzt. Zum Löschen von Funktionen müssen Sie in der Auswahl "Funktion" im Schließplankopf das Leerfeld wählen.
A42: 7. Über "Preise" oder über F4 kann nun anhand Ihrer Vorgaben eine Kalkulation vorgenommen werden.
A43: 8. Die Exportfunktionen dienen nur dem DOM-Datentransfer und sind für Sie als Fachhändler nicht von Bedeutung.
A44: 9. Wenn Sie zusätzliche Spalten für Daten benötigen, dann können Sie diese unter "Bearbeiten>Anzahl Sonderspalten" sichbar machen.
A47: Funktionen
A49: Kennzeichen in Auswahlliste "Funktion"
A50: X = Gruppenfunktion
A51: Z = Zentralzylinder der von Einzelschlüsseln mit I-Kennzeichnung geschossen wird
A52: M=Mitschließung die von einer Einzelschließung mit I-Kennzeichnung geschlossen wird
A53: I = schließt in Z oder M-Zylinder
A54: G = Gleichschließung (nur erforderlich wenn die Schlüsselnummern unterschiedlich sind)
A55: Leerfeld= Funktion löschen
A57: Grundsätzliches
A58: Alle Schlüssel mit gleicher Schlüsselnummer könne alle Zylinder mit derselben Nummer schließen.
A59: Gleiche Schlüsselnummer bedeutet gleiche Schließfunktion von Schlüssel und Zylinder.
A61: Gruppenschlüssel schließen alle mit X gekennzeichneten Zylinder der Spalte.
A63: Zentralfunktionen: Alle mit I gekennzeichneten Positionen schließen in die mit Z gekennzeichneten Positionen einer Spalte
A64: Für jede Zentralschließung ist eine separate Spalte anzulegen.
A66: Mitschließungen: Alle mit I gekennzeichneten Positionen schließen in die mit M gekennzeichneten Positionen einer Spalte.
A67: Maximal eine Schlüsselnummer kann eine andere mitschließen.
A68: Die Schließfunktionen beider Schlüsselnummern müssen ansonsten identisch sein.
A70: Gleichschließung: Hiermit werden Positionen mit unterschiedliche Schlüsselnummern
A71: jedoch identischen Schließfunktionen gekennzeichnet.
A72: Achtung! Sollte nur in Ausnahmen verwendet werden.
A74: Preis
A76: Die Preisermittlung erfolgt unverbindlich aufgrund Ihrer Vorgaben und der hinterlegten Preisliste. Die Preisvorgaben werden bei jedem Öffnen von DOMXL zurückgesetzt.Das bedeutet, dass Sie die Datei weitergeben können ohne Ihre Kalkulation preiszugeben. Zusätzlich können Sie ein Kennwort eingeben, um den Kalkulationsschalter zu deaktivieren. Gespeichert wir das Kennwort jeweils beim Anzeigen der Preise.
A80: Hinweis. DOMXL verhält sich im Wesentlichen so wie eine normale Exceltabelle. Da der Aufbau von DOMXL geschützt ist und im Hintergrund Plausibilitätsprüfungen stattfinden, kann es sein, dass einige "normale Excelfunktionen" nicht wie gewohnt möglich sind (z.B. Zeilen-Einfügen). Diese Funktionen sind durch DOMXL-eigene Funktionen ersetzt worden (z.B.F9 = Zeile(n) einfügen).
A82: Für Fragen steht Ihnen
A84: Herr Ulrich Stappenbeck
A85: Tel.:02232-704-404
A86: E-Mail mailto:Ulrich.Stappenbeck@DOM-Sicherheitstechnik.de
A87: gerne zur Verfügung.
A89: DOMXL ist urheberechtlich geschützt.
A90: Unbefugte Vervielfältigung, Weitergabe oder Änderung
A91: wird straf- und zivilrechtlich verfolgt.
A92: und kann schwere Strafen und Schadendsersatzforderungen
A93: zur Folge haben.
A95: DOMXL ist Eigentum der
A96: DOM-Sicherheitstechnik GmbH
A97: Wesselinger Str. 10-16
A98: 50321 Brühl

Sheet Help-NL
A3: DOM-XL
A5: DOM Nederland
A7: Tel: 070-3193006
A9: Graag ontvangen wij uw sluitplanbestelling in DOM-XL per e-mail.
A10: verkoop@dom-group.nl
A11: Bediening:
A13: Na het lezen van deze beknopte handleiding bent U in staat om snel en eenvoudig een sluitplan op te stellen en vooraf een calculatie daarvan te maken.
A16: Let op:
A17: Tekst in de ruimteomschrijving mag maximaal 30 tekens bevatten.
A18: Meer tekens zijn in het definitieve sluitplanoverzicht dan ook niet zichtbaar.
A19: Tekst in "vrije ruimte" wordt niet weergegeven in het definitieve sluitplan.
A20: Door op "BEWERKEN" of de <F8> toets te drukken, kunt U o.a. kolommen importeren van een extern bestand.
A22: Sneltoetsen
A23: <F2> laat de cursor zien
A24: <F3> naar het sluitplan
A25: <F4> prijzen bekijken
A26: <F5> kopieert de waarde van bovenliggende cel
A27: <F6> kopieert de gehele bovenliggende regel
A28: <F7> kopieert de bovenliggende regel behalve ruimteomschrijving en vrije invoer
A29: <F9> invoegen van een regel
A30: <F10> verwijderen van een regel
A31: <F11> invoegen van een kolom
A34: Rood gemarkeerde cellen duiden erop dat U iets heeft ingevoerd wat niet juist is. Controleer de types, uitvoeringen en kleur.
A35: Er is een speciaal invoerscherm beschikbaar om een (G)HS of GS in te voeren. Dit scherm komt tevoorschijn wanneer U klikt op een cel waar de
A36: GS sleutels behoren te staan.
A37: Door eerst een functie te kiezen in het keuzemenu "FUNCTIE" kunt U deze functie in de juiste positie zetten in de functiematrix
A38: Dit kan op 2 manieren:
A39: Door een klik met de linker muisknop (1 voor 1)
A40: Door een bereik te selecteren (alles tegelijk)
A42: Door op de knop "PRIJZEN" of <F4> te drukken kunt U de prijzen bekijken van uw zojuist opgestelde sluitplan
A43: (U krijgt eerst een invoerscherm waarin U een aantal gegevens zoals wachtwoord (passwort)/ kortingen/ toeslagen kunt vermelden)
A45: Waar u op moet letten bij een ZHS systeem:
A46: U heeft gekozen voor een Z/ZHS inrichting. DOM XL bepaalt niet of de door u opgegeven inrichting juist is!
A47: De Hoofdsleutel in deze inrichting is een Technische Hoofdsleutel en mag ongeveer 30% van het plan sluiten! (centraalcilinders en technische ruimten)
A48: Controleer of u de juiste inrichting gekozen heeft.
A50: De Exportfunctie is voor DOM doeleinden bestemd en is voor U niet van toepassing.
A52: Omschrijving van cilindertypen:
A54: Cilindertype | B54: Omschrijving
A55: 333 | B55: Dubbele Europrofielcilinder
A56: 333SKG2 | B56: Dubbele Europrofielcilinder met SKG2 keurmerk
A57: 333SKG3 | B57: Dubbele Europrofielcilinder met SKG3 keurmerk
A58: Zorgfunctie | B58: Verschillende sluiting per zijde (tbv dubbele, symetrische, cilinder met T koppeling) Kies; cilindertype 333T, Zorgfunctie opgeven in kolom Uitvoering
A59: SEW | B59: Zeewater bestendige uitvoering (in kleur 4, glans chroom afgewerkt met chemisch vernikkelde meenemer en stulpschroef van rein messing) opgeven in kolom Uitvoering
A60: 333H | B60: Halve Europrofielcilinder
A61: 333HSKG2 | B61: Halve Europrofielcilinder met SKG2 keurmerk
A62: 333HSKG3 | B62: Halve Europrofielcilinder met SKG3 keurmerk
A63: 333K6 | B63: Dubbele Europrofielcilinder met knop (knopcilinder) ook leverbaar met K1, K2, K3 of K3 knopuitvoering
A64: 333K6SKG2 | B64: Dubbele Europrofielcilinde rmet knop (knopcilinder) met SKG2 keurmerk, ook leverbaar met K1, K2, K3 of K4 knopuitvoering
A65: 333K6SKG3 | B65: Dubbele Europrofielcilinder met knop (knopcilinder) met SKG3 keurmerk, ook leverbaar met K1, K2, K3 of K4 knopuitvoering
A66: 333K7 | B66: Dubbele Europrofielcilinder met anti manipuleerbare knop
A67: 333FRL | B67: Dubbele Europrofielcilinder met vrijloopfunctie (360°) FZG gecertificeerd
A68: 333HFRL | B68: Halve Europrofielcilinder met vrijloopfunctie (360°) FZG gecertificeerd
A69: ** | B69: Belangrijke informatie:
A70: ** | B70: ivm FZG certificering voor cilinders tbv vluchtwegen en motorsloten zijn de vrijloopcilinders in de profielen
A71: ** | B71: ix Teco, ix Twido, ix Twinstar, ix Gamma, ix(5)HT, ix 6SR en ix Saturn alleen leverbaar vanaf afmeting 35/35 voor dubbele cilinders en 0/35 voor halve cilinders
B72: Deze systemen zijn in modulaire uitvoering (333M en 333MH) NIET met vrijloopfunctie leverbaar.
A73: 333T | B73: Dubbele Europrofielcilinder voorzien van T-koppeling (gevarenfunctie)
A74: 333M | B74: Dubbele Europrofielcilinder in Modulaire constructie
A75: 333MFRL | B75: Dubbele Europrofielcilinder met vrijloopfunctie (360°) FZG gecertificeerd in Modulaire constructie (alleen conventioneel sleutelprofiel)
A76: 333MH | B76: Halve Europrofielcilinder in Modulaire constructie
A77: 333MHFRL | B77: Halve Europrofielcilinder met vrijloopfunctie 360° FZG gecertificeerd in Modulaire constructie (alleen conventioneel sleutelprofiel)
A78: 333MK6 | B78: Dubbele Europrofielcilinder met knop (knopcilinder) in Modulaire constructie
A79: 333K6KRU | B79: Dubbele Europrofielcilinder met knop en slipkoppeling (knopzijde kan niet worden tegengehouden, toegang altijd mogelijk)
A80: 333KL | B80: Dubbele Europrofielcilinder Kort-Lang (28/35 of 28/40)
A81: 333KLK6 | B81: Dubbele Europrofielcilinder met knop (knopcilinder) Kort-Lang uitvoering (28/35 of 28/40)
A82: 333KLT | B82: Dubbele Europrofielcilinder Kort-Lang (28/35) voorzien van T-koppeling (gevarenfunctie)
A83: 333RI (10/14) | B83: Dubbele Europrofielcilinder met tandwiel (10 of 14 tands)
A84: 333MT | B84: Dubbele Europrofielcilinder in modulaire constructie voorzien van T-koppeling (gevarenfunctie)
A85: 333STAALSKG3 | B85: Dubbele Europrofielcilinder tbv DOM Diamant, staal uitvoering, SKG3
A86: 333TSTAALSKG3 | B86: Dubbele Europrofielcilinder tbv DOM Diamant, staal uitvoering, voorzien van T-koppeling (gevarenfunctie), SKG3
A87: 333HSTAALSKG3 | B87: Halve Europrofielcilinder tbv DOM Diamant, staal uitvoering, SKG3
A88: 333K6STAALSKG3 | B88: Dubbele Europrofielcilinder met knop (knopcilinder) tbv DOM Diamant, staal uitvoering, SKG3
A89: 333DUR | B89: Dubbele Europrofielcilinder tbv DOM Diamant, duracast uitvoering (voor binnendeuren)
A90: 333TDUR | B90: Dubbele Europrofielcilinder tbv DOM Diamant, duracast uitvoering voorzien van T-koppeling (gevarenfunctie) voor binnendeuren
A91: 333HDUR | B91: Halve Europrofielcilinder tbv DOM Diamant, duracast uitvoering (voor binnendeuren)
A92: 333K6DUR | B92: Dubbele profielcilinder met knop tbv Diamant, duracast uitvoering (voor binnendeuren)
A93: 555P | B93: Staartcilinder (t.b.v. Lips 1700 series)
A94: 325L | B94: Binnencilinder t.b.v. LIPS 1754
A95: 325L/1754DR1/DR2 | B95: Lips oplegslot 1754 (DM50mm) DR1 of DR2 icm 325L
A96: 472 | B96: Dubbbele cilinder 22 mm rond
A97: 472H | B97: Halve cilinder 22 mm rond
A98: 472K6 | B98: Dubbele cilinder met knop (knopcilinder) 22 mm rond
A99: 382 LI/RE | B99: Hevelcilinder (voor o.a. postkasten) Links/Rechts
A100: 393 | B100: Cilinder voor lift sleutelschakelaar met aansluiting van 2 microschakelaars (schakelmoment kiezen in "uitvoering")
A101: 419 Lips | B101: Schroefcilinder tbv Lips 2300 serie
A102: 325 / 464 | B102: Meubelkastcilinder tbv slotkast 464
A103: 464 / 325 | B103: Meubelkastcilinder kompleet met slotkast (Doornmaat opgeven in "uitvoering")
A104: 3020/473 | B104: Meubel/kastslot combinatie met cilinder (zonder stangen)
A105: 3020/4015 | B105: Meubel/kastslot combinatie met knop/cilinder (zonder stangen)
A106: 3020/473 ESP | B106: Meubel/kastslot combinatie met cilinder en draaistangen (200cm) met toebehoren (espagnolet)
A107: 3020/4015 ESP | B107: Meubel/kastslot combinatie met knop/cilinder en draaistangen (200cm) met toebehoren (espagnolet)
A108: 777G3 | B108: Hangslot incl. 333H -/30 cilinder
A109: 777G3-HB60 | B109: Hangslot incl. 333H -/30 cilinder met hoge beugel 60mm
A110: 777G3-HB120 | B110: Hangslot incl. 333H -/30 cilinder met hoge beugel 120mm
A112: Let erop dat niet alle typen in alle systemen toepasbaar zijn!
A114: DOM-XL is een databaseprogramma op Microsoft Excel basis en werkt hierdoor in het principe hetzelfde als een Excel spreadsheet.
A115: Omdat DOM-XL beveiligd is en gebruik maakt van verborgen formulebladen, kan het zijn dat bepaalde "gebruikelijke excelfuncties"
A116: niet functioneren zoals U dit gewend bent. (bijvoorbeeld: invoegen en verwijderen van regels en kolommen.) deze functies zijn nog steeds mogelijk, maar op een manier
A117: zoals beschreven in deze beknopte handleiding.
A119: Voor vragen kunt U zich richten tot:
A121: Dom-Nederland
A122: verkoop@dom-group.nl
A123: 070-3193006
G124: De meest recente versie van DOM XL download u van onze website

Sheet grund (hidden)
A1: Bezeichnung | B1: Wert | J1: 60 | K1: 3 | L1: 12 | M1: 12
A2: Sprache Spalte | B2: 5
A3: Sprache | B3: Nederlands | J3: 333SKG2 | L3: 30 / 0 | M3: 01
A4: DOM-XL Version | B4: DOM-XL 2024 V9.0 | J4: 333HSKG2 | L4: 35 / 0 | M4: 03
A5: Freispalten | B5: 10 | J5: 333K6SKG2 | L5: 40 / 0 | M5: 04
A6: Preisliste | J6: 333SKG3 | L6: 45 / 0 | M6: 05
A7: 1Datei | B7: E:\Dokumente und Einstellungen\Spock\Eigene Dateien\test.xls | J7: 333TSKG2 | L7: 50 / 0 | M7: 06
A8: Letztes speichern | B8: 15.11.2017 - 15:12:05 | J8: 333TSKG3 | L8: 55 / 0 | M8: 07
A9: Leser | B9: Keybord | J9: 333FRLSKG2 | L9: 60 / 0 | M9: 09
A10: SSK Eingabeanschläge | J10: 333FRLSKG3 | L10: 65 / 0 | M10: 17
A11: SSK Anlage | J11: 333MSKG2 | L11: 70 / 0 | M11: 25
A12: SSK Art | B12: GHS | J12: 333MSKG3
A13: SSK System | J13: 333MTSKG2
A14: SSK Ausführung | J14: 333MTSKG3
A15: SSK Profil | J15: 333MFRLSKG2
A16: SSK Datum | J16: 333MFRLSKG3
A17: SSK Schlusselnummer | J17: 333HSKG3
A18: SSK Hersteller | J18: 333HFRLSKG2
A19: SSK Datum 2 | J19: 333HFRLSKG3
A20: SSK | J20: 333MHSKG2
A21: SSK eingelesen am | J21: 333MHSKG3
A22: SSK String | J22: 333MHFRLSKG2
A23: SSK input | B23: Tastatur-Schnittstelle | J23: 333MHFRLSKG3
A24: Multi zwischenspeichern | B24: 100 | C24: 100 | J24: 333K6SKG3
A25: BAZ | B25: 0 | C25: 0 | J25: 333K1SKG2
A26: Altzuschlag | B26: 0 | C26: 0 | J26: 333K1SKG3
A27: Zuschlag 1 | B27: 0 | C27: 0 | J27: 333K2SKG2
A28: Zuschlag 2 | B28: 0 | C28: 0 | J28: 333K2SKG3
A29: Abschlag 1 | B29: 0 | C29: 0 | J29: 333K3SKG2
A30: Abschlag 2 | B30: 0 | C30: 0 | J30: 333K3SKG3
A31: Mehrwertsteuer | B31: 0 | C31: 21 | J31: 333K4SKG2
A32: Anlagennummer | J32: 333K4SKG3
A33: System | B33: rs SIRIUS | J33: 333K7SKG2
A34: Anlagenart | B34: GHS | J34: 333K6KRU
A35: Ergebnis | B35: 327.77 | J35: 333MK6SKG2
A36: Alle Positionen berechnen | B36: J | J36: 333MK6SKG3
A37: Passwort | B37: 4711 | J37: 333MK7SKG2
A38: Meldung Schl/Zyl >9 | B38: J | J38: 333KL
A39: Betreiber | J39: 333KLK6
A40: TAC | J40: 333KLT
A41: TACS | J41: 333RI-10
A42: SMPT | B42: 0 | J42: 333RI-14
A43: SMTPHOST | J43: 555PSKG2
A44: SMTPPort | J44: 325L
A45: SMTPKonto | J45: 325L/1754DR1
A46: SMPTPW | J46: 325L/1754DR2
A47: POP3 | B47: 0 | J47: 325/464
A48: POP3HOST | J48: 777G3
A49: POP3Port | J49: 777G3-HB60
A50: POP3Konto | J50: 777G3-HB120
A51: SMPTPW | J51: 382LI
A52: MAIL | J52: 382RE
A53: Multi 2 | B53: 0 | C53: 100 | J53: 393
A54: Multi 3 | B54: 0 | C54: 100 | J54: 419 LIPS
A55: Aufpreis Z | B55: 30.4 | J55: 464/325-L
A56: Aufpreis HS | B56: 39 | J56: 464/325-R
A57: Aufpreis GHS | B57: 68.7 | J57: 472
A58: Aufpreis Z halb | B58: 25 | J58: 472H
A59: Aufpreis HS halb | B59: 31.2 | J59: 472K6
A60: Aufpreis GHS halb | B60: 54.7
A61: Multi ELS | B61: 100 | C61: 100
A62: System
A63: Anlagenart
A64: NeuErw | B64: N
A65: Anlagennummer
A66: Version | B66: 6
